Workbook

Sheet Erfassung
A1: Jahr | B1: Wochenarbeitszeit | C1: Prozent alle Mt | D1: Ferientage im Jahr | G1: Jan | H1: Feb | I1: März | J1: Apr | K1: Mai | L1: Juni | M1: Juli | N1: Aug | O1: Sept | P1: Okt | Q1: Nov | R1: Dez
A2: 2025 | B2: 42 | C2: 0.8 | D2: 25 | G2: =$C$2 -> 0.8 | H2: 0.8 | I2: 0.8 | J2: 0.8 | K2: 0.8 | L2: 0.8 | M2: 0.8 | N2: =$C$2 -> 0.8 | O2: 0.8 | P2: 0.8 | Q2: 0.8 | R2: 0.8
B3: *die hellgrauen Werte können übertragen bzw. einzeln rausgelöschtwerden, die weiss hinterlegten Werte können angepasst werden.
B5: Arbeitszeiten | G5: Arbeitstage
B6: im ssa-app oder DossierManager unter Administration, Arbeitszeiten eintragen: | G6: im ssa-app oder DossierManager unter Administration, Arbeitstage eintragen:
B8: Jahresarbeitszeit | C8: Ferien | G8: Jan | H8: Feb | I8: März | J8: Apr | K8: Mai | L8: Juni | M8: Juli | N8: Aug | O8: Sept | P8: Okt | Q8: Nov | R8: Dez | S8: =B9-C9 -> 1525.44
B9: =Arbeitszeiten!AK44 -> 1693.44 | C9: =Arbeitszeiten!AK43 -> 168 | G9: =IF(G2="",0,Arbeitszeiten!AK5) -> 15 | H9: =IF(H2="",0,Arbeitszeiten!AK8) -> 15 | I9: =IF(I2="",0,Arbeitszeiten!AK11) -> 21 | J9: =IF(J2="",0,Arbeitszeiten!AK14) -> 20 | K9: =IF(K2="",0,Arbeitszeiten!AK17) -> 11 | L9: =IF(L2="",0,Arbeitszeiten!AK20) -> 20 | M9: =IF(M2="",0,Arbeitszeiten!AK23) -> 4 | N9: =IF(N2="",0,Arbeitszeiten!AK26) -> 15 | O9: =IF(O2="",0,Arbeitszeiten!AK29) -> 20 | P9: =IF(P2="",0,Arbeitszeiten!AK32) -> 15 | Q9: =IF(Q2="",0,Arbeitszeiten!AK35) -> 20 | R9: =IF(R2="",0,Arbeitszeiten!AK38) -> 15 | S9: =SUM(G9:R9) -> 191
B12: Sollzeiten Schulhäuser | G12: Monatliche Arbeitszeit
B13: im ssa-app uner Schulhäuser/Gemeinden oder im DossierManager unter Räume/Orte eintragen: | G13: im ssa-app oder DossierManager unter Administration, Monatliche Arbeitstage eintragen:
B15: Jahres AZ-Ferien: | C15: =B9-C9 -> 1525.44 | D15: Saldovotrag Vorjahr nur eintragen, falls man dies den Schulh. prozentual abziehen möchte | G15: Jan | H15: Feb | I15: März | J15: Apr | K15: Mai | L15: Juni | M15: Juli | N15: Aug | O15: Sept | P15: Okt | Q15: Nov | R15: Dez
B16: Saldovotrag Vorjahr: | G16: =$S$8/$S$9*G9 -> 119.7989529 | H16: 119.7989529 | I16: 167.718534 | J16: 159.7319372 | K16: 87.85256545 | L16: 159.7319372 | M16: 31.94638743 | N16: 119.7989529 | O16: 159.7319372 | P16: 119.7989529 | Q16: 159.7319372 | R16: 119.7989529
B17: Total Stunden: | C17: =C15-C16 -> 1525.44 | Q17: TOTAL | R17: =SUM(G16:R16) -> 1525.44
B18: Name Schulhaus | C18: Stellenprozente | D18: Total Stunden | G18: Komp. Tagessoll
B19: Schulhaus 1 | C19: 0.2 | E19: =$C$17/$C$2*C19 -> 381.36 | G19: =(B9-C9)/(SUM(G9:R9)) -> 7.986596859
B20: Schulhaus 2 | C20: 0.3 | E20: 572.04
B21: Schulhaus 3 | C21: 0.2 | E21: 381.36
B22: Schulhaus 4 | C22: 0.1 | E22: 190.68
E23: 0
E24: 0
E25: 0
E26: 0
E27: 0
C28: Total: | E28: =SUM(E19:E27) -> 1525.44 | G28: =IF(E28=C17,"","Die Stunden Schulhäuser oder die Prozente stimmen nicht überein") -> 

Sheet Feiertage und Ferien
A1: Datum | B1: Feiertag
A2: 2025-01-01 | B2: Neujahrstag | F2: zu den Resultaten
A3: 2025-01-02 | B3: Berchtoldstag (statt 1. Mai = gleiches Resultat)
A4: 2025-04-18 | B4: Karfreitag
A5: 2025-04-21 | B5: Ostermontag
A6: 2025-05-29 | B6: Auffahrt | F6: Ferienplan (nur für Berechnung Arbeitstage relevant):
A7: 2025-06-09 | B7: Pfingstmontag | H7: Start | I7: Ende
A8: 2025-08-01 | B8: Nationalfeiertag Schweiz | F8: Weihnachtsferien | H8: 2025-01-01 | I8: 2025-01-05
A9: 2025-12-25 | B9: Weihnachten | F9: Winterferien | H9: 2025-01-25 | I9: =H9+14 -> 2025-02-08
A10: 2025-12-26 | B10: Stephanstag | F10: Frühlingsferien | H10: 2025-05-03 | I10: =H10+14 -> 2025-05-17
F11: Sommerferien | H11: 2025-07-05 | I11: =H11+35 -> 2025-08-09
F12: Herbstferien | H12: 2025-09-27 | I12: =H12+14 -> 2025-10-11
F13: Weihnachtsferien | H13: 2025-12-20 | I13: =H13+14 -> 2026-01-03
F15: Feiertage in der Schweiz
F17: Anleitung zur Berechung eines halber Feiertages oder zusätzlichen Ferien

Sheet Arbeitszeiten
A1: Arbeitszeiten
A2: 2025 | B2: 1 | C2: 2 | D2: 3 | E2: 4 | F2: 5 | G2: 6 | H2: 7 | I2: 8 | J2: 9 | K2: 10 | L2: 11 | M2: 12 | N2: 13 | O2: 14 | P2: 15 | Q2: 16 | R2: 17 | S2: 18 | T2: 19 | U2: 20 | V2: 21 | W2: 22 | X2: 23 | Y2: 24 | Z2: 25 | AA2: 26 | AB2: 27 | AC2: 28 | AD2: 29 | AE2: 30 | AF2: 31 | AG2: F Tage | AH2: Ferien h | AI2: A-Tage | AJ2: Monatssaldo
B3: 2025-01-01 | C3: =B3+1 -> 2025-01-02 | D3: =C3+1 -> 2025-01-03 | E3: 2025-01-04 | F3: 2025-01-05 | G3: 2025-01-06 | H3: 2025-01-07 | I3: 2025-01-08 | J3: 2025-01-09 | K3: 2025-01-10 | L3: 2025-01-11 | M3: 2025-01-12 | N3: 2025-01-13 | O3: 2025-01-14 | P3: 2025-01-15 | Q3: 2025-01-16 | R3: 2025-01-17 | S3: 2025-01-18 | T3: 2025-01-19 | U3: 2025-01-20 | V3: 2025-01-21 | W3: 2025-01-22 | X3: 2025-01-23 | Y3: 2025-01-24 | Z3: 2025-01-25 | AA3: 2025-01-26 | AB3: 2025-01-27 | AC3: 2025-01-28 | AD3: 2025-01-29 | AE3: 2025-01-30 | AF3: 2025-01-31
A4: Januar | B4: =IF(ISNA(VLOOKUP(B3,'Feiertage und Ferien'!$A:$D,3,FALSE)),IF(OR(WEEKDAY(B3)=1,WEEKDAY(B3)=7),"",Erfassung!$B$2*SUM(Erfassung!$G$2:$G$2)/5),"F") -> F | C4: =IF(ISNA(VLOOKUP(C3,'Feiertage und Ferien'!$A:$D,3,FALSE)),IF(OR(WEEKDAY(C3)=1,WEEKDAY(C3)=7),"",Erfassung!$B$2*SUM(Erfassung!$G$2:$G$2)/5),"F") -> F | D4: =IF(ISNA(VLOOKUP(D3,'Feiertage und Ferien'!$A:$D,3,FALSE)),IF(OR(WEEKDAY(D3)=1,WEEKDAY(D3)=7),"",Erfassung!$B$2*SUM(Erfassung!$G$2:$G$2)/5),"F") -> 6.72 | E4: =IF(ISNA(VLOOKUP(E3,'Feiertage und Ferien'!$A:$D,3,FALSE)),IF(OR(WEEKDAY(E3)=1,WEEKDAY(E3)=7),"",Erfassung!$B$2*SUM(Erfassung!$G$2:$G$2)/5),"F") ->  | F4: =IF(ISNA(VLOOKUP(F3,'Feiertage und Ferien'!$A:$D,3,FALSE)),IF(OR(WEEKDAY(F3)=1,WEEKDAY(F3)=7),"",Erfassung!$B$2*SUM(Erfassung!$G$2:$G$2)/5),"F") ->  | G4: =IF(ISNA(VLOOKUP(G3,'Feiertage und Ferien'!$A:$D,3,FALSE)),IF(OR(WEEKDAY(G3)=1,WEEKDAY(G3)=7),"",Erfassung!$B$2*SUM(Erfassung!$G$2:$G$2)/5),"F") -> 6.72 | H4: =IF(ISNA(VLOOKUP(H3,'Feiertage und Ferien'!$A:$D,3,FALSE)),IF(OR(WEEKDAY(H3)=1,WEEKDAY(H3)=7),"",Erfassung!$B$2*SUM(Erfassung!$G$2:$G$2)/5),"F") -> 6.72 | I4: =IF(ISNA(VLOOKUP(I3,'Feiertage und Ferien'!$A:$D,3,FALSE)),IF(OR(WEEKDAY(I3)=1,WEEKDAY(I3)=7),"",Erfassung!$B$2*SUM(Erfassung!$G$2:$G$2)/5),"F") -> 6.72 | J4: =IF(ISNA(VLOOKUP(J3,'Feiertage und Ferien'!$A:$D,3,FALSE)),IF(OR(WEEKDAY(J3)=1,WEEKDAY(J3)=7),"",Erfassung!$B$2*SUM(Erfassung!$G$2:$G$2)/5),"F") -> 6.72 | K4: =IF(ISNA(VLOOKUP(K3,'Feiertage und Ferien'!$A:$D,3,FALSE)),IF(OR(WEEKDAY(K3)=1,WEEKDAY(K3)=7),"",Erfassung!$B$2*SUM(Erfassung!$G$2:$G$2)/5),"F") -> 6.72 | L4: =IF(ISNA(VLOOKUP(L3,'Feiertage und Ferien'!$A:$D,3,FALSE)),IF(OR(WEEKDAY(L3)=1,WEEKDAY(L3)=7),"",Erfassung!$B$2*SUM(Erfassung!$G$2:$G$2)/5),"F") ->  | M4: =IF(ISNA(VLOOKUP(M3,'Feiertage und Ferien'!$A:$D,3,FALSE)),IF(OR(WEEKDAY(M3)=1,WEEKDAY(M3)=7),"",Erfassung!$B$2*SUM(Erfassung!$G$2:$G$2)/5),"F") ->  | N4: =IF(ISNA(VLOOKUP(N3,'Feiertage und Ferien'!$A:$D,3,FALSE)),IF(OR(WEEKDAY(N3)=1,WEEKDAY(N3)=7),"",Erfassung!$B$2*SUM(Erfassung!$G$2:$G$2)/5),"F") -> 6.72 | O4: =IF(ISNA(VLOOKUP(O3,'Feiertage und Ferien'!$A:$D,3,FALSE)),IF(OR(WEEKDAY(O3)=1,WEEKDAY(O3)=7),"",Erfassung!$B$2*SUM(Erfassung!$G$2:$G$2)/5),"F") -> 6.72 | P4: =IF(ISNA(VLOOKUP(P3,'Feiertage und Ferien'!$A:$D,3,FALSE)),IF(OR(WEEKDAY(P3)=1,WEEKDAY(P3)=7),"",Erfassung!$B$2*SUM(Erfassung!$G$2:$G$2)/5),"F") -> 6.72 | Q4: =IF(ISNA(VLOOKUP(Q3,'Feiertage und Ferien'!$A:$D,3,FALSE)),IF(OR(WEEKDAY(Q3)=1,WEEKDAY(Q3)=7),"",Erfassung!$B$2*SUM(Erfassung!$G$2:$G$2)/5),"F") -> 6.72 | R4: =IF(ISNA(VLOOKUP(R3,'Feiertage und Ferien'!$A:$D,3,FALSE)),IF(OR(WEEKDAY(R3)=1,WEEKDAY(R3)=7),"",Erfassung!$B$2*SUM(Erfassung!$G$2:$G$2)/5),"F") -> 6.72 | S4: =IF(ISNA(VLOOKUP(S3,'Feiertage und Ferien'!$A:$D,3,FALSE)),IF(OR(WEEKDAY(S3)=1,WEEKDAY(S3)=7),"",Erfassung!$B$2*SUM(Erfassung!$G$2:$G$2)/5),"F") ->  | T4: =IF(ISNA(VLOOKUP(T3,'Feiertage und Ferien'!$A:$D,3,FALSE)),IF(OR(WEEKDAY(T3)=1,WEEKDAY(T3)=7),"",Erfassung!$B$2*SUM(Erfassung!$G$2:$G$2)/5),"F") ->  | U4: =IF(ISNA(VLOOKUP(U3,'Feiertage und Ferien'!$A:$D,3,FALSE)),IF(OR(WEEKDAY(U3)=1,WEEKDAY(U3)=7),"",Erfassung!$B$2*SUM(Erfassung!$G$2:$G$2)/5),"F") -> 6.72 | V4: =IF(ISNA(VLOOKUP(V3,'Feiertage und Ferien'!$A:$D,3,FALSE)),IF(OR(WEEKDAY(V3)=1,WEEKDAY(V3)=7),"",Erfassung!$B$2*SUM(Erfassung!$G$2:$G$2)/5),"F") -> 6.72 | W4: =IF(ISNA(VLOOKUP(W3,'Feiertage und Ferien'!$A:$D,3,FALSE)),IF(OR(WEEKDAY(W3)=1,WEEKDAY(W3)=7),"",Erfassung!$B$2*SUM(Erfassung!$G$2:$G$2)/5),"F") -> 6.72 | X4: =IF(ISNA(VLOOKUP(X3,'Feiertage und Ferien'!$A:$D,3,FALSE)),IF(OR(WEEKDAY(X3)=1,WEEKDAY(X3)=7),"",Erfassung!$B$2*SUM(Erfassung!$G$2:$G$2)/5),"F") -> 6.72 | Y4: =IF(ISNA(VLOOKUP(Y3,'Feiertage und Ferien'!$A:$D,3,FALSE)),IF(OR(WEEKDAY(Y3)=1,WEEKDAY(Y3)=7),"",Erfassung!$B$2*SUM(Erfassung!$G$2:$G$2)/5),"F") -> 6.72 | Z4: =IF(ISNA(VLOOKUP(Z3,'Feiertage und Ferien'!$A:$D,3,FALSE)),IF(OR(WEEKDAY(Z3)=1,WEEKDAY(Z3)=7),"",Erfassung!$B$2*SUM(Erfassung!$G$2:$G$2)/5),"F") ->  | AA4: =IF(ISNA(VLOOKUP(AA3,'Feiertage und Ferien'!$A:$D,3,FALSE)),IF(OR(WEEKDAY(AA3)=1,WEEKDAY(AA3)=7),"",Erfassung!$B$2*SUM(Erfassung!$G$2:$G$2)/5),"F") ->  | AB4: =IF(ISNA(VLOOKUP(AB3,'Feiertage und Ferien'!$A:$D,3,FALSE)),IF(OR(WEEKDAY(AB3)=1,WEEKDAY(AB3)=7),"",Erfassung!$B$2*SUM(Erfassung!$G$2:$G$2)/5),"F") -> 6.72 | AC4: =IF(ISNA(VLOOKUP(AC3,'Feiertage und Ferien'!$A:$D,3,FALSE)),IF(OR(WEEKDAY(AC3)=1,WEEKDAY(AC3)=7),"",Erfassung!$B$2*SUM(Erfassung!$G$2:$G$2)/5),"F") -> 6.72 | AD4: =IF(ISNA(VLOOKUP(AD3,'Feiertage und Ferien'!$A:$D,3,FALSE)),IF(OR(WEEKDAY(AD3)=1,WEEKDAY(AD3)=7),"",Erfassung!$B$2*SUM(Erfassung!$G$2:$G$2)/5),"F") -> 6.72 | AE4: =IF(ISNA(VLOOKUP(AE3,'Feiertage und Ferien'!$A:$D,3,FALSE)),IF(OR(WEEKDAY(AE3)=1,WEEKDAY(AE3)=7),"",Erfassung!$B$2*SUM(Erfassung!$G$2:$G$2)/5),"F") -> 6.72 | AF4: =IF(ISNA(VLOOKUP(AF3,'Feiertage und Ferien'!$A:$D,3,FALSE)),IF(OR(WEEKDAY(AF3)=1,WEEKDAY(AF3)=7),"",Erfassung!$B$2*SUM(Erfassung!$G$2:$G$2)/5),"F") -> 6.72 | AI4: =Erfassung!G2+20% -> 1 | AJ4: Januar
B5: =IF(B4="F",B4,Arbeitstage!B5) -> F | C5: =IF(C4="F",C4,Arbeitstage!C5) -> F | D5: =IF(D4="F",D4,Arbeitstage!D5) -> F | E5: =IF(E4="F",E4,Arbeitstage!E5) -> F | F5: =IF(F4="F",F4,Arbeitstage!F5) -> F | G5: =IF(G4="F",G4,Arbeitstage!G5) -> 1 | H5: =IF(H4="F",H4,Arbeitstage!H5) -> 1 | I5: =IF(I4="F",I4,Arbeitstage!I5) -> 1 | J5: =IF(J4="F",J4,Arbeitstage!J5) -> 1 | K5: =IF(K4="F",K4,Arbeitstage!K5) -> 1 | L5: =IF(L4="F",L4,Arbeitstage!L5) ->  | M5: =IF(M4="F",M4,Arbeitstage!M5) ->  | N5: =IF(N4="F",N4,Arbeitstage!N5) -> 1 | O5: =IF(O4="F",O4,Arbeitstage!O5) -> 1 | P5: =IF(P4="F",P4,Arbeitstage!P5) -> 1 | Q5: =IF(Q4="F",Q4,Arbeitstage!Q5) -> 1 | R5: =IF(R4="F",R4,Arbeitstage!R5) -> 1 | S5: =IF(S4="F",S4,Arbeitstage!S5) ->  | T5: =IF(T4="F",T4,Arbeitstage!T5) ->  | U5: =IF(U4="F",U4,Arbeitstage!U5) -> 1 | V5: =IF(V4="F",V4,Arbeitstage!V5) -> 1 | W5: =IF(W4="F",W4,Arbeitstage!W5) -> 1 | X5: =IF(X4="F",X4,Arbeitstage!X5) -> 1 | Y5: =IF(Y4="F",Y4,Arbeitstage!Y5) -> 1 | Z5: =IF(Z4="F",Z4,Arbeitstage!Z5) -> F | AA5: =IF(AA4="F",AA4,Arbeitstage!AA5) -> F | AB5: =IF(AB4="F",AB4,Arbeitstage!AB5) -> F | AC5: =IF(AC4="F",AC4,Arbeitstage!AC5) -> F | AD5: =IF(AD4="F",AD4,Arbeitstage!AD5) -> F | AE5: =IF(AE4="F",AE4,Arbeitstage!AE5) -> F | AF5: =IF(AF4="F",AF4,Arbeitstage!AF5) -> F | AG5: =SUM(Erfassung!$D:$D)/12 -> 2.083333333 | AH5: =IF(AG5="","",AG5*(Erfassung!B2/5)*SUM(Erfassung!G2:G2)) -> 14 | AI5: =SUM(B5:AF5) -> 15 | AJ5: =SUM(B4:AF4) -> 141.12 | AK5: =ROUND(AI5*AI4/5,1)*5 -> 15
B6: =AF3+1 -> 2025-02-01 | C6: =B6+1 -> 2025-02-02 | D6: 2025-02-03 | E6: 2025-02-04 | F6: 2025-02-05 | G6: 2025-02-06 | H6: 2025-02-07 | I6: 2025-02-08 | J6: 2025-02-09 | K6: 2025-02-10 | L6: 2025-02-11 | M6: 2025-02-12 | N6: 2025-02-13 | O6: 2025-02-14 | P6: 2025-02-15 | Q6: 2025-02-16 | R6: 2025-02-17 | S6: 2025-02-18 | T6: 2025-02-19 | U6: 2025-02-20 | V6: 2025-02-21 | W6: 2025-02-22 | X6: 2025-02-23 | Y6: 2025-02-24 | Z6: 2025-02-25 | AA6: 2025-02-26 | AB6: 2025-02-27 | AC6: 2025-02-28
A7: Februar | B7: =IF(ISNA(VLOOKUP(B6,'Feiertage und Ferien'!$A:$D,3,FALSE)),IF(OR(WEEKDAY(B6)=1,WEEKDAY(B6)=7),"",Erfassung!$B$2*SUM(Erfassung!$H2:$H2)/5),"F") ->  | C7: =IF(ISNA(VLOOKUP(C6,'Feiertage und Ferien'!$A:$D,3,FALSE)),IF(OR(WEEKDAY(C6)=1,WEEKDAY(C6)=7),"",Erfassung!$B$2*SUM(Erfassung!$H2:$H2)/5),"F") ->  | D7: =IF(ISNA(VLOOKUP(D6,'Feiertage und Ferien'!$A:$D,3,FALSE)),IF(OR(WEEKDAY(D6)=1,WEEKDAY(D6)=7),"",Erfassung!$B$2*SUM(Erfassung!$H2:$H2)/5),"F") -> 6.72 | E7: =IF(ISNA(VLOOKUP(E6,'Feiertage und Ferien'!$A:$D,3,FALSE)),IF(OR(WEEKDAY(E6)=1,WEEKDAY(E6)=7),"",Erfassung!$B$2*SUM(Erfassung!$H2:$H2)/5),"F") -> 6.72 | F7: =IF(ISNA(VLOOKUP(F6,'Feiertage und Ferien'!$A:$D,3,FALSE)),IF(OR(WEEKDAY(F6)=1,WEEKDAY(F6)=7),"",Erfassung!$B$2*SUM(Erfassung!$H2:$H2)/5),"F") -> 6.72 | G7: =IF(ISNA(VLOOKUP(G6,'Feiertage und Ferien'!$A:$D,3,FALSE)),IF(OR(WEEKDAY(G6)=1,WEEKDAY(G6)=7),"",Erfassung!$B$2*SUM(Erfassung!$H2:$H2)/5),"F") -> 6.72 | H7: =IF(ISNA(VLOOKUP(H6,'Feiertage und Ferien'!$A:$D,3,FALSE)),IF(OR(WEEKDAY(H6)=1,WEEKDAY(H6)=7),"",Erfassung!$B$2*SUM(Erfassung!$H2:$H2)/5),"F") -> 6.72 | I7: =IF(ISNA(VLOOKUP(I6,'Feiertage und Ferien'!$A:$D,3,FALSE)),IF(OR(WEEKDAY(I6)=1,WEEKDAY(I6)=7),"",Erfassung!$B$2*SUM(Erfassung!$H2:$H2)/5),"F") ->  | J7: =IF(ISNA(VLOOKUP(J6,'Feiertage und Ferien'!$A:$D,3,FALSE)),IF(OR(WEEKDAY(J6)=1,WEEKDAY(J6)=7),"",Erfassung!$B$2*SUM(Erfassung!$H2:$H2)/5),"F") ->  | K7: =IF(ISNA(VLOOKUP(K6,'Feiertage und Ferien'!$A:$D,3,FALSE)),IF(OR(WEEKDAY(K6)=1,WEEKDAY(K6)=7),"",Erfassung!$B$2*SUM(Erfassung!$H2:$H2)/5),"F") -> 6.72 | L7: =IF(ISNA(VLOOKUP(L6,'Feiertage und Ferien'!$A:$D,3,FALSE)),IF(OR(WEEKDAY(L6)=1,WEEKDAY(L6)=7),"",Erfassung!$B$2*SUM(Erfassung!$H2:$H2)/5),"F") -> 6.72 | M7: =IF(ISNA(VLOOKUP(M6,'Feiertage und Ferien'!$A:$D,3,FALSE)),IF(OR(WEEKDAY(M6)=1,WEEKDAY(M6)=7),"",Erfassung!$B$2*SUM(Erfassung!$H2:$H2)/5),"F") -> 6.72 | N7: =IF(ISNA(VLOOKUP(N6,'Feiertage und Ferien'!$A:$D,3,FALSE)),IF(OR(WEEKDAY(N6)=1,WEEKDAY(N6)=7),"",Erfassung!$B$2*SUM(Erfassung!$H2:$H2)/5),"F") -> 6.72 | O7: =IF(ISNA(VLOOKUP(O6,'Feiertage und Ferien'!$A:$D,3,FALSE)),IF(OR(WEEKDAY(O6)=1,WEEKDAY(O6)=7),"",Erfassung!$B$2*SUM(Erfassung!$H2:$H2)/5),"F") -> 6.72 | P7: =IF(ISNA(VLOOKUP(P6,'Feiertage und Ferien'!$A:$D,3,FALSE)),IF(OR(WEEKDAY(P6)=1,WEEKDAY(P6)=7),"",Erfassung!$B$2*SUM(Erfassung!$H2:$H2)/5),"F") ->  | Q7: =IF(ISNA(VLOOKUP(Q6,'Feiertage und Ferien'!$A:$D,3,FALSE)),IF(OR(WEEKDAY(Q6)=1,WEEKDAY(Q6)=7),"",Erfassung!$B$2*SUM(Erfassung!$H2:$H2)/5),"F") ->  | R7: =IF(ISNA(VLOOKUP(R6,'Feiertage und Ferien'!$A:$D,3,FALSE)),IF(OR(WEEKDAY(R6)=1,WEEKDAY(R6)=7),"",Erfassung!$B$2*SUM(Erfassung!$H2:$H2)/5),"F") -> 6.72 | S7: =IF(ISNA(VLOOKUP(S6,'Feiertage und Ferien'!$A:$D,3,FALSE)),IF(OR(WEEKDAY(S6)=1,WEEKDAY(S6)=7),"",Erfassung!$B$2*SUM(Erfassung!$H2:$H2)/5),"F") -> 6.72 | T7: =IF(ISNA(VLOOKUP(T6,'Feiertage und Ferien'!$A:$D,3,FALSE)),IF(OR(WEEKDAY(T6)=1,WEEKDAY(T6)=7),"",Erfassung!$B$2*SUM(Erfassung!$H2:$H2)/5),"F") -> 6.72 | U7: =IF(ISNA(VLOOKUP(U6,'Feiertage und Ferien'!$A:$D,3,FALSE)),IF(OR(WEEKDAY(U6)=1,WEEKDAY(U6)=7),"",Erfassung!$B$2*SUM(Erfassung!$H2:$H2)/5),"F") -> 6.72 | V7: =IF(ISNA(VLOOKUP(V6,'Feiertage und Ferien'!$A:$D,3,FALSE)),IF(OR(WEEKDAY(V6)=1,WEEKDAY(V6)=7),"",Erfassung!$B$2*SUM(Erfassung!$H2:$H2)/5),"F") -> 6.72 | W7: =IF(ISNA(VLOOKUP(W6,'Feiertage und Ferien'!$A:$D,3,FALSE)),IF(OR(WEEKDAY(W6)=1,WEEKDAY(W6)=7),"",Erfassung!$B$2*SUM(Erfassung!$H2:$H2)/5),"F") ->  | X7: =IF(ISNA(VLOOKUP(X6,'Feiertage und Ferien'!$A:$D,3,FALSE)),IF(OR(WEEKDAY(X6)=1,WEEKDAY(X6)=7),"",Erfassung!$B$2*SUM(Erfassung!$H2:$H2)/5),"F") ->  | Y7: =IF(ISNA(VLOOKUP(Y6,'Feiertage und Ferien'!$A:$D,3,FALSE)),IF(OR(WEEKDAY(Y6)=1,WEEKDAY(Y6)=7),"",Erfassung!$B$2*SUM(Erfassung!$H2:$H2)/5),"F") -> 6.72 | Z7: =IF(ISNA(VLOOKUP(Z6,'Feiertage und Ferien'!$A:$D,3,FALSE)),IF(OR(WEEKDAY(Z6)=1,WEEKDAY(Z6)=7),"",Erfassung!$B$2*SUM(Erfassung!$H2:$H2)/5),"F") -> 6.72 | AA7: =IF(ISNA(VLOOKUP(AA6,'Feiertage und Ferien'!$A:$D,3,FALSE)),IF(OR(WEEKDAY(AA6)=1,WEEKDAY(AA6)=7),"",Erfassung!$B$2*SUM(Erfassung!$H2:$H2)/5),"F") -> 6.72 | AB7: =IF(ISNA(VLOOKUP(AB6,'Feiertage und Ferien'!$A:$D,3,FALSE)),IF(OR(WEEKDAY(AB6)=1,WEEKDAY(AB6)=7),"",Erfassung!$B$2*SUM(Erfassung!$H2:$H2)/5),"F") -> 6.72 | AC7: =IF(ISNA(VLOOKUP(AC6,'Feiertage und Ferien'!$A:$D,3,FALSE)),IF(OR(WEEKDAY(AC6)=1,WEEKDAY(AC6)=7),"",Erfassung!$B$2*SUM(Erfassung!$H2:$H2)/5),"F") -> 6.72 | AD7: =IF(ISNA(VLOOKUP(AD6,'Feiertage und Ferien'!$A:$D,3,FALSE)),IF(OR(WEEKDAY(AD6)=1,WEEKDAY(AD6)=7),"",Erfassung!$B$2*SUM(Erfassung!$H2:$H2)/5),"F") ->  | AE7: =IF(ISNA(VLOOKUP(AE6,'Feiertage und Ferien'!$A:$D,3,FALSE)),IF(OR(WEEKDAY(AE6)=1,WEEKDAY(AE6)=7),"",Erfassung!$B$2*SUM(Erfassung!$H2:$H2)/5),"F") ->  | AF7: =IF(ISNA(VLOOKUP(AF6,'Feiertage und Ferien'!$A:$D,3,FALSE)),IF(OR(WEEKDAY(AF6)=1,WEEKDAY(AF6)=7),"",Erfassung!$B$2*SUM(Erfassung!$H2:$H2)/5),"F") ->  | AI7: =Erfassung!H2+20% -> 1 | AJ7: Februar
B8: =IF(B7="F",B7,Arbeitstage!B7) -> F | C8: =IF(C7="F",C7,Arbeitstage!C7) -> F | D8: =IF(D7="F",D7,Arbeitstage!D7) -> F | E8: =IF(E7="F",E7,Arbeitstage!E7) -> F | F8: =IF(F7="F",F7,Arbeitstage!F7) -> F | G8: =IF(G7="F",G7,Arbeitstage!G7) -> F | H8: =IF(H7="F",H7,Arbeitstage!H7) -> F | I8: =IF(I7="F",I7,Arbeitstage!I7) -> F | J8: =IF(J7="F",J7,Arbeitstage!J7) ->  | K8: =IF(K7="F",K7,Arbeitstage!K7) -> 1 | L8: =IF(L7="F",L7,Arbeitstage!L7) -> 1 | M8: =IF(M7="F",M7,Arbeitstage!M7) -> 1 | N8: =IF(N7="F",N7,Arbeitstage!N7) -> 1 | O8: =IF(O7="F",O7,Arbeitstage!O7) -> 1 | P8: =IF(P7="F",P7,Arbeitstage!P7) ->  | Q8: =IF(Q7="F",Q7,Arbeitstage!Q7) ->  | R8: =IF(R7="F",R7,Arbeitstage!R7) -> 1 | S8: =IF(S7="F",S7,Arbeitstage!S7) -> 1 | T8: =IF(T7="F",T7,Arbeitstage!T7) -> 1 | U8: =IF(U7="F",U7,Arbeitstage!U7) -> 1 | V8: =IF(V7="F",V7,Arbeitstage!V7) -> 1 | W8: =IF(W7="F",W7,Arbeitstage!W7) ->  | X8: =IF(X7="F",X7,Arbeitstage!X7) ->  | Y8: =IF(Y7="F",Y7,Arbeitstage!Y7) -> 1 | Z8: =IF(Z7="F",Z7,Arbeitstage!Z7) -> 1 | AA8: =IF(AA7="F",AA7,Arbeitstage!AA7) -> 1 | AB8: =IF(AB7="F",AB7,Arbeitstage!AB7) -> 1 | AC8: =IF(AC7="F",AC7,Arbeitstage!AC7) -> 1 | AD8: =IF(AD7="F",AD7,Arbeitstage!AD7) ->  | AE8: =IF(AE7="F",AE7,Arbeitstage!AE7) ->  | AF8: =IF(AF7="F",AF7,Arbeitstage!AF7) ->  | AG8: =SUM(Erfassung!$D:$D)/12 -> 2.083333333 | AH8: =IF(AG8="","",AG8*Erfassung!B2*SUM(Erfassung!H2:H2)/5) -> 14 | AI8: =SUM(B8:AF8) -> 15 | AJ8: =SUM(B7:AF7) -> 134.4 | AK8: =ROUND(AI8*AI7/5,1)*5 -> 15
B9: =AC6+1 -> 2025-03-01 | C9: =B9+1 -> 45718 | D9: 45719 | E9: 45720 | F9: 45721 | G9: 45722 | H9: 45723 | I9: 45724 | J9: 45725 | K9: 45726 | L9: 45727 | M9: 45728 | N9: 45729 | O9: 45730 | P9: 45731 | Q9: 45732 | R9: 45733 | S9: 45734 | T9: 45735 | U9: 45736 | V9: 45737 | W9: 45738 | X9: 45739 | Y9: 45740 | Z9: 45741 | AA9: 45742 | AB9: 45743 | AC9: 45744 | AD9: 45745 | AE9: 45746 | AF9: 45747
A10: März | B10: =IF(ISNA(VLOOKUP(B9,'Feiertage und Ferien'!$A:$D,3,FALSE)),IF(OR(WEEKDAY(B9)=1,WEEKDAY(B9)=7),"",Erfassung!$B$2*SUM(Erfassung!$I2:$I2)/5),"F") ->  | C10: =IF(ISNA(VLOOKUP(C9,'Feiertage und Ferien'!$A:$D,3,FALSE)),IF(OR(WEEKDAY(C9)=1,WEEKDAY(C9)=7),"",Erfassung!$B$2*SUM(Erfassung!$I2:$I2)/5),"F") ->  | D10: =IF(ISNA(VLOOKUP(D9,'Feiertage und Ferien'!$A:$D,3,FALSE)),IF(OR(WEEKDAY(D9)=1,WEEKDAY(D9)=7),"",Erfassung!$B$2*SUM(Erfassung!$I2:$I2)/5),"F") -> 6.72 | E10: =IF(ISNA(VLOOKUP(E9,'Feiertage und Ferien'!$A:$D,3,FALSE)),IF(OR(WEEKDAY(E9)=1,WEEKDAY(E9)=7),"",Erfassung!$B$2*SUM(Erfassung!$I2:$I2)/5),"F") -> 6.72 | F10: =IF(ISNA(VLOOKUP(F9,'Feiertage und Ferien'!$A:$D,3,FALSE)),IF(OR(WEEKDAY(F9)=1,WEEKDAY(F9)=7),"",Erfassung!$B$2*SUM(Erfassung!$I2:$I2)/5),"F") -> 6.72 | G10: =IF(ISNA(VLOOKUP(G9,'Feiertage und Ferien'!$A:$D,3,FALSE)),IF(OR(WEEKDAY(G9)=1,WEEKDAY(G9)=7),"",Erfassung!$B$2*SUM(Erfassung!$I2:$I2)/5),"F") -> 6.72 | H10: =IF(ISNA(VLOOKUP(H9,'Feiertage und Ferien'!$A:$D,3,FALSE)),IF(OR(WEEKDAY(H9)=1,WEEKDAY(H9)=7),"",Erfassung!$B$2*SUM(Erfassung!$I2:$I2)/5),"F") -> 6.72 | I10: =IF(ISNA(VLOOKUP(I9,'Feiertage und Ferien'!$A:$D,3,FALSE)),IF(OR(WEEKDAY(I9)=1,WEEKDAY(I9)=7),"",Erfassung!$B$2*SUM(Erfassung!$I2:$I2)/5),"F") ->  | J10: =IF(ISNA(VLOOKUP(J9,'Feiertage und Ferien'!$A:$D,3,FALSE)),IF(OR(WEEKDAY(J9)=1,WEEKDAY(J9)=7),"",Erfassung!$B$2*SUM(Erfassung!$I2:$I2)/5),"F") ->  | K10: =IF(ISNA(VLOOKUP(K9,'Feiertage und Ferien'!$A:$D,3,FALSE)),IF(OR(WEEKDAY(K9)=1,WEEKDAY(K9)=7),"",Erfassung!$B$2*SUM(Erfassung!$I2:$I2)/5),"F") -> 6.72 | L10: =IF(ISNA(VLOOKUP(L9,'Feiertage und Ferien'!$A:$D,3,FALSE)),IF(OR(WEEKDAY(L9)=1,WEEKDAY(L9)=7),"",Erfassung!$B$2*SUM(Erfassung!$I2:$I2)/5),"F") -> 6.72 | M10: =IF(ISNA(VLOOKUP(M9,'Feiertage und Ferien'!$A:$D,3,FALSE)),IF(OR(WEEKDAY(M9)=1,WEEKDAY(M9)=7),"",Erfassung!$B$2*SUM(Erfassung!$I2:$I2)/5),"F") -> 6.72 | N10: =IF(ISNA(VLOOKUP(N9,'Feiertage und Ferien'!$A:$D,3,FALSE)),IF(OR(WEEKDAY(N9)=1,WEEKDAY(N9)=7),"",Erfassung!$B$2*SUM(Erfassung!$I2:$I2)/5),"F") -> 6.72 | O10: =IF(ISNA(VLOOKUP(O9,'Feiertage und Ferien'!$A:$D,3,FALSE)),IF(OR(WEEKDAY(O9)=1,WEEKDAY(O9)=7),"",Erfassung!$B$2*SUM(Erfassung!$I2:$I2)/5),"F") -> 6.72 | P10: =IF(ISNA(VLOOKUP(P9,'Feiertage und Ferien'!$A:$D,3,FALSE)),IF(OR(WEEKDAY(P9)=1,WEEKDAY(P9)=7),"",Erfassung!$B$2*SUM(Erfassung!$I2:$I2)/5),"F") ->  | Q10: =IF(ISNA(VLOOKUP(Q9,'Feiertage und Ferien'!$A:$D,3,FALSE)),IF(OR(WEEKDAY(Q9)=1,WEEKDAY(Q9)=7),"",Erfassung!$B$2*SUM(Erfassung!$I2:$I2)/5),"F") ->  | R10: =IF(ISNA(VLOOKUP(R9,'Feiertage und Ferien'!$A:$D,3,FALSE)),IF(OR(WEEKDAY(R9)=1,WEEKDAY(R9)=7),"",Erfassung!$B$2*SUM(Erfassung!$I2:$I2)/5),"F") -> 6.72 | S10: =IF(ISNA(VLOOKUP(S9,'Feiertage und Ferien'!$A:$D,3,FALSE)),IF(OR(WEEKDAY(S9)=1,WEEKDAY(S9)=7),"",Erfassung!$B$2*SUM(Erfassung!$I2:$I2)/5),"F") -> 6.72 | T10: =IF(ISNA(VLOOKUP(T9,'Feiertage und Ferien'!$A:$D,3,FALSE)),IF(OR(WEEKDAY(T9)=1,WEEKDAY(T9)=7),"",Erfassung!$B$2*SUM(Erfassung!$I2:$I2)/5),"F") -> 6.72 | U10: =IF(ISNA(VLOOKUP(U9,'Feiertage und Ferien'!$A:$D,3,FALSE)),IF(OR(WEEKDAY(U9)=1,WEEKDAY(U9)=7),"",Erfassung!$B$2*SUM(Erfassung!$I2:$I2)/5),"F") -> 6.72 | V10: =IF(ISNA(VLOOKUP(V9,'Feiertage und Ferien'!$A:$D,3,FALSE)),IF(OR(WEEKDAY(V9)=1,WEEKDAY(V9)=7),"",Erfassung!$B$2*SUM(Erfassung!$I2:$I2)/5),"F") -> 6.72 | W10: =IF(ISNA(VLOOKUP(W9,'Feiertage und Ferien'!$A:$D,3,FALSE)),IF(OR(WEEKDAY(W9)=1,WEEKDAY(W9)=7),"",Erfassung!$B$2*SUM(Erfassung!$I2:$I2)/5),"F") ->  | X10: =IF(ISNA(VLOOKUP(X9,'Feiertage und Ferien'!$A:$D,3,FALSE)),IF(OR(WEEKDAY(X9)=1,WEEKDAY(X9)=7),"",Erfassung!$B$2*SUM(Erfassung!$I2:$I2)/5),"F") ->  | Y10: =IF(ISNA(VLOOKUP(Y9,'Feiertage und Ferien'!$A:$D,3,FALSE)),IF(OR(WEEKDAY(Y9)=1,WEEKDAY(Y9)=7),"",Erfassung!$B$2*SUM(Erfassung!$I2:$I2)/5),"F") -> 6.72 | Z10: =IF(ISNA(VLOOKUP(Z9,'Feiertage und Ferien'!$A:$D,3,FALSE)),IF(OR(WEEKDAY(Z9)=1,WEEKDAY(Z9)=7),"",Erfassung!$B$2*SUM(Erfassung!$I2:$I2)/5),"F") -> 6.72 | AA10: =IF(ISNA(VLOOKUP(AA9,'Feiertage und Ferien'!$A:$D,3,FALSE)),IF(OR(WEEKDAY(AA9)=1,WEEKDAY(AA9)=7),"",Erfassung!$B$2*SUM(Erfassung!$I2:$I2)/5),"F") -> 6.72 | AB10: =IF(ISNA(VLOOKUP(AB9,'Feiertage und Ferien'!$A:$D,3,FALSE)),IF(OR(WEEKDAY(AB9)=1,WEEKDAY(AB9)=7),"",Erfassung!$B$2*SUM(Erfassung!$I2:$I2)/5),"F") -> 6.72 | AC10: =IF(ISNA(VLOOKUP(AC9,'Feiertage und Ferien'!$A:$D,3,FALSE)),IF(OR(WEEKDAY(AC9)=1,WEEKDAY(AC9)=7),"",Erfassung!$B$2*SUM(Erfassung!$I2:$I2)/5),"F") -> 6.72 | AD10: =IF(ISNA(VLOOKUP(AD9,'Feiertage und Ferien'!$A:$D,3,FALSE)),IF(OR(WEEKDAY(AD9)=1,WEEKDAY(AD9)=7),"",Erfassung!$B$2*SUM(Erfassung!$I2:$I2)/5),"F") ->  | AE10: =IF(ISNA(VLOOKUP(AE9,'Feiertage und Ferien'!$A:$D,3,FALSE)),IF(OR(WEEKDAY(AE9)=1,WEEKDAY(AE9)=7),"",Erfassung!$B$2*SUM(Erfassung!$I2:$I2)/5),"F") ->  | AF10: =IF(ISNA(VLOOKUP(AF9,'Feiertage und Ferien'!$A:$D,3,FALSE)),IF(OR(WEEKDAY(AF9)=1,WEEKDAY(AF9)=7),"",Erfassung!$B$2*SUM(Erfassung!$I2:$I2)/5),"F") -> 6.72 | AI10: =Erfassung!I2+20% -> 1 | AJ10: März
B11: =IF(B10="F",B10,Arbeitstage!B9) ->  | C11: =IF(C10="F",C10,Arbeitstage!C9) ->  | D11: =IF(D10="F",D10,Arbeitstage!D9) -> 1 | E11: =IF(E10="F",E10,Arbeitstage!E9) -> 1 | F11: =IF(F10="F",F10,Arbeitstage!F9) -> 1 | G11: =IF(G10="F",G10,Arbeitstage!G9) -> 1 | H11: =IF(H10="F",H10,Arbeitstage!H9) -> 1 | I11: =IF(I10="F",I10,Arbeitstage!I9) ->  | J11: =IF(J10="F",J10,Arbeitstage!J9) ->  | K11: =IF(K10="F",K10,Arbeitstage!K9) -> 1 | L11: =IF(L10="F",L10,Arbeitstage!L9) -> 1 | M11: =IF(M10="F",M10,Arbeitstage!M9) -> 1 | N11: =IF(N10="F",N10,Arbeitstage!N9) -> 1 | O11: =IF(O10="F",O10,Arbeitstage!O9) -> 1 | P11: =IF(P10="F",P10,Arbeitstage!P9) ->  | Q11: =IF(Q10="F",Q10,Arbeitstage!Q9) ->  | R11: =IF(R10="F",R10,Arbeitstage!R9) -> 1 | S11: =IF(S10="F",S10,Arbeitstage!S9) -> 1 | T11: =IF(T10="F",T10,Arbeitstage!T9) -> 1 | U11: =IF(U10="F",U10,Arbeitstage!U9) -> 1 | V11: =IF(V10="F",V10,Arbeitstage!V9) -> 1 | W11: =IF(W10="F",W10,Arbeitstage!W9) ->  | X11: =IF(X10="F",X10,Arbeitstage!X9) ->  | Y11: =IF(Y10="F",Y10,Arbeitstage!Y9) -> 1 | Z11: =IF(Z10="F",Z10,Arbeitstage!Z9) -> 1 | AA11: =IF(AA10="F",AA10,Arbeitstage!AA9) -> 1 | AB11: =IF(AB10="F",AB10,Arbeitstage!AB9) -> 1 | AC11: =IF(AC10="F",AC10,Arbeitstage!AC9) -> 1 | AD11: =IF(AD10="F",AD10,Arbeitstage!AD9) ->  | AE11: =IF(AE10="F",AE10,Arbeitstage!AE9) ->  | AF11: =IF(AF10="F",AF10,Arbeitstage!AF9) -> 1 | AG11: =SUM(Erfassung!$D:$D)/12 -> 2.083333333 | AH11: =IF(AG11="","",AG11*Erfassung!B2*SUM(Erfassung!I2:I2)/5) -> 14 | AI11: =SUM(B11:AF11) -> 21 | AJ11: =SUM(B10:AF10) -> 141.12 | AK11: =ROUND(AI11*AI10/5,1)*5 -> 21
B12: =AF9+1 -> 2025-04-01 | C12: =B12+1 -> 45749 | D12: 45750 | E12: 45751 | F12: 45752 | G12: 45753 | H12: 45754 | I12: 45755 | J12: 45756 | K12: 45757 | L12: 45758 | M12: 45759 | N12: 45760 | O12: 45761 | P12: 45762 | Q12: 45763 | R12: 45764 | S12: 45765 | T12: 45766 | U12: 45767 | V12: 45768 | W12: 45769 | X12: 45770 | Y12: 45771 | Z12: 45772 | AA12: 45773 | AB12: 45774 | AC12: 45775 | AD12: 45776 | AE12: 45777
A13: April | B13: =IF(ISNA(VLOOKUP(B12,'Feiertage und Ferien'!$A:$D,3,FALSE)),IF(OR(WEEKDAY(B12)=1,WEEKDAY(B12)=7),"",Erfassung!$B$2*SUM(Erfassung!$J2:$J2)/5),"F") -> 6.72 | C13: =IF(ISNA(VLOOKUP(C12,'Feiertage und Ferien'!$A:$D,3,FALSE)),IF(OR(WEEKDAY(C12)=1,WEEKDAY(C12)=7),"",Erfassung!$B$2*SUM(Erfassung!$J2:$J2)/5),"F") -> 6.72 | D13: =IF(ISNA(VLOOKUP(D12,'Feiertage und Ferien'!$A:$D,3,FALSE)),IF(OR(WEEKDAY(D12)=1,WEEKDAY(D12)=7),"",Erfassung!$B$2*SUM(Erfassung!$J2:$J2)/5),"F") -> 6.72 | E13: =IF(ISNA(VLOOKUP(E12,'Feiertage und Ferien'!$A:$D,3,FALSE)),IF(OR(WEEKDAY(E12)=1,WEEKDAY(E12)=7),"",Erfassung!$B$2*SUM(Erfassung!$J2:$J2)/5),"F") -> 6.72 | F13: =IF(ISNA(VLOOKUP(F12,'Feiertage und Ferien'!$A:$D,3,FALSE)),IF(OR(WEEKDAY(F12)=1,WEEKDAY(F12)=7),"",Erfassung!$B$2*SUM(Erfassung!$J2:$J2)/5),"F") ->  | G13: =IF(ISNA(VLOOKUP(G12,'Feiertage und Ferien'!$A:$D,3,FALSE)),IF(OR(WEEKDAY(G12)=1,WEEKDAY(G12)=7),"",Erfassung!$B$2*SUM(Erfassung!$J2:$J2)/5),"F") ->  | H13: =IF(ISNA(VLOOKUP(H12,'Feiertage und Ferien'!$A:$D,3,FALSE)),IF(OR(WEEKDAY(H12)=1,WEEKDAY(H12)=7),"",Erfassung!$B$2*SUM(Erfassung!$J2:$J2)/5),"F") -> 6.72 | I13: =IF(ISNA(VLOOKUP(I12,'Feiertage und Ferien'!$A:$D,3,FALSE)),IF(OR(WEEKDAY(I12)=1,WEEKDAY(I12)=7),"",Erfassung!$B$2*SUM(Erfassung!$J2:$J2)/5),"F") -> 6.72 | J13: =IF(ISNA(VLOOKUP(J12,'Feiertage und Ferien'!$A:$D,3,FALSE)),IF(OR(WEEKDAY(J12)=1,WEEKDAY(J12)=7),"",Erfassung!$B$2*SUM(Erfassung!$J2:$J2)/5),"F") -> 6.72 | K13: =IF(ISNA(VLOOKUP(K12,'Feiertage und Ferien'!$A:$D,3,FALSE)),IF(OR(WEEKDAY(K12)=1,WEEKDAY(K12)=7),"",Erfassung!$B$2*SUM(Erfassung!$J2:$J2)/5),"F") -> 6.72 | L13: =IF(ISNA(VLOOKUP(L12,'Feiertage und Ferien'!$A:$D,3,FALSE)),IF(OR(WEEKDAY(L12)=1,WEEKDAY(L12)=7),"",Erfassung!$B$2*SUM(Erfassung!$J2:$J2)/5),"F") -> 6.72 | M13: =IF(ISNA(VLOOKUP(M12,'Feiertage und Ferien'!$A:$D,3,FALSE)),IF(OR(WEEKDAY(M12)=1,WEEKDAY(M12)=7),"",Erfassung!$B$2*SUM(Erfassung!$J2:$J2)/5),"F") ->  | N13: =IF(ISNA(VLOOKUP(N12,'Feiertage und Ferien'!$A:$D,3,FALSE)),IF(OR(WEEKDAY(N12)=1,WEEKDAY(N12)=7),"",Erfassung!$B$2*SUM(Erfassung!$J2:$J2)/5),"F") ->  | O13: =IF(ISNA(VLOOKUP(O12,'Feiertage und Ferien'!$A:$D,3,FALSE)),IF(OR(WEEKDAY(O12)=1,WEEKDAY(O12)=7),"",Erfassung!$B$2*SUM(Erfassung!$J2:$J2)/5),"F") -> 6.72 | P13: =IF(ISNA(VLOOKUP(P12,'Feiertage und Ferien'!$A:$D,3,FALSE)),IF(OR(WEEKDAY(P12)=1,WEEKDAY(P12)=7),"",Erfassung!$B$2*SUM(Erfassung!$J2:$J2)/5),"F") -> 6.72 | Q13: =IF(ISNA(VLOOKUP(Q12,'Feiertage und Ferien'!$A:$D,3,FALSE)),IF(OR(WEEKDAY(Q12)=1,WEEKDAY(Q12)=7),"",Erfassung!$B$2*SUM(Erfassung!$J2:$J2)/5),"F") -> 6.72 | R13: =IF(ISNA(VLOOKUP(R12,'Feiertage und Ferien'!$A:$D,3,FALSE)),IF(OR(WEEKDAY(R12)=1,WEEKDAY(R12)=7),"",Erfassung!$B$2*SUM(Erfassung!$J2:$J2)/5),"F") -> 6.72 | S13: =IF(ISNA(VLOOKUP(S12,'Feiertage und Ferien'!$A:$D,3,FALSE)),IF(OR(WEEKDAY(S12)=1,WEEKDAY(S12)=7),"",Erfassung!$B$2*SUM(Erfassung!$J2:$J2)/5),"F") -> F | T13: =IF(ISNA(VLOOKUP(T12,'Feiertage und Ferien'!$A:$D,3,FALSE)),IF(OR(WEEKDAY(T12)=1,WEEKDAY(T12)=7),"",Erfassung!$B$2*SUM(Erfassung!$J2:$J2)/5),"F") ->  | U13: =IF(ISNA(VLOOKUP(U12,'Feiertage und Ferien'!$A:$D,3,FALSE)),IF(OR(WEEKDAY(U12)=1,WEEKDAY(U12)=7),"",Erfassung!$B$2*SUM(Erfassung!$J2:$J2)/5),"F") ->  | V13: =IF(ISNA(VLOOKUP(V12,'Feiertage und Ferien'!$A:$D,3,FALSE)),IF(OR(WEEKDAY(V12)=1,WEEKDAY(V12)=7),"",Erfassung!$B$2*SUM(Erfassung!$J2:$J2)/5),"F") -> F | W13: =IF(ISNA(VLOOKUP(W12,'Feiertage und Ferien'!$A:$D,3,FALSE)),IF(OR(WEEKDAY(W12)=1,WEEKDAY(W12)=7),"",Erfassung!$B$2*SUM(Erfassung!$J2:$J2)/5),"F") -> 6.72 | X13: =IF(ISNA(VLOOKUP(X12,'Feiertage und Ferien'!$A:$D,3,FALSE)),IF(OR(WEEKDAY(X12)=1,WEEKDAY(X12)=7),"",Erfassung!$B$2*SUM(Erfassung!$J2:$J2)/5),"F") -> 6.72 | Y13: =IF(ISNA(VLOOKUP(Y12,'Feiertage und Ferien'!$A:$D,3,FALSE)),IF(OR(WEEKDAY(Y12)=1,WEEKDAY(Y12)=7),"",Erfassung!$B$2*SUM(Erfassung!$J2:$J2)/5),"F") -> 6.72 | Z13: =IF(ISNA(VLOOKUP(Z12,'Feiertage und Ferien'!$A:$D,3,FALSE)),IF(OR(WEEKDAY(Z12)=1,WEEKDAY(Z12)=7),"",Erfassung!$B$2*SUM(Erfassung!$J2:$J2)/5),"F") -> 6.72 | AA13: =IF(ISNA(VLOOKUP(AA12,'Feiertage und Ferien'!$A:$D,3,FALSE)),IF(OR(WEEKDAY(AA12)=1,WEEKDAY(AA12)=7),"",Erfassung!$B$2*SUM(Erfassung!$J2:$J2)/5),"F") ->  | AB13: =IF(ISNA(VLOOKUP(AB12,'Feiertage und Ferien'!$A:$D,3,FALSE)),IF(OR(WEEKDAY(AB12)=1,WEEKDAY(AB12)=7),"",Erfassung!$B$2*SUM(Erfassung!$J2:$J2)/5),"F") ->  | AC13: =IF(ISNA(VLOOKUP(AC12,'Feiertage und Ferien'!$A:$D,3,FALSE)),IF(OR(WEEKDAY(AC12)=1,WEEKDAY(AC12)=7),"",Erfassung!$B$2*SUM(Erfassung!$J2:$J2)/5),"F") -> 6.72 | AD13: =IF(ISNA(VLOOKUP(AD12,'Feiertage und Ferien'!$A:$D,3,FALSE)),IF(OR(WEEKDAY(AD12)=1,WEEKDAY(AD12)=7),"",Erfassung!$B$2*SUM(Erfassung!$J2:$J2)/5),"F") -> 6.72 | AE13: =IF(ISNA(VLOOKUP(AE12,'Feiertage und Ferien'!$A:$D,3,FALSE)),IF(OR(WEEKDAY(AE12)=1,WEEKDAY(AE12)=7),"",Erfassung!$B$2*SUM(Erfassung!$J2:$J2)/5),"F") -> 6.72 | AF13: =IF(ISNA(VLOOKUP(AF12,'Feiertage und Ferien'!$A:$D,3,FALSE)),IF(OR(WEEKDAY(AF12)=1,WEEKDAY(AF12)=7),"",Erfassung!$B$2*SUM(Erfassung!$J2:$J2)/5),"F") ->  | AI13: =Erfassung!J2+20% -> 1 | AJ13: April
B14: =IF(B13="F",B13,Arbeitstage!B11) -> 1 | C14: =IF(C13="F",C13,Arbeitstage!C11) -> 1 | D14: =IF(D13="F",D13,Arbeitstage!D11) -> 1 | E14: =IF(E13="F",E13,Arbeitstage!E11) -> 1 | F14: =IF(F13="F",F13,Arbeitstage!F11) ->  | G14: =IF(G13="F",G13,Arbeitstage!G11) ->  | H14: =IF(H13="F",H13,Arbeitstage!H11) -> 1 | I14: =IF(I13="F",I13,Arbeitstage!I11) -> 1 | J14: =IF(J13="F",J13,Arbeitstage!J11) -> 1 | K14: =IF(K13="F",K13,Arbeitstage!K11) -> 1 | L14: =IF(L13="F",L13,Arbeitstage!L11) -> 1 | M14: =IF(M13="F",M13,Arbeitstage!M11) ->  | N14: =IF(N13="F",N13,Arbeitstage!N11) ->  | O14: =IF(O13="F",O13,Arbeitstage!O11) -> 1 | P14: =IF(P13="F",P13,Arbeitstage!P11) -> 1 | Q14: =IF(Q13="F",Q13,Arbeitstage!Q11) -> 1 | R14: =IF(R13="F",R13,Arbeitstage!R11) -> 1 | S14: =IF(S13="F",S13,Arbeitstage!S11) -> F | T14: =IF(T13="F",T13,Arbeitstage!T11) ->  | U14: =IF(U13="F",U13,Arbeitstage!U11) ->  | V14: =IF(V13="F",V13,Arbeitstage!V11) -> F | W14: =IF(W13="F",W13,Arbeitstage!W11) -> 1 | X14: =IF(X13="F",X13,Arbeitstage!X11) -> 1 | Y14: =IF(Y13="F",Y13,Arbeitstage!Y11) -> 1 | Z14: =IF(Z13="F",Z13,Arbeitstage!Z11) -> 1 | AA14: =IF(AA13="F",AA13,Arbeitstage!AA11) ->  | AB14: =IF(AB13="F",AB13,Arbeitstage!AB11) ->  | AC14: =IF(AC13="F",AC13,Arbeitstage!AC11) -> 1 | AD14: =IF(AD13="F",AD13,Arbeitstage!AD11) -> 1 | AE14: =IF(AE13="F",AE13,Arbeitstage!AE11) -> 1 | AF14: =IF(AF13="F",AF13,Arbeitstage!AF11) ->  | AG14: =SUM(Erfassung!$D:$D)/12 -> 2.083333333 | AH14: =IF(AG14="","",AG14*Erfassung!B2*SUM(Erfassung!J2:J2)/5) -> 14 | AI14: =SUM(B14:AF14) -> 20 | AJ14: =SUM(B13:AF13) -> 134.4 | AK14: =ROUND(AI14*AI13/5,1)*5 -> 20
B15: =AE12+1 -> 45778 | C15: =B15+1 -> 45779 | D15: 45780 | E15: 45781 | F15: 45782 | G15: 45783 | H15: 45784 | I15: 45785 | J15: 45786 | K15: 45787 | L15: 45788 | M15: 45789 | N15: 45790 | O15: 45791 | P15: 45792 | Q15: 45793 | R15: 45794 | S15: 45795 | T15: 45796 | U15: 45797 | V15: 45798 | W15: 45799 | X15: 45800 | Y15: 45801 | Z15: 45802 | AA15: 45803 | AB15: 45804 | AC15: 45805 | AD15: 45806 | AE15: 45807 | AF15: 45808
A16: Mai | B16: =IF(ISNA(VLOOKUP(B15,'Feiertage und Ferien'!$A:$D,3,FALSE)),IF(OR(WEEKDAY(B15)=1,WEEKDAY(B15)=7),"",Erfassung!$B$2*SUM(Erfassung!$K2:$K2)/5),"F") -> 6.72 | C16: =IF(ISNA(VLOOKUP(C15,'Feiertage und Ferien'!$A:$D,3,FALSE)),IF(OR(WEEKDAY(C15)=1,WEEKDAY(C15)=7),"",Erfassung!$B$2*SUM(Erfassung!$K2:$K2)/5),"F") -> 6.72 | D16: =IF(ISNA(VLOOKUP(D15,'Feiertage und Ferien'!$A:$D,3,FALSE)),IF(OR(WEEKDAY(D15)=1,WEEKDAY(D15)=7),"",Erfassung!$B$2*SUM(Erfassung!$K2:$K2)/5),"F") ->  | E16: =IF(ISNA(VLOOKUP(E15,'Feiertage und Ferien'!$A:$D,3,FALSE)),IF(OR(WEEKDAY(E15)=1,WEEKDAY(E15)=7),"",Erfassung!$B$2*SUM(Erfassung!$K2:$K2)/5),"F") ->  | F16: =IF(ISNA(VLOOKUP(F15,'Feiertage und Ferien'!$A:$D,3,FALSE)),IF(OR(WEEKDAY(F15)=1,WEEKDAY(F15)=7),"",Erfassung!$B$2*SUM(Erfassung!$K2:$K2)/5),"F") -> 6.72 | G16: =IF(ISNA(VLOOKUP(G15,'Feiertage und Ferien'!$A:$D,3,FALSE)),IF(OR(WEEKDAY(G15)=1,WEEKDAY(G15)=7),"",Erfassung!$B$2*SUM(Erfassung!$K2:$K2)/5),"F") -> 6.72 | H16: =IF(ISNA(VLOOKUP(H15,'Feiertage und Ferien'!$A:$D,3,FALSE)),IF(OR(WEEKDAY(H15)=1,WEEKDAY(H15)=7),"",Erfassung!$B$2*SUM(Erfassung!$K2:$K2)/5),"F") -> 6.72 | I16: =IF(ISNA(VLOOKUP(I15,'Feiertage und Ferien'!$A:$D,3,FALSE)),IF(OR(WEEKDAY(I15)=1,WEEKDAY(I15)=7),"",Erfassung!$B$2*SUM(Erfassung!$K2:$K2)/5),"F") -> 6.72 | J16: =IF(ISNA(VLOOKUP(J15,'Feiertage und Ferien'!$A:$D,3,FALSE)),IF(OR(WEEKDAY(J15)=1,WEEKDAY(J15)=7),"",Erfassung!$B$2*SUM(Erfassung!$K2:$K2)/5),"F") -> 6.72 | K16: =IF(ISNA(VLOOKUP(K15,'Feiertage und Ferien'!$A:$D,3,FALSE)),IF(OR(WEEKDAY(K15)=1,WEEKDAY(K15)=7),"",Erfassung!$B$2*SUM(Erfassung!$K2:$K2)/5),"F") ->  | L16: =IF(ISNA(VLOOKUP(L15,'Feiertage und Ferien'!$A:$D,3,FALSE)),IF(OR(WEEKDAY(L15)=1,WEEKDAY(L15)=7),"",Erfassung!$B$2*SUM(Erfassung!$K2:$K2)/5),"F") ->  | M16: =IF(ISNA(VLOOKUP(M15,'Feiertage und Ferien'!$A:$D,3,FALSE)),IF(OR(WEEKDAY(M15)=1,WEEKDAY(M15)=7),"",Erfassung!$B$2*SUM(Erfassung!$K2:$K2)/5),"F") -> 6.72 | N16: =IF(ISNA(VLOOKUP(N15,'Feiertage und Ferien'!$A:$D,3,FALSE)),IF(OR(WEEKDAY(N15)=1,WEEKDAY(N15)=7),"",Erfassung!$B$2*SUM(Erfassung!$K2:$K2)/5),"F") -> 6.72 | O16: =IF(ISNA(VLOOKUP(O15,'Feiertage und Ferien'!$A:$D,3,FALSE)),IF(OR(WEEKDAY(O15)=1,WEEKDAY(O15)=7),"",Erfassung!$B$2*SUM(Erfassung!$K2:$K2)/5),"F") -> 6.72 | P16: =IF(ISNA(VLOOKUP(P15,'Feiertage und Ferien'!$A:$D,3,FALSE)),IF(OR(WEEKDAY(P15)=1,WEEKDAY(P15)=7),"",Erfassung!$B$2*SUM(Erfassung!$K2:$K2)/5),"F") -> 6.72 | Q16: =IF(ISNA(VLOOKUP(Q15,'Feiertage und Ferien'!$A:$D,3,FALSE)),IF(OR(WEEKDAY(Q15)=1,WEEKDAY(Q15)=7),"",Erfassung!$B$2*SUM(Erfassung!$K2:$K2)/5),"F") -> 6.72 | R16: =IF(ISNA(VLOOKUP(R15,'Feiertage und Ferien'!$A:$D,3,FALSE)),IF(OR(WEEKDAY(R15)=1,WEEKDAY(R15)=7),"",Erfassung!$B$2*SUM(Erfassung!$K2:$K2)/5),"F") ->  | S16: =IF(ISNA(VLOOKUP(S15,'Feiertage und Ferien'!$A:$D,3,FALSE)),IF(OR(WEEKDAY(S15)=1,WEEKDAY(S15)=7),"",Erfassung!$B$2*SUM(Erfassung!$K2:$K2)/5),"F") ->  | T16: =IF(ISNA(VLOOKUP(T15,'Feiertage und Ferien'!$A:$D,3,FALSE)),IF(OR(WEEKDAY(T15)=1,WEEKDAY(T15)=7),"",Erfassung!$B$2*SUM(Erfassung!$K2:$K2)/5),"F") -> 6.72 | U16: =IF(ISNA(VLOOKUP(U15,'Feiertage und Ferien'!$A:$D,3,FALSE)),IF(OR(WEEKDAY(U15)=1,WEEKDAY(U15)=7),"",Erfassung!$B$2*SUM(Erfassung!$K2:$K2)/5),"F") -> 6.72 | V16: =IF(ISNA(VLOOKUP(V15,'Feiertage und Ferien'!$A:$D,3,FALSE)),IF(OR(WEEKDAY(V15)=1,WEEKDAY(V15)=7),"",Erfassung!$B$2*SUM(Erfassung!$K2:$K2)/5),"F") -> 6.72 | W16: =IF(ISNA(VLOOKUP(W15,'Feiertage und Ferien'!$A:$D,3,FALSE)),IF(OR(WEEKDAY(W15)=1,WEEKDAY(W15)=7),"",Erfassung!$B$2*SUM(Erfassung!$K2:$K2)/5),"F") -> 6.72 | X16: =IF(ISNA(VLOOKUP(X15,'Feiertage und Ferien'!$A:$D,3,FALSE)),IF(OR(WEEKDAY(X15)=1,WEEKDAY(X15)=7),"",Erfassung!$B$2*SUM(Erfassung!$K2:$K2)/5),"F") -> 6.72 | Y16: =IF(ISNA(VLOOKUP(Y15,'Feiertage und Ferien'!$A:$D,3,FALSE)),IF(OR(WEEKDAY(Y15)=1,WEEKDAY(Y15)=7),"",Erfassung!$B$2*SUM(Erfassung!$K2:$K2)/5),"F") ->  | Z16: =IF(ISNA(VLOOKUP(Z15,'Feiertage und Ferien'!$A:$D,3,FALSE)),IF(OR(WEEKDAY(Z15)=1,WEEKDAY(Z15)=7),"",Erfassung!$B$2*SUM(Erfassung!$K2:$K2)/5),"F") ->  | AA16: =IF(ISNA(VLOOKUP(AA15,'Feiertage und Ferien'!$A:$D,3,FALSE)),IF(OR(WEEKDAY(AA15)=1,WEEKDAY(AA15)=7),"",Erfassung!$B$2*SUM(Erfassung!$K2:$K2)/5),"F") -> 6.72 | AB16: =IF(ISNA(VLOOKUP(AB15,'Feiertage und Ferien'!$A:$D,3,FALSE)),IF(OR(WEEKDAY(AB15)=1,WEEKDAY(AB15)=7),"",Erfassung!$B$2*SUM(Erfassung!$K2:$K2)/5),"F") -> 6.72 | AC16: =IF(ISNA(VLOOKUP(AC15,'Feiertage und Ferien'!$A:$D,3,FALSE)),IF(OR(WEEKDAY(AC15)=1,WEEKDAY(AC15)=7),"",Erfassung!$B$2*SUM(Erfassung!$K2:$K2)/5),"F") -> 6.72 | AD16: =IF(ISNA(VLOOKUP(AD15,'Feiertage und Ferien'!$A:$D,3,FALSE)),IF(OR(WEEKDAY(AD15)=1,WEEKDAY(AD15)=7),"",Erfassung!$B$2*SUM(Erfassung!$K2:$K2)/5),"F") -> F | AE16: =IF(ISNA(VLOOKUP(AE15,'Feiertage und Ferien'!$A:$D,3,FALSE)),IF(OR(WEEKDAY(AE15)=1,WEEKDAY(AE15)=7),"",Erfassung!$B$2*SUM(Erfassung!$K2:$K2)/5),"F") -> 6.72 | AF16: =IF(ISNA(VLOOKUP(AF15,'Feiertage und Ferien'!$A:$D,3,FALSE)),IF(OR(WEEKDAY(AF15)=1,WEEKDAY(AF15)=7),"",Erfassung!$B$2*SUM(Erfassung!$K2:$K2)/5),"F") ->  | AI16: =Erfassung!K2+20% -> 1 | AJ16: Mai
B17: =IF(B16="F",B16,Arbeitstage!B13) -> 1 | C17: =IF(C16="F",C16,Arbeitstage!C13) -> 1 | D17: =IF(D16="F",D16,Arbeitstage!D13) -> F | E17: =IF(E16="F",E16,Arbeitstage!E13) -> F | F17: =IF(F16="F",F16,Arbeitstage!F13) -> F | G17: =IF(G16="F",G16,Arbeitstage!G13) -> F | H17: =IF(H16="F",H16,Arbeitstage!H13) -> F | I17: =IF(I16="F",I16,Arbeitstage!I13) -> F | J17: =IF(J16="F",J16,Arbeitstage!J13) -> F | K17: =IF(K16="F",K16,Arbeitstage!K13) -> F | L17: =IF(L16="F",L16,Arbeitstage!L13) -> F | M17: =IF(M16="F",M16,Arbeitstage!M13) -> F | N17: =IF(N16="F",N16,Arbeitstage!N13) -> F | O17: =IF(O16="F",O16,Arbeitstage!O13) -> F | P17: =IF(P16="F",P16,Arbeitstage!P13) -> F | Q17: =IF(Q16="F",Q16,Arbeitstage!Q13) -> F | R17: =IF(R16="F",R16,Arbeitstage!R13) -> F | S17: =IF(S16="F",S16,Arbeitstage!S13) ->  | T17: =IF(T16="F",T16,Arbeitstage!T13) -> 1 | U17: =IF(U16="F",U16,Arbeitstage!U13) -> 1 | V17: =IF(V16="F",V16,Arbeitstage!V13) -> 1 | W17: =IF(W16="F",W16,Arbeitstage!W13) -> 1 | X17: =IF(X16="F",X16,Arbeitstage!X13) -> 1 | Y17: =IF(Y16="F",Y16,Arbeitstage!Y13) ->  | Z17: =IF(Z16="F",Z16,Arbeitstage!Z13) ->  | AA17: =IF(AA16="F",AA16,Arbeitstage!AA13) -> 1 | AB17: =IF(AB16="F",AB16,Arbeitstage!AB13) -> 1 | AC17: =IF(AC16="F",AC16,Arbeitstage!AC13) -> 1 | AD17: =IF(AD16="F",AD16,Arbeitstage!AD13) -> F | AE17: =IF(AE16="F",AE16,Arbeitstage!AE13) -> 1 | AF17: =IF(AF16="F",AF16,Arbeitstage!AF13) ->  | AG17: =SUM(Erfassung!$D:$D)/12 -> 2.083333333 | AH17: =IF(AG17="","",AG17*Erfassung!B2*SUM(Erfassung!K2:K2)/5) -> 14 | AI17: =SUM(B17:AF17) -> 11 | AJ17: =SUM(B16:AF16) -> 141.12 | AK17: =ROUND(AI17*AI16/5,1)*5 -> 11
B18: =AF15+1 -> 2025-06-01 | C18: =B18+1 -> 2025-06-02 | D18: 2025-06-03 | E18: 2025-06-04 | F18: 2025-06-05 | G18: 2025-06-06 | H18: 2025-06-07 | I18: 2025-06-08 | J18: 2025-06-09 | K18: 2025-06-10 | L18: 2025-06-11 | M18: 2025-06-12 | N18: 2025-06-13 | O18: 2025-06-14 | P18: 2025-06-15 | Q18: 2025-06-16 | R18: 2025-06-17 | S18: 2025-06-18 | T18: 2025-06-19 | U18: 2025-06-20 | V18: 2025-06-21 | W18: 2025-06-22 | X18: 2025-06-23 | Y18: 2025-06-24 | Z18: 2025-06-25 | AA18: 2025-06-26 | AB18: 2025-06-27 | AC18: 2025-06-28 | AD18: 2025-06-29 | AE18: 2025-06-30
A19: Juni | B19: =IF(ISNA(VLOOKUP(B18,'Feiertage und Ferien'!$A:$D,3,FALSE)),IF(OR(WEEKDAY(B18)=1,WEEKDAY(B18)=7),"",Erfassung!$B$2*SUM(Erfassung!$L2:$L2)/5),"F") ->  | C19: =IF(ISNA(VLOOKUP(C18,'Feiertage und Ferien'!$A:$D,3,FALSE)),IF(OR(WEEKDAY(C18)=1,WEEKDAY(C18)=7),"",Erfassung!$B$2*SUM(Erfassung!$L2:$L2)/5),"F") -> 6.72 | D19: =IF(ISNA(VLOOKUP(D18,'Feiertage und Ferien'!$A:$D,3,FALSE)),IF(OR(WEEKDAY(D18)=1,WEEKDAY(D18)=7),"",Erfassung!$B$2*SUM(Erfassung!$L2:$L2)/5),"F") -> 6.72 | E19: =IF(ISNA(VLOOKUP(E18,'Feiertage und Ferien'!$A:$D,3,FALSE)),IF(OR(WEEKDAY(E18)=1,WEEKDAY(E18)=7),"",Erfassung!$B$2*SUM(Erfassung!$L2:$L2)/5),"F") -> 6.72 | F19: =IF(ISNA(VLOOKUP(F18,'Feiertage und Ferien'!$A:$D,3,FALSE)),IF(OR(WEEKDAY(F18)=1,WEEKDAY(F18)=7),"",Erfassung!$B$2*SUM(Erfassung!$L2:$L2)/5),"F") -> 6.72 | G19: =IF(ISNA(VLOOKUP(G18,'Feiertage und Ferien'!$A:$D,3,FALSE)),IF(OR(WEEKDAY(G18)=1,WEEKDAY(G18)=7),"",Erfassung!$B$2*SUM(Erfassung!$L2:$L2)/5),"F") -> 6.72 | H19: =IF(ISNA(VLOOKUP(H18,'Feiertage und Ferien'!$A:$D,3,FALSE)),IF(OR(WEEKDAY(H18)=1,WEEKDAY(H18)=7),"",Erfassung!$B$2*SUM(Erfassung!$L2:$L2)/5),"F") ->  | I19: =IF(ISNA(VLOOKUP(I18,'Feiertage und Ferien'!$A:$D,3,FALSE)),IF(OR(WEEKDAY(I18)=1,WEEKDAY(I18)=7),"",Erfassung!$B$2*SUM(Erfassung!$L2:$L2)/5),"F") ->  | J19: =IF(ISNA(VLOOKUP(J18,'Feiertage und Ferien'!$A:$D,3,FALSE)),IF(OR(WEEKDAY(J18)=1,WEEKDAY(J18)=7),"",Erfassung!$B$2*SUM(Erfassung!$L2:$L2)/5),"F") -> F | K19: =IF(ISNA(VLOOKUP(K18,'Feiertage und Ferien'!$A:$D,3,FALSE)),IF(OR(WEEKDAY(K18)=1,WEEKDAY(K18)=7),"",Erfassung!$B$2*SUM(Erfassung!$L2:$L2)/5),"F") -> 6.72 | L19: =IF(ISNA(VLOOKUP(L18,'Feiertage und Ferien'!$A:$D,3,FALSE)),IF(OR(WEEKDAY(L18)=1,WEEKDAY(L18)=7),"",Erfassung!$B$2*SUM(Erfassung!$L2:$L2)/5),"F") -> 6.72 | M19: =IF(ISNA(VLOOKUP(M18,'Feiertage und Ferien'!$A:$D,3,FALSE)),IF(OR(WEEKDAY(M18)=1,WEEKDAY(M18)=7),"",Erfassung!$B$2*SUM(Erfassung!$L2:$L2)/5),"F") -> 6.72 | N19: =IF(ISNA(VLOOKUP(N18,'Feiertage und Ferien'!$A:$D,3,FALSE)),IF(OR(WEEKDAY(N18)=1,WEEKDAY(N18)=7),"",Erfassung!$B$2*SUM(Erfassung!$L2:$L2)/5),"F") -> 6.72 | O19: =IF(ISNA(VLOOKUP(O18,'Feiertage und Ferien'!$A:$D,3,FALSE)),IF(OR(WEEKDAY(O18)=1,WEEKDAY(O18)=7),"",Erfassung!$B$2*SUM(Erfassung!$L2:$L2)/5),"F") ->  | P19: =IF(ISNA(VLOOKUP(P18,'Feiertage und Ferien'!$A:$D,3,FALSE)),IF(OR(WEEKDAY(P18)=1,WEEKDAY(P18)=7),"",Erfassung!$B$2*SUM(Erfassung!$L2:$L2)/5),"F") ->  | Q19: =IF(ISNA(VLOOKUP(Q18,'Feiertage und Ferien'!$A:$D,3,FALSE)),IF(OR(WEEKDAY(Q18)=1,WEEKDAY(Q18)=7),"",Erfassung!$B$2*SUM(Erfassung!$L2:$L2)/5),"F") -> 6.72 | R19: =IF(ISNA(VLOOKUP(R18,'Feiertage und Ferien'!$A:$D,3,FALSE)),IF(OR(WEEKDAY(R18)=1,WEEKDAY(R18)=7),"",Erfassung!$B$2*SUM(Erfassung!$L2:$L2)/5),"F") -> 6.72 | S19: =IF(ISNA(VLOOKUP(S18,'Feiertage und Ferien'!$A:$D,3,FALSE)),IF(OR(WEEKDAY(S18)=1,WEEKDAY(S18)=7),"",Erfassung!$B$2*SUM(Erfassung!$L2:$L2)/5),"F") -> 6.72 | T19: =IF(ISNA(VLOOKUP(T18,'Feiertage und Ferien'!$A:$D,3,FALSE)),IF(OR(WEEKDAY(T18)=1,WEEKDAY(T18)=7),"",Erfassung!$B$2*SUM(Erfassung!$L2:$L2)/5),"F") -> 6.72 | U19: =IF(ISNA(VLOOKUP(U18,'Feiertage und Ferien'!$A:$D,3,FALSE)),IF(OR(WEEKDAY(U18)=1,WEEKDAY(U18)=7),"",Erfassung!$B$2*SUM(Erfassung!$L2:$L2)/5),"F") -> 6.72 | V19: =IF(ISNA(VLOOKUP(V18,'Feiertage und Ferien'!$A:$D,3,FALSE)),IF(OR(WEEKDAY(V18)=1,WEEKDAY(V18)=7),"",Erfassung!$B$2*SUM(Erfassung!$L2:$L2)/5),"F") ->  | W19: =IF(ISNA(VLOOKUP(W18,'Feiertage und Ferien'!$A:$D,3,FALSE)),IF(OR(WEEKDAY(W18)=1,WEEKDAY(W18)=7),"",Erfassung!$B$2*SUM(Erfassung!$L2:$L2)/5),"F") ->  | X19: =IF(ISNA(VLOOKUP(X18,'Feiertage und Ferien'!$A:$D,3,FALSE)),IF(OR(WEEKDAY(X18)=1,WEEKDAY(X18)=7),"",Erfassung!$B$2*SUM(Erfassung!$L2:$L2)/5),"F") -> 6.72 | Y19: =IF(ISNA(VLOOKUP(Y18,'Feiertage und Ferien'!$A:$D,3,FALSE)),IF(OR(WEEKDAY(Y18)=1,WEEKDAY(Y18)=7),"",Erfassung!$B$2*SUM(Erfassung!$L2:$L2)/5),"F") -> 6.72 | Z19: =IF(ISNA(VLOOKUP(Z18,'Feiertage und Ferien'!$A:$D,3,FALSE)),IF(OR(WEEKDAY(Z18)=1,WEEKDAY(Z18)=7),"",Erfassung!$B$2*SUM(Erfassung!$L2:$L2)/5),"F") -> 6.72 | AA19: =IF(ISNA(VLOOKUP(AA18,'Feiertage und Ferien'!$A:$D,3,FALSE)),IF(OR(WEEKDAY(AA18)=1,WEEKDAY(AA18)=7),"",Erfassung!$B$2*SUM(Erfassung!$L2:$L2)/5),"F") -> 6.72 | AB19: =IF(ISNA(VLOOKUP(AB18,'Feiertage und Ferien'!$A:$D,3,FALSE)),IF(OR(WEEKDAY(AB18)=1,WEEKDAY(AB18)=7),"",Erfassung!$B$2*SUM(Erfassung!$L2:$L2)/5),"F") -> 6.72 | AC19: =IF(ISNA(VLOOKUP(AC18,'Feiertage und Ferien'!$A:$D,3,FALSE)),IF(OR(WEEKDAY(AC18)=1,WEEKDAY(AC18)=7),"",Erfassung!$B$2*SUM(Erfassung!$L2:$L2)/5),"F") ->  | AD19: =IF(ISNA(VLOOKUP(AD18,'Feiertage und Ferien'!$A:$D,3,FALSE)),IF(OR(WEEKDAY(AD18)=1,WEEKDAY(AD18)=7),"",Erfassung!$B$2*SUM(Erfassung!$L2:$L2)/5),"F") ->  | AE19: =IF(ISNA(VLOOKUP(AE18,'Feiertage und Ferien'!$A:$D,3,FALSE)),IF(OR(WEEKDAY(AE18)=1,WEEKDAY(AE18)=7),"",Erfassung!$B$2*SUM(Erfassung!$L2:$L2)/5),"F") -> 6.72 | AF19: =IF(ISNA(VLOOKUP(AF18,'Feiertage und Ferien'!$A:$D,3,FALSE)),IF(OR(WEEKDAY(AF18)=1,WEEKDAY(AF18)=7),"",Erfassung!$B$2*SUM(Erfassung!$L2:$L2)/5),"F") ->  | AI19: =Erfassung!L2+20% -> 1 | AJ19: Juni
B20: =IF(B19="F",B19,Arbeitstage!B15) ->  | C20: =IF(C19="F",C19,Arbeitstage!C15) -> 1 | D20: =IF(D19="F",D19,Arbeitstage!D15) -> 1 | E20: =IF(E19="F",E19,Arbeitstage!E15) -> 1 | F20: =IF(F19="F",F19,Arbeitstage!F15) -> 1 | G20: =IF(G19="F",G19,Arbeitstage!G15) -> 1 | H20: =IF(H19="F",H19,Arbeitstage!H15) ->  | I20: =IF(I19="F",I19,Arbeitstage!I15) ->  | J20: =IF(J19="F",J19,Arbeitstage!J15) -> F | K20: =IF(K19="F",K19,Arbeitstage!K15) -> 1 | L20: =IF(L19="F",L19,Arbeitstage!L15) -> 1 | M20: =IF(M19="F",M19,Arbeitstage!M15) -> 1 | N20: =IF(N19="F",N19,Arbeitstage!N15) -> 1 | O20: =IF(O19="F",O19,Arbeitstage!O15) ->  | P20: =IF(P19="F",P19,Arbeitstage!P15) ->  | Q20: =IF(Q19="F",Q19,Arbeitstage!Q15) -> 1 | R20: =IF(R19="F",R19,Arbeitstage!R15) -> 1 | S20: =IF(S19="F",S19,Arbeitstage!S15) -> 1 | T20: =IF(T19="F",T19,Arbeitstage!T15) -> 1 | U20: =IF(U19="F",U19,Arbeitstage!U15) -> 1 | V20: =IF(V19="F",V19,Arbeitstage!V15) ->  | W20: =IF(W19="F",W19,Arbeitstage!W15) ->  | X20: =IF(X19="F",X19,Arbeitstage!X15) -> 1 | Y20: =IF(Y19="F",Y19,Arbeitstage!Y15) -> 1 | Z20: =IF(Z19="F",Z19,Arbeitstage!Z15) -> 1 | AA20: =IF(AA19="F",AA19,Arbeitstage!AA15) -> 1 | AB20: =IF(AB19="F",AB19,Arbeitstage!AB15) -> 1 | AC20: =IF(AC19="F",AC19,Arbeitstage!AC15) ->  | AD20: =IF(AD19="F",AD19,Arbeitstage!AD15) ->  | AE20: =IF(AE19="F",AE19,Arbeitstage!AE15) -> 1 | AF20: =IF(AF19="F",AF19,Arbeitstage!AF15) ->  | AG20: =SUM(Erfassung!$D:$D)/12 -> 2.083333333 | AH20: =IF(AG20="","",AG20*Erfassung!B2*SUM(Erfassung!L2:L2)/5) -> 14 | AI20: =SUM(B20:AF20) -> 20 | AJ20: =SUM(B19:AF19) -> 134.4 | AK20: =ROUND(AI20*AI19/5,1)*5 -> 20
B21: =AE18+1 -> 2025-07-01 | C21: =B21+1 -> 45840 | D21: 45841 | E21: 45842 | F21: 45843 | G21: 45844 | H21: 45845 | I21: 45846 | J21: 45847 | K21: 45848 | L21: 45849 | M21: 45850 | N21: 45851 | O21: 45852 | P21: 45853 | Q21: 45854 | R21: 45855 | S21: 45856 | T21: 45857 | U21: 45858 | V21: 45859 | W21: 45860 | X21: 45861 | Y21: 45862 | Z21: 45863 | AA21: 45864 | AB21: 45865 | AC21: 45866 | AD21: 45867 | AE21: 45868 | AF21: 45869
A22: Juli | B22: =IF(ISNA(VLOOKUP(B21,'Feiertage und Ferien'!$A:$D,3,FALSE)),IF(OR(WEEKDAY(B21)=1,WEEKDAY(B21)=7),"",Erfassung!$B$2*SUM(Erfassung!$M2:$M2)/5),"F") -> 6.72 | C22: =IF(ISNA(VLOOKUP(C21,'Feiertage und Ferien'!$A:$D,3,FALSE)),IF(OR(WEEKDAY(C21)=1,WEEKDAY(C21)=7),"",Erfassung!$B$2*SUM(Erfassung!$M2:$M2)/5),"F") -> 6.72 | D22: =IF(ISNA(VLOOKUP(D21,'Feiertage und Ferien'!$A:$D,3,FALSE)),IF(OR(WEEKDAY(D21)=1,WEEKDAY(D21)=7),"",Erfassung!$B$2*SUM(Erfassung!$M2:$M2)/5),"F") -> 6.72 | E22: =IF(ISNA(VLOOKUP(E21,'Feiertage und Ferien'!$A:$D,3,FALSE)),IF(OR(WEEKDAY(E21)=1,WEEKDAY(E21)=7),"",Erfassung!$B$2*SUM(Erfassung!$M2:$M2)/5),"F") -> 6.72 | F22: =IF(ISNA(VLOOKUP(F21,'Feiertage und Ferien'!$A:$D,3,FALSE)),IF(OR(WEEKDAY(F21)=1,WEEKDAY(F21)=7),"",Erfassung!$B$2*SUM(Erfassung!$M2:$M2)/5),"F") ->  | G22: =IF(ISNA(VLOOKUP(G21,'Feiertage und Ferien'!$A:$D,3,FALSE)),IF(OR(WEEKDAY(G21)=1,WEEKDAY(G21)=7),"",Erfassung!$B$2*SUM(Erfassung!$M2:$M2)/5),"F") ->  | H22: =IF(ISNA(VLOOKUP(H21,'Feiertage und Ferien'!$A:$D,3,FALSE)),IF(OR(WEEKDAY(H21)=1,WEEKDAY(H21)=7),"",Erfassung!$B$2*SUM(Erfassung!$M2:$M2)/5),"F") -> 6.72 | I22: =IF(ISNA(VLOOKUP(I21,'Feiertage und Ferien'!$A:$D,3,FALSE)),IF(OR(WEEKDAY(I21)=1,WEEKDAY(I21)=7),"",Erfassung!$B$2*SUM(Erfassung!$M2:$M2)/5),"F") -> 6.72 | J22: =IF(ISNA(VLOOKUP(J21,'Feiertage und Ferien'!$A:$D,3,FALSE)),IF(OR(WEEKDAY(J21)=1,WEEKDAY(J21)=7),"",Erfassung!$B$2*SUM(Erfassung!$M2:$M2)/5),"F") -> 6.72 | K22: =IF(ISNA(VLOOKUP(K21,'Feiertage und Ferien'!$A:$D,3,FALSE)),IF(OR(WEEKDAY(K21)=1,WEEKDAY(K21)=7),"",Erfassung!$B$2*SUM(Erfassung!$M2:$M2)/5),"F") -> 6.72 | L22: =IF(ISNA(VLOOKUP(L21,'Feiertage und Ferien'!$A:$D,3,FALSE)),IF(OR(WEEKDAY(L21)=1,WEEKDAY(L21)=7),"",Erfassung!$B$2*SUM(Erfassung!$M2:$M2)/5),"F") -> 6.72 | M22: =IF(ISNA(VLOOKUP(M21,'Feiertage und Ferien'!$A:$D,3,FALSE)),IF(OR(WEEKDAY(M21)=1,WEEKDAY(M21)=7),"",Erfassung!$B$2*SUM(Erfassung!$M2:$M2)/5),"F") ->  | N22: =IF(ISNA(VLOOKUP(N21,'Feiertage und Ferien'!$A:$D,3,FALSE)),IF(OR(WEEKDAY(N21)=1,WEEKDAY(N21)=7),"",Erfassung!$B$2*SUM(Erfassung!$M2:$M2)/5),"F") ->  | O22: =IF(ISNA(VLOOKUP(O21,'Feiertage und Ferien'!$A:$D,3,FALSE)),IF(OR(WEEKDAY(O21)=1,WEEKDAY(O21)=7),"",Erfassung!$B$2*SUM(Erfassung!$M2:$M2)/5),"F") -> 6.72 | P22: =IF(ISNA(VLOOKUP(P21,'Feiertage und Ferien'!$A:$D,3,FALSE)),IF(OR(WEEKDAY(P21)=1,WEEKDAY(P21)=7),"",Erfassung!$B$2*SUM(Erfassung!$M2:$M2)/5),"F") -> 6.72 | Q22: =IF(ISNA(VLOOKUP(Q21,'Feiertage und Ferien'!$A:$D,3,FALSE)),IF(OR(WEEKDAY(Q21)=1,WEEKDAY(Q21)=7),"",Erfassung!$B$2*SUM(Erfassung!$M2:$M2)/5),"F") -> 6.72 | R22: =IF(ISNA(VLOOKUP(R21,'Feiertage und Ferien'!$A:$D,3,FALSE)),IF(OR(WEEKDAY(R21)=1,WEEKDAY(R21)=7),"",Erfassung!$B$2*SUM(Erfassung!$M2:$M2)/5),"F") -> 6.72 | S22: =IF(ISNA(VLOOKUP(S21,'Feiertage und Ferien'!$A:$D,3,FALSE)),IF(OR(WEEKDAY(S21)=1,WEEKDAY(S21)=7),"",Erfassung!$B$2*SUM(Erfassung!$M2:$M2)/5),"F") -> 6.72 | T22: =IF(ISNA(VLOOKUP(T21,'Feiertage und Ferien'!$A:$D,3,FALSE)),IF(OR(WEEKDAY(T21)=1,WEEKDAY(T21)=7),"",Erfassung!$B$2*SUM(Erfassung!$M2:$M2)/5),"F") ->  | U22: =IF(ISNA(VLOOKUP(U21,'Feiertage und Ferien'!$A:$D,3,FALSE)),IF(OR(WEEKDAY(U21)=1,WEEKDAY(U21)=7),"",Erfassung!$B$2*SUM(Erfassung!$M2:$M2)/5),"F") ->  | V22: =IF(ISNA(VLOOKUP(V21,'Feiertage und Ferien'!$A:$D,3,FALSE)),IF(OR(WEEKDAY(V21)=1,WEEKDAY(V21)=7),"",Erfassung!$B$2*SUM(Erfassung!$M2:$M2)/5),"F") -> 6.72 | W22: =IF(ISNA(VLOOKUP(W21,'Feiertage und Ferien'!$A:$D,3,FALSE)),IF(OR(WEEKDAY(W21)=1,WEEKDAY(W21)=7),"",Erfassung!$B$2*SUM(Erfassung!$M2:$M2)/5),"F") -> 6.72 | X22: =IF(ISNA(VLOOKUP(X21,'Feiertage und Ferien'!$A:$D,3,FALSE)),IF(OR(WEEKDAY(X21)=1,WEEKDAY(X21)=7),"",Erfassung!$B$2*SUM(Erfassung!$M2:$M2)/5),"F") -> 6.72 | Y22: =IF(ISNA(VLOOKUP(Y21,'Feiertage und Ferien'!$A:$D,3,FALSE)),IF(OR(WEEKDAY(Y21)=1,WEEKDAY(Y21)=7),"",Erfassung!$B$2*SUM(Erfassung!$M2:$M2)/5),"F") -> 6.72 | Z22: =IF(ISNA(VLOOKUP(Z21,'Feiertage und Ferien'!$A:$D,3,FALSE)),IF(OR(WEEKDAY(Z21)=1,WEEKDAY(Z21)=7),"",Erfassung!$B$2*SUM(Erfassung!$M2:$M2)/5),"F") -> 6.72 | AA22: =IF(ISNA(VLOOKUP(AA21,'Feiertage und Ferien'!$A:$D,3,FALSE)),IF(OR(WEEKDAY(AA21)=1,WEEKDAY(AA21)=7),"",Erfassung!$B$2*SUM(Erfassung!$M2:$M2)/5),"F") ->  | AB22: =IF(ISNA(VLOOKUP(AB21,'Feiertage und Ferien'!$A:$D,3,FALSE)),IF(OR(WEEKDAY(AB21)=1,WEEKDAY(AB21)=7),"",Erfassung!$B$2*SUM(Erfassung!$M2:$M2)/5),"F") ->  | AC22: =IF(ISNA(VLOOKUP(AC21,'Feiertage und Ferien'!$A:$D,3,FALSE)),IF(OR(WEEKDAY(AC21)=1,WEEKDAY(AC21)=7),"",Erfassung!$B$2*SUM(Erfassung!$M2:$M2)/5),"F") -> 6.72 | AD22: =IF(ISNA(VLOOKUP(AD21,'Feiertage und Ferien'!$A:$D,3,FALSE)),IF(OR(WEEKDAY(AD21)=1,WEEKDAY(AD21)=7),"",Erfassung!$B$2*SUM(Erfassung!$M2:$M2)/5),"F") -> 6.72 | AE22: =IF(ISNA(VLOOKUP(AE21,'Feiertage und Ferien'!$A:$D,3,FALSE)),IF(OR(WEEKDAY(AE21)=1,WEEKDAY(AE21)=7),"",Erfassung!$B$2*SUM(Erfassung!$M2:$M2)/5),"F") -> 6.72 | AF22: =IF(ISNA(VLOOKUP(AF21,'Feiertage und Ferien'!$A:$D,3,FALSE)),IF(OR(WEEKDAY(AF21)=1,WEEKDAY(AF21)=7),"",Erfassung!$B$2*SUM(Erfassung!$M2:$M2)/5),"F") -> 6.72 | AI22: =Erfassung!M2+20% -> 1 | AJ22: Juli
B23: =IF(B22="F",B22,Arbeitstage!B17) -> 1 | C23: =IF(C22="F",C22,Arbeitstage!C17) -> 1 | D23: =IF(D22="F",D22,Arbeitstage!D17) -> 1 | E23: =IF(E22="F",E22,Arbeitstage!E17) -> 1 | F23: =IF(F22="F",F22,Arbeitstage!F17) -> F | G23: =IF(G22="F",G22,Arbeitstage!G17) -> F | H23: =IF(H22="F",H22,Arbeitstage!H17) -> F | I23: =IF(I22="F",I22,Arbeitstage!I17) -> F | J23: =IF(J22="F",J22,Arbeitstage!J17) -> F | K23: =IF(K22="F",K22,Arbeitstage!K17) -> F | L23: =IF(L22="F",L22,Arbeitstage!L17) -> F | M23: =IF(M22="F",M22,Arbeitstage!M17) -> F | N23: =IF(N22="F",N22,Arbeitstage!N17) -> F | O23: =IF(O22="F",O22,Arbeitstage!O17) -> F | P23: =IF(P22="F",P22,Arbeitstage!P17) -> F | Q23: =IF(Q22="F",Q22,Arbeitstage!Q17) -> F | R23: =IF(R22="F",R22,Arbeitstage!R17) -> F | S23: =IF(S22="F",S22,Arbeitstage!S17) -> F | T23: =IF(T22="F",T22,Arbeitstage!T17) -> F | U23: =IF(U22="F",U22,Arbeitstage!U17) -> F | V23: =IF(V22="F",V22,Arbeitstage!V17) -> F | W23: =IF(W22="F",W22,Arbeitstage!W17) -> F | X23: =IF(X22="F",X22,Arbeitstage!X17) -> F | Y23: =IF(Y22="F",Y22,Arbeitstage!Y17) -> F | Z23: =IF(Z22="F",Z22,Arbeitstage!Z17) -> F | AA23: =IF(AA22="F",AA22,Arbeitstage!AA17) -> F | AB23: =IF(AB22="F",AB22,Arbeitstage!AB17) -> F | AC23: =IF(AC22="F",AC22,Arbeitstage!AC17) -> F | AD23: =IF(AD22="F",AD22,Arbeitstage!AD17) -> F | AE23: =IF(AE22="F",AE22,Arbeitstage!AE17) -> F | AF23: =IF(AF22="F",AF22,Arbeitstage!AF17) -> F | AG23: =SUM(Erfassung!$D:$D)/12 -> 2.083333333 | AH23: =IF(AG23="","",AG23*Erfassung!B2*SUM(Erfassung!M2:M2)/5) -> 14 | AI23: =SUM(B23:AF23) -> 4 | AJ23: =SUM(B22:AF22) -> 154.56 | AK23: =ROUND(AI23*AI22/5,1)*5 -> 4
B24: =AF21+1 -> 2025-08-01 | C24: =B24+1 -> 45871 | D24: 45872 | E24: 45873 | F24: 45874 | G24: 45875 | H24: 45876 | I24: 45877 | J24: 45878 | K24: 45879 | L24: 45880 | M24: 45881 | N24: 45882 | O24: 45883 | P24: 45884 | Q24: 45885 | R24: 45886 | S24: 45887 | T24: 45888 | U24: 45889 | V24: 45890 | W24: 45891 | X24: 45892 | Y24: 45893 | Z24: 45894 | AA24: 45895 | AB24: 45896 | AC24: 45897 | AD24: 45898 | AE24: 45899 | AF24: 45900
A25: August | B25: =IF(ISNA(VLOOKUP(B24,'Feiertage und Ferien'!$A:$D,3,FALSE)),IF(OR(WEEKDAY(B24)=1,WEEKDAY(B24)=7),"",Erfassung!$B$2*SUM(Erfassung!$N2:$N2)/5),"F") -> F | C25: =IF(ISNA(VLOOKUP(C24,'Feiertage und Ferien'!$A:$D,3,FALSE)),IF(OR(WEEKDAY(C24)=1,WEEKDAY(C24)=7),"",Erfassung!$B$2*SUM(Erfassung!$N2:$N2)/5),"F") ->  | D25: =IF(ISNA(VLOOKUP(D24,'Feiertage und Ferien'!$A:$D,3,FALSE)),IF(OR(WEEKDAY(D24)=1,WEEKDAY(D24)=7),"",Erfassung!$B$2*SUM(Erfassung!$N2:$N2)/5),"F") ->  | E25: =IF(ISNA(VLOOKUP(E24,'Feiertage und Ferien'!$A:$D,3,FALSE)),IF(OR(WEEKDAY(E24)=1,WEEKDAY(E24)=7),"",Erfassung!$B$2*SUM(Erfassung!$N2:$N2)/5),"F") -> 6.72 | F25: =IF(ISNA(VLOOKUP(F24,'Feiertage und Ferien'!$A:$D,3,FALSE)),IF(OR(WEEKDAY(F24)=1,WEEKDAY(F24)=7),"",Erfassung!$B$2*SUM(Erfassung!$N2:$N2)/5),"F") -> 6.72 | G25: =IF(ISNA(VLOOKUP(G24,'Feiertage und Ferien'!$A:$D,3,FALSE)),IF(OR(WEEKDAY(G24)=1,WEEKDAY(G24)=7),"",Erfassung!$B$2*SUM(Erfassung!$N2:$N2)/5),"F") -> 6.72 | H25: =IF(ISNA(VLOOKUP(H24,'Feiertage und Ferien'!$A:$D,3,FALSE)),IF(OR(WEEKDAY(H24)=1,WEEKDAY(H24)=7),"",Erfassung!$B$2*SUM(Erfassung!$N2:$N2)/5),"F") -> 6.72 | I25: =IF(ISNA(VLOOKUP(I24,'Feiertage und Ferien'!$A:$D,3,FALSE)),IF(OR(WEEKDAY(I24)=1,WEEKDAY(I24)=7),"",Erfassung!$B$2*SUM(Erfassung!$N2:$N2)/5),"F") -> 6.72 | J25: =IF(ISNA(VLOOKUP(J24,'Feiertage und Ferien'!$A:$D,3,FALSE)),IF(OR(WEEKDAY(J24)=1,WEEKDAY(J24)=7),"",Erfassung!$B$2*SUM(Erfassung!$N2:$N2)/5),"F") ->  | K25: =IF(ISNA(VLOOKUP(K24,'Feiertage und Ferien'!$A:$D,3,FALSE)),IF(OR(WEEKDAY(K24)=1,WEEKDAY(K24)=7),"",Erfassung!$B$2*SUM(Erfassung!$N2:$N2)/5),"F") ->  | L25: =IF(ISNA(VLOOKUP(L24,'Feiertage und Ferien'!$A:$D,3,FALSE)),IF(OR(WEEKDAY(L24)=1,WEEKDAY(L24)=7),"",Erfassung!$B$2*SUM(Erfassung!$N2:$N2)/5),"F") -> 6.72 | M25: =IF(ISNA(VLOOKUP(M24,'Feiertage und Ferien'!$A:$D,3,FALSE)),IF(OR(WEEKDAY(M24)=1,WEEKDAY(M24)=7),"",Erfassung!$B$2*SUM(Erfassung!$N2:$N2)/5),"F") -> 6.72 | N25: =IF(ISNA(VLOOKUP(N24,'Feiertage und Ferien'!$A:$D,3,FALSE)),IF(OR(WEEKDAY(N24)=1,WEEKDAY(N24)=7),"",Erfassung!$B$2*SUM(Erfassung!$N2:$N2)/5),"F") -> 6.72 | O25: =IF(ISNA(VLOOKUP(O24,'Feiertage und Ferien'!$A:$D,3,FALSE)),IF(OR(WEEKDAY(O24)=1,WEEKDAY(O24)=7),"",Erfassung!$B$2*SUM(Erfassung!$N2:$N2)/5),"F") -> 6.72 | P25: =IF(ISNA(VLOOKUP(P24,'Feiertage und Ferien'!$A:$D,3,FALSE)),IF(OR(WEEKDAY(P24)=1,WEEKDAY(P24)=7),"",Erfassung!$B$2*SUM(Erfassung!$N2:$N2)/5),"F") -> 6.72 | Q25: =IF(ISNA(VLOOKUP(Q24,'Feiertage und Ferien'!$A:$D,3,FALSE)),IF(OR(WEEKDAY(Q24)=1,WEEKDAY(Q24)=7),"",Erfassung!$B$2*SUM(Erfassung!$N2:$N2)/5),"F") ->  | R25: =IF(ISNA(VLOOKUP(R24,'Feiertage und Ferien'!$A:$D,3,FALSE)),IF(OR(WEEKDAY(R24)=1,WEEKDAY(R24)=7),"",Erfassung!$B$2*SUM(Erfassung!$N2:$N2)/5),"F") ->  | S25: =IF(ISNA(VLOOKUP(S24,'Feiertage und Ferien'!$A:$D,3,FALSE)),IF(OR(WEEKDAY(S24)=1,WEEKDAY(S24)=7),"",Erfassung!$B$2*SUM(Erfassung!$N2:$N2)/5),"F") -> 6.72 | T25: =IF(ISNA(VLOOKUP(T24,'Feiertage und Ferien'!$A:$D,3,FALSE)),IF(OR(WEEKDAY(T24)=1,WEEKDAY(T24)=7),"",Erfassung!$B$2*SUM(Erfassung!$N2:$N2)/5),"F") -> 6.72 | U25: =IF(ISNA(VLOOKUP(U24,'Feiertage und Ferien'!$A:$D,3,FALSE)),IF(OR(WEEKDAY(U24)=1,WEEKDAY(U24)=7),"",Erfassung!$B$2*SUM(Erfassung!$N2:$N2)/5),"F") -> 6.72 | V25: =IF(ISNA(VLOOKUP(V24,'Feiertage und Ferien'!$A:$D,3,FALSE)),IF(OR(WEEKDAY(V24)=1,WEEKDAY(V24)=7),"",Erfassung!$B$2*SUM(Erfassung!$N2:$N2)/5),"F") -> 6.72 | W25: =IF(ISNA(VLOOKUP(W24,'Feiertage und Ferien'!$A:$D,3,FALSE)),IF(OR(WEEKDAY(W24)=1,WEEKDAY(W24)=7),"",Erfassung!$B$2*SUM(Erfassung!$N2:$N2)/5),"F") -> 6.72 | X25: =IF(ISNA(VLOOKUP(X24,'Feiertage und Ferien'!$A:$D,3,FALSE)),IF(OR(WEEKDAY(X24)=1,WEEKDAY(X24)=7),"",Erfassung!$B$2*SUM(Erfassung!$N2:$N2)/5),"F") ->  | Y25: =IF(ISNA(VLOOKUP(Y24,'Feiertage und Ferien'!$A:$D,3,FALSE)),IF(OR(WEEKDAY(Y24)=1,WEEKDAY(Y24)=7),"",Erfassung!$B$2*SUM(Erfassung!$N2:$N2)/5),"F") ->  | Z25: =IF(ISNA(VLOOKUP(Z24,'Feiertage und Ferien'!$A:$D,3,FALSE)),IF(OR(WEEKDAY(Z24)=1,WEEKDAY(Z24)=7),"",Erfassung!$B$2*SUM(Erfassung!$N2:$N2)/5),"F") -> 6.72 | AA25: =IF(ISNA(VLOOKUP(AA24,'Feiertage und Ferien'!$A:$D,3,FALSE)),IF(OR(WEEKDAY(AA24)=1,WEEKDAY(AA24)=7),"",Erfassung!$B$2*SUM(Erfassung!$N2:$N2)/5),"F") -> 6.72 | AB25: =IF(ISNA(VLOOKUP(AB24,'Feiertage und Ferien'!$A:$D,3,FALSE)),IF(OR(WEEKDAY(AB24)=1,WEEKDAY(AB24)=7),"",Erfassung!$B$2*SUM(Erfassung!$N2:$N2)/5),"F") -> 6.72 | AC25: =IF(ISNA(VLOOKUP(AC24,'Feiertage und Ferien'!$A:$D,3,FALSE)),IF(OR(WEEKDAY(AC24)=1,WEEKDAY(AC24)=7),"",Erfassung!$B$2*SUM(Erfassung!$N2:$N2)/5),"F") -> 6.72 | AD25: =IF(ISNA(VLOOKUP(AD24,'Feiertage und Ferien'!$A:$D,3,FALSE)),IF(OR(WEEKDAY(AD24)=1,WEEKDAY(AD24)=7),"",Erfassung!$B$2*SUM(Erfassung!$N2:$N2)/5),"F") -> 6.72 | AE25: =IF(ISNA(VLOOKUP(AE24,'Feiertage und Ferien'!$A:$D,3,FALSE)),IF(OR(WEEKDAY(AE24)=1,WEEKDAY(AE24)=7),"",Erfassung!$B$2*SUM(Erfassung!$N2:$N2)/5),"F") ->  | AF25: =IF(ISNA(VLOOKUP(AF24,'Feiertage und Ferien'!$A:$D,3,FALSE)),IF(OR(WEEKDAY(AF24)=1,WEEKDAY(AF24)=7),"",Erfassung!$B$2*SUM(Erfassung!$N2:$N2)/5),"F") ->  | AI25: =Erfassung!N2+20% -> 1 | AJ25: August
B26: =IF(B25="F",B25,Arbeitstage!B19) -> F | C26: =IF(C25="F",C25,Arbeitstage!C19) -> F | D26: =IF(D25="F",D25,Arbeitstage!D19) -> F | E26: =IF(E25="F",E25,Arbeitstage!E19) -> F | F26: =IF(F25="F",F25,Arbeitstage!F19) -> F | G26: =IF(G25="F",G25,Arbeitstage!G19) -> F | H26: =IF(H25="F",H25,Arbeitstage!H19) -> F | I26: =IF(I25="F",I25,Arbeitstage!I19) -> F | J26: =IF(J25="F",J25,Arbeitstage!J19) -> F | K26: =IF(K25="F",K25,Arbeitstage!K19) ->  | L26: =IF(L25="F",L25,Arbeitstage!L19) -> 1 | M26: =IF(M25="F",M25,Arbeitstage!M19) -> 1 | N26: =IF(N25="F",N25,Arbeitstage!N19) -> 1 | O26: =IF(O25="F",O25,Arbeitstage!O19) -> 1 | P26: =IF(P25="F",P25,Arbeitstage!P19) -> 1 | Q26: =IF(Q25="F",Q25,Arbeitstage!Q19) ->  | R26: =IF(R25="F",R25,Arbeitstage!R19) ->  | S26: =IF(S25="F",S25,Arbeitstage!S19) -> 1 | T26: =IF(T25="F",T25,Arbeitstage!T19) -> 1 | U26: =IF(U25="F",U25,Arbeitstage!U19) -> 1 | V26: =IF(V25="F",V25,Arbeitstage!V19) -> 1 | W26: =IF(W25="F",W25,Arbeitstage!W19) -> 1 | X26: =IF(X25="F",X25,Arbeitstage!X19) ->  | Y26: =IF(Y25="F",Y25,Arbeitstage!Y19) ->  | Z26: =IF(Z25="F",Z25,Arbeitstage!Z19) -> 1 | AA26: =IF(AA25="F",AA25,Arbeitstage!AA19) -> 1 | AB26: =IF(AB25="F",AB25,Arbeitstage!AB19) -> 1 | AC26: =IF(AC25="F",AC25,Arbeitstage!AC19) -> 1 | AD26: =IF(AD25="F",AD25,Arbeitstage!AD19) -> 1 | AE26: =IF(AE25="F",AE25,Arbeitstage!AE19) ->  | AF26: =IF(AF25="F",AF25,Arbeitstage!AF19) ->  | AG26: =SUM(Erfassung!$D:$D)/12 -> 2.083333333 | AH26: =IF(AG26="","",AG26*Erfassung!B2*SUM(Erfassung!N2:N2)/5) -> 14 | AI26: =SUM(B26:AF26) -> 15 | AJ26: =SUM(B25:AF25) -> 134.4 | AK26: =ROUND(AI26*AI25/5,1)*5 -> 15
B27: =AF24+1 -> 45901 | C27: =B27+1 -> 45902 | D27: 45903 | E27: 45904 | F27: 45905 | G27: 45906 | H27: 45907 | I27: 45908 | J27: 45909 | K27: 45910 | L27: 45911 | M27: 45912 | N27: 45913 | O27: 45914 | P27: 45915 | Q27: 45916 | R27: 45917 | S27: 45918 | T27: 45919 | U27: 45920 | V27: 45921 | W27: 45922 | X27: 45923 | Y27: 45924 | Z27: 45925 | AA27: 45926 | AB27: 45927 | AC27: 45928 | AD27: 45929 | AE27: 45930
A28: September | B28: =IF(ISNA(VLOOKUP(B27,'Feiertage und Ferien'!$A:$D,3,FALSE)),IF(OR(WEEKDAY(B27)=1,WEEKDAY(B27)=7),"",Erfassung!$B$2*SUM(Erfassung!$O2:$O2)/5),"F") -> 6.72 | C28: =IF(ISNA(VLOOKUP(C27,'Feiertage und Ferien'!$A:$D,3,FALSE)),IF(OR(WEEKDAY(C27)=1,WEEKDAY(C27)=7),"",Erfassung!$B$2*SUM(Erfassung!$O2:$O2)/5),"F") -> 6.72 | D28: =IF(ISNA(VLOOKUP(D27,'Feiertage und Ferien'!$A:$D,3,FALSE)),IF(OR(WEEKDAY(D27)=1,WEEKDAY(D27)=7),"",Erfassung!$B$2*SUM(Erfassung!$O2:$O2)/5),"F") -> 6.72 | E28: =IF(ISNA(VLOOKUP(E27,'Feiertage und Ferien'!$A:$D,3,FALSE)),IF(OR(WEEKDAY(E27)=1,WEEKDAY(E27)=7),"",Erfassung!$B$2*SUM(Erfassung!$O2:$O2)/5),"F") -> 6.72 | F28: =IF(ISNA(VLOOKUP(F27,'Feiertage und Ferien'!$A:$D,3,FALSE)),IF(OR(WEEKDAY(F27)=1,WEEKDAY(F27)=7),"",Erfassung!$B$2*SUM(Erfassung!$O2:$O2)/5),"F") -> 6.72 | G28: =IF(ISNA(VLOOKUP(G27,'Feiertage und Ferien'!$A:$D,3,FALSE)),IF(OR(WEEKDAY(G27)=1,WEEKDAY(G27)=7),"",Erfassung!$B$2*SUM(Erfassung!$O2:$O2)/5),"F") ->  | H28: =IF(ISNA(VLOOKUP(H27,'Feiertage und Ferien'!$A:$D,3,FALSE)),IF(OR(WEEKDAY(H27)=1,WEEKDAY(H27)=7),"",Erfassung!$B$2*SUM(Erfassung!$O2:$O2)/5),"F") ->  | I28: =IF(ISNA(VLOOKUP(I27,'Feiertage und Ferien'!$A:$D,3,FALSE)),IF(OR(WEEKDAY(I27)=1,WEEKDAY(I27)=7),"",Erfassung!$B$2*SUM(Erfassung!$O2:$O2)/5),"F") -> 6.72 | J28: =IF(ISNA(VLOOKUP(J27,'Feiertage und Ferien'!$A:$D,3,FALSE)),IF(OR(WEEKDAY(J27)=1,WEEKDAY(J27)=7),"",Erfassung!$B$2*SUM(Erfassung!$O2:$O2)/5),"F") -> 6.72 | K28: =IF(ISNA(VLOOKUP(K27,'Feiertage und Ferien'!$A:$D,3,FALSE)),IF(OR(WEEKDAY(K27)=1,WEEKDAY(K27)=7),"",Erfassung!$B$2*SUM(Erfassung!$O2:$O2)/5),"F") -> 6.72 | L28: =IF(ISNA(VLOOKUP(L27,'Feiertage und Ferien'!$A:$D,3,FALSE)),IF(OR(WEEKDAY(L27)=1,WEEKDAY(L27)=7),"",Erfassung!$B$2*SUM(Erfassung!$O2:$O2)/5),"F") -> 6.72 | M28: =IF(ISNA(VLOOKUP(M27,'Feiertage und Ferien'!$A:$D,3,FALSE)),IF(OR(WEEKDAY(M27)=1,WEEKDAY(M27)=7),"",Erfassung!$B$2*SUM(Erfassung!$O2:$O2)/5),"F") -> 6.72 | N28: =IF(ISNA(VLOOKUP(N27,'Feiertage und Ferien'!$A:$D,3,FALSE)),IF(OR(WEEKDAY(N27)=1,WEEKDAY(N27)=7),"",Erfassung!$B$2*SUM(Erfassung!$O2:$O2)/5),"F") ->  | O28: =IF(ISNA(VLOOKUP(O27,'Feiertage und Ferien'!$A:$D,3,FALSE)),IF(OR(WEEKDAY(O27)=1,WEEKDAY(O27)=7),"",Erfassung!$B$2*SUM(Erfassung!$O2:$O2)/5),"F") ->  | P28: =IF(ISNA(VLOOKUP(P27,'Feiertage und Ferien'!$A:$D,3,FALSE)),IF(OR(WEEKDAY(P27)=1,WEEKDAY(P27)=7),"",Erfassung!$B$2*SUM(Erfassung!$O2:$O2)/5),"F") -> 6.72 | Q28: =IF(ISNA(VLOOKUP(Q27,'Feiertage und Ferien'!$A:$D,3,FALSE)),IF(OR(WEEKDAY(Q27)=1,WEEKDAY(Q27)=7),"",Erfassung!$B$2*SUM(Erfassung!$O2:$O2)/5),"F") -> 6.72 | R28: =IF(ISNA(VLOOKUP(R27,'Feiertage und Ferien'!$A:$D,3,FALSE)),IF(OR(WEEKDAY(R27)=1,WEEKDAY(R27)=7),"",Erfassung!$B$2*SUM(Erfassung!$O2:$O2)/5),"F") -> 6.72 | S28: =IF(ISNA(VLOOKUP(S27,'Feiertage und Ferien'!$A:$D,3,FALSE)),IF(OR(WEEKDAY(S27)=1,WEEKDAY(S27)=7),"",Erfassung!$B$2*SUM(Erfassung!$O2:$O2)/5),"F") -> 6.72 | T28: =IF(ISNA(VLOOKUP(T27,'Feiertage und Ferien'!$A:$D,3,FALSE)),IF(OR(WEEKDAY(T27)=1,WEEKDAY(T27)=7),"",Erfassung!$B$2*SUM(Erfassung!$O2:$O2)/5),"F") -> 6.72 | U28: =IF(ISNA(VLOOKUP(U27,'Feiertage und Ferien'!$A:$D,3,FALSE)),IF(OR(WEEKDAY(U27)=1,WEEKDAY(U27)=7),"",Erfassung!$B$2*SUM(Erfassung!$O2:$O2)/5),"F") ->  | V28: =IF(ISNA(VLOOKUP(V27,'Feiertage und Ferien'!$A:$D,3,FALSE)),IF(OR(WEEKDAY(V27)=1,WEEKDAY(V27)=7),"",Erfassung!$B$2*SUM(Erfassung!$O2:$O2)/5),"F") ->  | W28: =IF(ISNA(VLOOKUP(W27,'Feiertage und Ferien'!$A:$D,3,FALSE)),IF(OR(WEEKDAY(W27)=1,WEEKDAY(W27)=7),"",Erfassung!$B$2*SUM(Erfassung!$O2:$O2)/5),"F") -> 6.72 | X28: =IF(ISNA(VLOOKUP(X27,'Feiertage und Ferien'!$A:$D,3,FALSE)),IF(OR(WEEKDAY(X27)=1,WEEKDAY(X27)=7),"",Erfassung!$B$2*SUM(Erfassung!$O2:$O2)/5),"F") -> 6.72 | Y28: =IF(ISNA(VLOOKUP(Y27,'Feiertage und Ferien'!$A:$D,3,FALSE)),IF(OR(WEEKDAY(Y27)=1,WEEKDAY(Y27)=7),"",Erfassung!$B$2*SUM(Erfassung!$O2:$O2)/5),"F") -> 6.72 | Z28: =IF(ISNA(VLOOKUP(Z27,'Feiertage und Ferien'!$A:$D,3,FALSE)),IF(OR(WEEKDAY(Z27)=1,WEEKDAY(Z27)=7),"",Erfassung!$B$2*SUM(Erfassung!$O2:$O2)/5),"F") -> 6.72 | AA28: =IF(ISNA(VLOOKUP(AA27,'Feiertage und Ferien'!$A:$D,3,FALSE)),IF(OR(WEEKDAY(AA27)=1,WEEKDAY(AA27)=7),"",Erfassung!$B$2*SUM(Erfassung!$O2:$O2)/5),"F") -> 6.72 | AB28: =IF(ISNA(VLOOKUP(AB27,'Feiertage und Ferien'!$A:$D,3,FALSE)),IF(OR(WEEKDAY(AB27)=1,WEEKDAY(AB27)=7),"",Erfassung!$B$2*SUM(Erfassung!$O2:$O2)/5),"F") ->  | AC28: =IF(ISNA(VLOOKUP(AC27,'Feiertage und Ferien'!$A:$D,3,FALSE)),IF(OR(WEEKDAY(AC27)=1,WEEKDAY(AC27)=7),"",Erfassung!$B$2*SUM(Erfassung!$O2:$O2)/5),"F") ->  | AD28: =IF(ISNA(VLOOKUP(AD27,'Feiertage und Ferien'!$A:$D,3,FALSE)),IF(OR(WEEKDAY(AD27)=1,WEEKDAY(AD27)=7),"",Erfassung!$B$2*SUM(Erfassung!$O2:$O2)/5),"F") -> 6.72 | AE28: =IF(ISNA(VLOOKUP(AE27,'Feiertage und Ferien'!$A:$D,3,FALSE)),IF(OR(WEEKDAY(AE27)=1,WEEKDAY(AE27)=7),"",Erfassung!$B$2*SUM(Erfassung!$O2:$O2)/5),"F") -> 6.72 | AF28: =IF(ISNA(VLOOKUP(AF27,'Feiertage und Ferien'!$A:$D,3,FALSE)),IF(OR(WEEKDAY(AF27)=1,WEEKDAY(AF27)=7),"",Erfassung!$B$2*SUM(Erfassung!$O2:$O2)/5),"F") ->  | AI28: =Erfassung!O2+20% -> 1 | AJ28: September
B29: =IF(B28="F",B28,Arbeitstage!B21) -> 1 | C29: =IF(C28="F",C28,Arbeitstage!C21) -> 1 | D29: =IF(D28="F",D28,Arbeitstage!D21) -> 1 | E29: =IF(E28="F",E28,Arbeitstage!E21) -> 1 | F29: =IF(F28="F",F28,Arbeitstage!F21) -> 1 | G29: =IF(G28="F",G28,Arbeitstage!G21) ->  | H29: =IF(H28="F",H28,Arbeitstage!H21) ->  | I29: =IF(I28="F",I28,Arbeitstage!I21) -> 1 | J29: =IF(J28="F",J28,Arbeitstage!J21) -> 1 | K29: =IF(K28="F",K28,Arbeitstage!K21) -> 1 | L29: =IF(L28="F",L28,Arbeitstage!L21) -> 1 | M29: =IF(M28="F",M28,Arbeitstage!M21) -> 1 | N29: =IF(N28="F",N28,Arbeitstage!N21) ->  | O29: =IF(O28="F",O28,Arbeitstage!O21) ->  | P29: =IF(P28="F",P28,Arbeitstage!P21) -> 1 | Q29: =IF(Q28="F",Q28,Arbeitstage!Q21) -> 1 | R29: =IF(R28="F",R28,Arbeitstage!R21) -> 1 | S29: =IF(S28="F",S28,Arbeitstage!S21) -> 1 | T29: =IF(T28="F",T28,Arbeitstage!T21) -> 1 | U29: =IF(U28="F",U28,Arbeitstage!U21) ->  | V29: =IF(V28="F",V28,Arbeitstage!V21) ->  | W29: =IF(W28="F",W28,Arbeitstage!W21) -> 1 | X29: =IF(X28="F",X28,Arbeitstage!X21) -> 1 | Y29: =IF(Y28="F",Y28,Arbeitstage!Y21) -> 1 | Z29: =IF(Z28="F",Z28,Arbeitstage!Z21) -> 1 | AA29: =IF(AA28="F",AA28,Arbeitstage!AA21) -> 1 | AB29: =IF(AB28="F",AB28,Arbeitstage!AB21) -> F | AC29: =IF(AC28="F",AC28,Arbeitstage!AC21) -> F | AD29: =IF(AD28="F",AD28,Arbeitstage!AD21) -> F | AE29: =IF(AE28="F",AE28,Arbeitstage!AE21) -> F | AF29: =IF(AF28="F",AF28,Arbeitstage!AF21) ->  | AG29: =SUM(Erfassung!$D:$D)/12 -> 2.083333333 | AH29: =IF(AG29="","",AG29*Erfassung!B2*SUM(Erfassung!O2:O2)/5) -> 14 | AI29: =SUM(B29:AF29) -> 20 | AJ29: =SUM(B28:AF28) -> 147.84 | AK29: =ROUND(AI29*AI28/5,1)*5 -> 20
B30: =AE27+1 -> 2025-10-01 | C30: =B30+1 -> 2025-10-02 | D30: 2025-10-03 | E30: 2025-10-04 | F30: 2025-10-05 | G30: 2025-10-06 | H30: 2025-10-07 | I30: 2025-10-08 | J30: 2025-10-09 | K30: 2025-10-10 | L30: 2025-10-11 | M30: 2025-10-12 | N30: 2025-10-13 | O30: 2025-10-14 | P30: 2025-10-15 | Q30: 2025-10-16 | R30: 2025-10-17 | S30: 2025-10-18 | T30: 2025-10-19 | U30: 2025-10-20 | V30: 2025-10-21 | W30: 2025-10-22 | X30: 2025-10-23 | Y30: 2025-10-24 | Z30: 2025-10-25 | AA30: 2025-10-26 | AB30: 2025-10-27 | AC30: 2025-10-28 | AD30: 2025-10-29 | AE30: 2025-10-30 | AF30: 2025-10-31
A31: Oktober | B31: =IF(ISNA(VLOOKUP(B30,'Feiertage und Ferien'!$A:$D,3,FALSE)),IF(OR(WEEKDAY(B30)=1,WEEKDAY(B30)=7),"",Erfassung!$B$2*SUM(Erfassung!$P2:$P2)/5),"F") -> 6.72 | C31: =IF(ISNA(VLOOKUP(C30,'Feiertage und Ferien'!$A:$D,3,FALSE)),IF(OR(WEEKDAY(C30)=1,WEEKDAY(C30)=7),"",Erfassung!$B$2*SUM(Erfassung!$P2:$P2)/5),"F") -> 6.72 | D31: =IF(ISNA(VLOOKUP(D30,'Feiertage und Ferien'!$A:$D,3,FALSE)),IF(OR(WEEKDAY(D30)=1,WEEKDAY(D30)=7),"",Erfassung!$B$2*SUM(Erfassung!$P2:$P2)/5),"F") -> 6.72 | E31: =IF(ISNA(VLOOKUP(E30,'Feiertage und Ferien'!$A:$D,3,FALSE)),IF(OR(WEEKDAY(E30)=1,WEEKDAY(E30)=7),"",Erfassung!$B$2*SUM(Erfassung!$P2:$P2)/5),"F") ->  | F31: =IF(ISNA(VLOOKUP(F30,'Feiertage und Ferien'!$A:$D,3,FALSE)),IF(OR(WEEKDAY(F30)=1,WEEKDAY(F30)=7),"",Erfassung!$B$2*SUM(Erfassung!$P2:$P2)/5),"F") ->  | G31: =IF(ISNA(VLOOKUP(G30,'Feiertage und Ferien'!$A:$D,3,FALSE)),IF(OR(WEEKDAY(G30)=1,WEEKDAY(G30)=7),"",Erfassung!$B$2*SUM(Erfassung!$P2:$P2)/5),"F") -> 6.72 | H31: =IF(ISNA(VLOOKUP(H30,'Feiertage und Ferien'!$A:$D,3,FALSE)),IF(OR(WEEKDAY(H30)=1,WEEKDAY(H30)=7),"",Erfassung!$B$2*SUM(Erfassung!$P2:$P2)/5),"F") -> 6.72 | I31: =IF(ISNA(VLOOKUP(I30,'Feiertage und Ferien'!$A:$D,3,FALSE)),IF(OR(WEEKDAY(I30)=1,WEEKDAY(I30)=7),"",Erfassung!$B$2*SUM(Erfassung!$P2:$P2)/5),"F") -> 6.72 | J31: =IF(ISNA(VLOOKUP(J30,'Feiertage und Ferien'!$A:$D,3,FALSE)),IF(OR(WEEKDAY(J30)=1,WEEKDAY(J30)=7),"",Erfassung!$B$2*SUM(Erfassung!$P2:$P2)/5),"F") -> 6.72 | K31: =IF(ISNA(VLOOKUP(K30,'Feiertage und Ferien'!$A:$D,3,FALSE)),IF(OR(WEEKDAY(K30)=1,WEEKDAY(K30)=7),"",Erfassung!$B$2*SUM(Erfassung!$P2:$P2)/5),"F") -> 6.72 | L31: =IF(ISNA(VLOOKUP(L30,'Feiertage und Ferien'!$A:$D,3,FALSE)),IF(OR(WEEKDAY(L30)=1,WEEKDAY(L30)=7),"",Erfassung!$B$2*SUM(Erfassung!$P2:$P2)/5),"F") ->  | M31: =IF(ISNA(VLOOKUP(M30,'Feiertage und Ferien'!$A:$D,3,FALSE)),IF(OR(WEEKDAY(M30)=1,WEEKDAY(M30)=7),"",Erfassung!$B$2*SUM(Erfassung!$P2:$P2)/5),"F") ->  | N31: =IF(ISNA(VLOOKUP(N30,'Feiertage und Ferien'!$A:$D,3,FALSE)),IF(OR(WEEKDAY(N30)=1,WEEKDAY(N30)=7),"",Erfassung!$B$2*SUM(Erfassung!$P2:$P2)/5),"F") -> 6.72 | O31: =IF(ISNA(VLOOKUP(O30,'Feiertage und Ferien'!$A:$D,3,FALSE)),IF(OR(WEEKDAY(O30)=1,WEEKDAY(O30)=7),"",Erfassung!$B$2*SUM(Erfassung!$P2:$P2)/5),"F") -> 6.72 | P31: =IF(ISNA(VLOOKUP(P30,'Feiertage und Ferien'!$A:$D,3,FALSE)),IF(OR(WEEKDAY(P30)=1,WEEKDAY(P30)=7),"",Erfassung!$B$2*SUM(Erfassung!$P2:$P2)/5),"F") -> 6.72 | Q31: =IF(ISNA(VLOOKUP(Q30,'Feiertage und Ferien'!$A:$D,3,FALSE)),IF(OR(WEEKDAY(Q30)=1,WEEKDAY(Q30)=7),"",Erfassung!$B$2*SUM(Erfassung!$P2:$P2)/5),"F") -> 6.72 | R31: =IF(ISNA(VLOOKUP(R30,'Feiertage und Ferien'!$A:$D,3,FALSE)),IF(OR(WEEKDAY(R30)=1,WEEKDAY(R30)=7),"",Erfassung!$B$2*SUM(Erfassung!$P2:$P2)/5),"F") -> 6.72 | S31: =IF(ISNA(VLOOKUP(S30,'Feiertage und Ferien'!$A:$D,3,FALSE)),IF(OR(WEEKDAY(S30)=1,WEEKDAY(S30)=7),"",Erfassung!$B$2*SUM(Erfassung!$P2:$P2)/5),"F") ->  | T31: =IF(ISNA(VLOOKUP(T30,'Feiertage und Ferien'!$A:$D,3,FALSE)),IF(OR(WEEKDAY(T30)=1,WEEKDAY(T30)=7),"",Erfassung!$B$2*SUM(Erfassung!$P2:$P2)/5),"F") ->  | U31: =IF(ISNA(VLOOKUP(U30,'Feiertage und Ferien'!$A:$D,3,FALSE)),IF(OR(WEEKDAY(U30)=1,WEEKDAY(U30)=7),"",Erfassung!$B$2*SUM(Erfassung!$P2:$P2)/5),"F") -> 6.72 | V31: =IF(ISNA(VLOOKUP(V30,'Feiertage und Ferien'!$A:$D,3,FALSE)),IF(OR(WEEKDAY(V30)=1,WEEKDAY(V30)=7),"",Erfassung!$B$2*SUM(Erfassung!$P2:$P2)/5),"F") -> 6.72 | W31: =IF(ISNA(VLOOKUP(W30,'Feiertage und Ferien'!$A:$D,3,FALSE)),IF(OR(WEEKDAY(W30)=1,WEEKDAY(W30)=7),"",Erfassung!$B$2*SUM(Erfassung!$P2:$P2)/5),"F") -> 6.72 | X31: =IF(ISNA(VLOOKUP(X30,'Feiertage und Ferien'!$A:$D,3,FALSE)),IF(OR(WEEKDAY(X30)=1,WEEKDAY(X30)=7),"",Erfassung!$B$2*SUM(Erfassung!$P2:$P2)/5),"F") -> 6.72 | Y31: =IF(ISNA(VLOOKUP(Y30,'Feiertage und Ferien'!$A:$D,3,FALSE)),IF(OR(WEEKDAY(Y30)=1,WEEKDAY(Y30)=7),"",Erfassung!$B$2*SUM(Erfassung!$P2:$P2)/5),"F") -> 6.72 | Z31: =IF(ISNA(VLOOKUP(Z30,'Feiertage und Ferien'!$A:$D,3,FALSE)),IF(OR(WEEKDAY(Z30)=1,WEEKDAY(Z30)=7),"",Erfassung!$B$2*SUM(Erfassung!$P2:$P2)/5),"F") ->  | AA31: =IF(ISNA(VLOOKUP(AA30,'Feiertage und Ferien'!$A:$D,3,FALSE)),IF(OR(WEEKDAY(AA30)=1,WEEKDAY(AA30)=7),"",Erfassung!$B$2*SUM(Erfassung!$P2:$P2)/5),"F") ->  | AB31: =IF(ISNA(VLOOKUP(AB30,'Feiertage und Ferien'!$A:$D,3,FALSE)),IF(OR(WEEKDAY(AB30)=1,WEEKDAY(AB30)=7),"",Erfassung!$B$2*SUM(Erfassung!$P2:$P2)/5),"F") -> 6.72 | AC31: =IF(ISNA(VLOOKUP(AC30,'Feiertage und Ferien'!$A:$D,3,FALSE)),IF(OR(WEEKDAY(AC30)=1,WEEKDAY(AC30)=7),"",Erfassung!$B$2*SUM(Erfassung!$P2:$P2)/5),"F") -> 6.72 | AD31: =IF(ISNA(VLOOKUP(AD30,'Feiertage und Ferien'!$A:$D,3,FALSE)),IF(OR(WEEKDAY(AD30)=1,WEEKDAY(AD30)=7),"",Erfassung!$B$2*SUM(Erfassung!$P2:$P2)/5),"F") -> 6.72 | AE31: =IF(ISNA(VLOOKUP(AE30,'Feiertage und Ferien'!$A:$D,3,FALSE)),IF(OR(WEEKDAY(AE30)=1,WEEKDAY(AE30)=7),"",Erfassung!$B$2*SUM(Erfassung!$P2:$P2)/5),"F") -> 6.72 | AF31: =IF(ISNA(VLOOKUP(AF30,'Feiertage und Ferien'!$A:$D,3,FALSE)),IF(OR(WEEKDAY(AF30)=1,WEEKDAY(AF30)=7),"",Erfassung!$B$2*SUM(Erfassung!$P2:$P2)/5),"F") -> 6.72 | AI31: =Erfassung!P2+20% -> 1 | AJ31: Oktober
B32: =IF(B31="F",B31,Arbeitstage!B23) -> F | C32: =IF(C31="F",C31,Arbeitstage!C23) -> F | D32: =IF(D31="F",D31,Arbeitstage!D23) -> F | E32: =IF(E31="F",E31,Arbeitstage!E23) -> F | F32: =IF(F31="F",F31,Arbeitstage!F23) -> F | G32: =IF(G31="F",G31,Arbeitstage!G23) -> F | H32: =IF(H31="F",H31,Arbeitstage!H23) -> F | I32: =IF(I31="F",I31,Arbeitstage!I23) -> F | J32: =IF(J31="F",J31,Arbeitstage!J23) -> F | K32: =IF(K31="F",K31,Arbeitstage!K23) -> F | L32: =IF(L31="F",L31,Arbeitstage!L23) -> F | M32: =IF(M31="F",M31,Arbeitstage!M23) ->  | N32: =IF(N31="F",N31,Arbeitstage!N23) -> 1 | O32: =IF(O31="F",O31,Arbeitstage!O23) -> 1 | P32: =IF(P31="F",P31,Arbeitstage!P23) -> 1 | Q32: =IF(Q31="F",Q31,Arbeitstage!Q23) -> 1 | R32: =IF(R31="F",R31,Arbeitstage!R23) -> 1 | S32: =IF(S31="F",S31,Arbeitstage!S23) ->  | T32: =IF(T31="F",T31,Arbeitstage!T23) ->  | U32: =IF(U31="F",U31,Arbeitstage!U23) -> 1 | V32: =IF(V31="F",V31,Arbeitstage!V23) -> 1 | W32: =IF(W31="F",W31,Arbeitstage!W23) -> 1 | X32: =IF(X31="F",X31,Arbeitstage!X23) -> 1 | Y32: =IF(Y31="F",Y31,Arbeitstage!Y23) -> 1 | Z32: =IF(Z31="F",Z31,Arbeitstage!Z23) ->  | AA32: =IF(AA31="F",AA31,Arbeitstage!AA23) ->  | AB32: =IF(AB31="F",AB31,Arbeitstage!AB23) -> 1 | AC32: =IF(AC31="F",AC31,Arbeitstage!AC23) -> 1 | AD32: =IF(AD31="F",AD31,Arbeitstage!AD23) -> 1 | AE32: =IF(AE31="F",AE31,Arbeitstage!AE23) -> 1 | AF32: =IF(AF31="F",AF31,Arbeitstage!AF23) -> 1 | AG32: =SUM(Erfassung!$D:$D)/12 -> 2.083333333 | AH32: =IF(AG32="","",AG32*Erfassung!B2*SUM(Erfassung!P2:P2)/5) -> 14 | AI32: =SUM(B32:AF32) -> 15 | AJ32: =SUM(B31:AF31) -> 154.56 | AK32: =ROUND(AI32*AI31/5,1)*5 -> 15
B33: =AF30+1 -> 2025-11-01 | C33: =B33+1 -> 45963 | D33: 45964 | E33: 45965 | F33: 45966 | G33: 45967 | H33: 45968 | I33: 45969 | J33: 45970 | K33: 45971 | L33: 45972 | M33: 45973 | N33: 45974 | O33: 45975 | P33: 45976 | Q33: 45977 | R33: 45978 | S33: 45979 | T33: 45980 | U33: 45981 | V33: 45982 | W33: 45983 | X33: 45984 | Y33: 45985 | Z33: 45986 | AA33: 45987 | AB33: 45988 | AC33: 45989 | AD33: 45990 | AE33: 45991
A34: November | B34: =IF(ISNA(VLOOKUP(B33,'Feiertage und Ferien'!$A:$D,3,FALSE)),IF(OR(WEEKDAY(B33)=1,WEEKDAY(B33)=7),"",Erfassung!$B$2*SUM(Erfassung!$Q2:$Q2)/5),"F") ->  | C34: =IF(ISNA(VLOOKUP(C33,'Feiertage und Ferien'!$A:$D,3,FALSE)),IF(OR(WEEKDAY(C33)=1,WEEKDAY(C33)=7),"",Erfassung!$B$2*SUM(Erfassung!$Q2:$Q2)/5),"F") ->  | D34: =IF(ISNA(VLOOKUP(D33,'Feiertage und Ferien'!$A:$D,3,FALSE)),IF(OR(WEEKDAY(D33)=1,WEEKDAY(D33)=7),"",Erfassung!$B$2*SUM(Erfassung!$Q2:$Q2)/5),"F") -> 6.72 | E34: =IF(ISNA(VLOOKUP(E33,'Feiertage und Ferien'!$A:$D,3,FALSE)),IF(OR(WEEKDAY(E33)=1,WEEKDAY(E33)=7),"",Erfassung!$B$2*SUM(Erfassung!$Q2:$Q2)/5),"F") -> 6.72 | F34: =IF(ISNA(VLOOKUP(F33,'Feiertage und Ferien'!$A:$D,3,FALSE)),IF(OR(WEEKDAY(F33)=1,WEEKDAY(F33)=7),"",Erfassung!$B$2*SUM(Erfassung!$Q2:$Q2)/5),"F") -> 6.72 | G34: =IF(ISNA(VLOOKUP(G33,'Feiertage und Ferien'!$A:$D,3,FALSE)),IF(OR(WEEKDAY(G33)=1,WEEKDAY(G33)=7),"",Erfassung!$B$2*SUM(Erfassung!$Q2:$Q2)/5),"F") -> 6.72 | H34: =IF(ISNA(VLOOKUP(H33,'Feiertage und Ferien'!$A:$D,3,FALSE)),IF(OR(WEEKDAY(H33)=1,WEEKDAY(H33)=7),"",Erfassung!$B$2*SUM(Erfassung!$Q2:$Q2)/5),"F") -> 6.72 | I34: =IF(ISNA(VLOOKUP(I33,'Feiertage und Ferien'!$A:$D,3,FALSE)),IF(OR(WEEKDAY(I33)=1,WEEKDAY(I33)=7),"",Erfassung!$B$2*SUM(Erfassung!$Q2:$Q2)/5),"F") ->  | J34: =IF(ISNA(VLOOKUP(J33,'Feiertage und Ferien'!$A:$D,3,FALSE)),IF(OR(WEEKDAY(J33)=1,WEEKDAY(J33)=7),"",Erfassung!$B$2*SUM(Erfassung!$Q2:$Q2)/5),"F") ->  | K34: =IF(ISNA(VLOOKUP(K33,'Feiertage und Ferien'!$A:$D,3,FALSE)),IF(OR(WEEKDAY(K33)=1,WEEKDAY(K33)=7),"",Erfassung!$B$2*SUM(Erfassung!$Q2:$Q2)/5),"F") -> 6.72 | L34: =IF(ISNA(VLOOKUP(L33,'Feiertage und Ferien'!$A:$D,3,FALSE)),IF(OR(WEEKDAY(L33)=1,WEEKDAY(L33)=7),"",Erfassung!$B$2*SUM(Erfassung!$Q2:$Q2)/5),"F") -> 6.72 | M34: =IF(ISNA(VLOOKUP(M33,'Feiertage und Ferien'!$A:$D,3,FALSE)),IF(OR(WEEKDAY(M33)=1,WEEKDAY(M33)=7),"",Erfassung!$B$2*SUM(Erfassung!$Q2:$Q2)/5),"F") -> 6.72 | N34: =IF(ISNA(VLOOKUP(N33,'Feiertage und Ferien'!$A:$D,3,FALSE)),IF(OR(WEEKDAY(N33)=1,WEEKDAY(N33)=7),"",Erfassung!$B$2*SUM(Erfassung!$Q2:$Q2)/5),"F") -> 6.72 | O34: =IF(ISNA(VLOOKUP(O33,'Feiertage und Ferien'!$A:$D,3,FALSE)),IF(OR(WEEKDAY(O33)=1,WEEKDAY(O33)=7),"",Erfassung!$B$2*SUM(Erfassung!$Q2:$Q2)/5),"F") -> 6.72 | P34: =IF(ISNA(VLOOKUP(P33,'Feiertage und Ferien'!$A:$D,3,FALSE)),IF(OR(WEEKDAY(P33)=1,WEEKDAY(P33)=7),"",Erfassung!$B$2*SUM(Erfassung!$Q2:$Q2)/5),"F") ->  | Q34: =IF(ISNA(VLOOKUP(Q33,'Feiertage und Ferien'!$A:$D,3,FALSE)),IF(OR(WEEKDAY(Q33)=1,WEEKDAY(Q33)=7),"",Erfassung!$B$2*SUM(Erfassung!$Q2:$Q2)/5),"F") ->  | R34: =IF(ISNA(VLOOKUP(R33,'Feiertage und Ferien'!$A:$D,3,FALSE)),IF(OR(WEEKDAY(R33)=1,WEEKDAY(R33)=7),"",Erfassung!$B$2*SUM(Erfassung!$Q2:$Q2)/5),"F") -> 6.72 | S34: =IF(ISNA(VLOOKUP(S33,'Feiertage und Ferien'!$A:$D,3,FALSE)),IF(OR(WEEKDAY(S33)=1,WEEKDAY(S33)=7),"",Erfassung!$B$2*SUM(Erfassung!$Q2:$Q2)/5),"F") -> 6.72 | T34: =IF(ISNA(VLOOKUP(T33,'Feiertage und Ferien'!$A:$D,3,FALSE)),IF(OR(WEEKDAY(T33)=1,WEEKDAY(T33)=7),"",Erfassung!$B$2*SUM(Erfassung!$Q2:$Q2)/5),"F") -> 6.72 | U34: =IF(ISNA(VLOOKUP(U33,'Feiertage und Ferien'!$A:$D,3,FALSE)),IF(OR(WEEKDAY(U33)=1,WEEKDAY(U33)=7),"",Erfassung!$B$2*SUM(Erfassung!$Q2:$Q2)/5),"F") -> 6.72 | V34: =IF(ISNA(VLOOKUP(V33,'Feiertage und Ferien'!$A:$D,3,FALSE)),IF(OR(WEEKDAY(V33)=1,WEEKDAY(V33)=7),"",Erfassung!$B$2*SUM(Erfassung!$Q2:$Q2)/5),"F") -> 6.72 | W34: =IF(ISNA(VLOOKUP(W33,'Feiertage und Ferien'!$A:$D,3,FALSE)),IF(OR(WEEKDAY(W33)=1,WEEKDAY(W33)=7),"",Erfassung!$B$2*SUM(Erfassung!$Q2:$Q2)/5),"F") ->  | X34: =IF(ISNA(VLOOKUP(X33,'Feiertage und Ferien'!$A:$D,3,FALSE)),IF(OR(WEEKDAY(X33)=1,WEEKDAY(X33)=7),"",Erfassung!$B$2*SUM(Erfassung!$Q2:$Q2)/5),"F") ->  | Y34: =IF(ISNA(VLOOKUP(Y33,'Feiertage und Ferien'!$A:$D,3,FALSE)),IF(OR(WEEKDAY(Y33)=1,WEEKDAY(Y33)=7),"",Erfassung!$B$2*SUM(Erfassung!$Q2:$Q2)/5),"F") -> 6.72 | Z34: =IF(ISNA(VLOOKUP(Z33,'Feiertage und Ferien'!$A:$D,3,FALSE)),IF(OR(WEEKDAY(Z33)=1,WEEKDAY(Z33)=7),"",Erfassung!$B$2*SUM(Erfassung!$Q2:$Q2)/5),"F") -> 6.72 | AA34: =IF(ISNA(VLOOKUP(AA33,'Feiertage und Ferien'!$A:$D,3,FALSE)),IF(OR(WEEKDAY(AA33)=1,WEEKDAY(AA33)=7),"",Erfassung!$B$2*SUM(Erfassung!$Q2:$Q2)/5),"F") -> 6.72 | AB34: =IF(ISNA(VLOOKUP(AB33,'Feiertage und Ferien'!$A:$D,3,FALSE)),IF(OR(WEEKDAY(AB33)=1,WEEKDAY(AB33)=7),"",Erfassung!$B$2*SUM(Erfassung!$Q2:$Q2)/5),"F") -> 6.72 | AC34: =IF(ISNA(VLOOKUP(AC33,'Feiertage und Ferien'!$A:$D,3,FALSE)),IF(OR(WEEKDAY(AC33)=1,WEEKDAY(AC33)=7),"",Erfassung!$B$2*SUM(Erfassung!$Q2:$Q2)/5),"F") -> 6.72 | AD34: =IF(ISNA(VLOOKUP(AD33,'Feiertage und Ferien'!$A:$D,3,FALSE)),IF(OR(WEEKDAY(AD33)=1,WEEKDAY(AD33)=7),"",Erfassung!$B$2*SUM(Erfassung!$Q2:$Q2)/5),"F") ->  | AE34: =IF(ISNA(VLOOKUP(AE33,'Feiertage und Ferien'!$A:$D,3,FALSE)),IF(OR(WEEKDAY(AE33)=1,WEEKDAY(AE33)=7),"",Erfassung!$B$2*SUM(Erfassung!$Q2:$Q2)/5),"F") ->  | AF34: =IF(ISNA(VLOOKUP(AF33,'Feiertage und Ferien'!$A:$D,3,FALSE)),IF(OR(WEEKDAY(AF33)=1,WEEKDAY(AF33)=7),"",Erfassung!$B$2*SUM(Erfassung!$Q2:$Q2)/5),"F") ->  | AI34: =Erfassung!Q2+20% -> 1 | AJ34: November
B35: =IF(B34="F",B34,Arbeitstage!B25) ->  | C35: =IF(C34="F",C34,Arbeitstage!C25) ->  | D35: =IF(D34="F",D34,Arbeitstage!D25) -> 1 | E35: =IF(E34="F",E34,Arbeitstage!E25) -> 1 | F35: =IF(F34="F",F34,Arbeitstage!F25) -> 1 | G35: =IF(G34="F",G34,Arbeitstage!G25) -> 1 | H35: =IF(H34="F",H34,Arbeitstage!H25) -> 1 | I35: =IF(I34="F",I34,Arbeitstage!I25) ->  | J35: =IF(J34="F",J34,Arbeitstage!J25) ->  | K35: =IF(K34="F",K34,Arbeitstage!K25) -> 1 | L35: =IF(L34="F",L34,Arbeitstage!L25) -> 1 | M35: =IF(M34="F",M34,Arbeitstage!M25) -> 1 | N35: =IF(N34="F",N34,Arbeitstage!N25) -> 1 | O35: =IF(O34="F",O34,Arbeitstage!O25) -> 1 | P35: =IF(P34="F",P34,Arbeitstage!P25) ->  | Q35: =IF(Q34="F",Q34,Arbeitstage!Q25) ->  | R35: =IF(R34="F",R34,Arbeitstage!R25) -> 1 | S35: =IF(S34="F",S34,Arbeitstage!S25) -> 1 | T35: =IF(T34="F",T34,Arbeitstage!T25) -> 1 | U35: =IF(U34="F",U34,Arbeitstage!U25) -> 1 | V35: =IF(V34="F",V34,Arbeitstage!V25) -> 1 | W35: =IF(W34="F",W34,Arbeitstage!W25) ->  | X35: =IF(X34="F",X34,Arbeitstage!X25) ->  | Y35: =IF(Y34="F",Y34,Arbeitstage!Y25) -> 1 | Z35: =IF(Z34="F",Z34,Arbeitstage!Z25) -> 1 | AA35: =IF(AA34="F",AA34,Arbeitstage!AA25) -> 1 | AB35: =IF(AB34="F",AB34,Arbeitstage!AB25) -> 1 | AC35: =IF(AC34="F",AC34,Arbeitstage!AC25) -> 1 | AD35: =IF(AD34="F",AD34,Arbeitstage!AD25) ->  | AE35: =IF(AE34="F",AE34,Arbeitstage!AE25) ->  | AF35: =IF(AF34="F",AF34,Arbeitstage!AF25) ->  | AG35: =SUM(Erfassung!$D:$D)/12 -> 2.083333333 | AH35: =IF(AG35="","",AG35*Erfassung!B2*SUM(Erfassung!Q2:Q2)/5) -> 14 | AI35: =SUM(B35:AF35) -> 20 | AJ35: =SUM(B34:AF34) -> 134.4 | AK35: =ROUND(AI35*AI34/5,1)*5 -> 20
B36: =AE33+1 -> 2025-12-01 | C36: =B36+1 -> 45993 | D36: 45994 | E36: 45995 | F36: 45996 | G36: 45997 | H36: 45998 | I36: 45999 | J36: 46000 | K36: 46001 | L36: 46002 | M36: 46003 | N36: 46004 | O36: 46005 | P36: 46006 | Q36: 46007 | R36: 46008 | S36: 46009 | T36: 46010 | U36: 46011 | V36: 46012 | W36: 46013 | X36: 46014 | Y36: 46015 | Z36: 46016 | AA36: 46017 | AB36: 46018 | AC36: 46019 | AD36: 46020 | AE36: 46021 | AF36: 46022 | AH36: =IF(AG36="","",AG36*Erfassung!#REF!*SUM(Erfassung!Q:Q)/5) -> 
A37: Dezember | B37: =IF(ISNA(VLOOKUP(B36,'Feiertage und Ferien'!$A:$D,3,FALSE)),IF(OR(WEEKDAY(B36)=1,WEEKDAY(B36)=7),"",Erfassung!$B$2*SUM(Erfassung!$R2:$R2)/5),"F") -> 6.72 | C37: =IF(ISNA(VLOOKUP(C36,'Feiertage und Ferien'!$A:$D,3,FALSE)),IF(OR(WEEKDAY(C36)=1,WEEKDAY(C36)=7),"",Erfassung!$B$2*SUM(Erfassung!$R2:$R2)/5),"F") -> 6.72 | D37: =IF(ISNA(VLOOKUP(D36,'Feiertage und Ferien'!$A:$D,3,FALSE)),IF(OR(WEEKDAY(D36)=1,WEEKDAY(D36)=7),"",Erfassung!$B$2*SUM(Erfassung!$R2:$R2)/5),"F") -> 6.72 | E37: =IF(ISNA(VLOOKUP(E36,'Feiertage und Ferien'!$A:$D,3,FALSE)),IF(OR(WEEKDAY(E36)=1,WEEKDAY(E36)=7),"",Erfassung!$B$2*SUM(Erfassung!$R2:$R2)/5),"F") -> 6.72 | F37: =IF(ISNA(VLOOKUP(F36,'Feiertage und Ferien'!$A:$D,3,FALSE)),IF(OR(WEEKDAY(F36)=1,WEEKDAY(F36)=7),"",Erfassung!$B$2*SUM(Erfassung!$R2:$R2)/5),"F") -> 6.72 | G37: =IF(ISNA(VLOOKUP(G36,'Feiertage und Ferien'!$A:$D,3,FALSE)),IF(OR(WEEKDAY(G36)=1,WEEKDAY(G36)=7),"",Erfassung!$B$2*SUM(Erfassung!$R2:$R2)/5),"F") ->  | H37: =IF(ISNA(VLOOKUP(H36,'Feiertage und Ferien'!$A:$D,3,FALSE)),IF(OR(WEEKDAY(H36)=1,WEEKDAY(H36)=7),"",Erfassung!$B$2*SUM(Erfassung!$R2:$R2)/5),"F") ->  | I37: =IF(ISNA(VLOOKUP(I36,'Feiertage und Ferien'!$A:$D,3,FALSE)),IF(OR(WEEKDAY(I36)=1,WEEKDAY(I36)=7),"",Erfassung!$B$2*SUM(Erfassung!$R2:$R2)/5),"F") -> 6.72 | J37: =IF(ISNA(VLOOKUP(J36,'Feiertage und Ferien'!$A:$D,3,FALSE)),IF(OR(WEEKDAY(J36)=1,WEEKDAY(J36)=7),"",Erfassung!$B$2*SUM(Erfassung!$R2:$R2)/5),"F") -> 6.72 | K37: =IF(ISNA(VLOOKUP(K36,'Feiertage und Ferien'!$A:$D,3,FALSE)),IF(OR(WEEKDAY(K36)=1,WEEKDAY(K36)=7),"",Erfassung!$B$2*SUM(Erfassung!$R2:$R2)/5),"F") -> 6.72 | L37: =IF(ISNA(VLOOKUP(L36,'Feiertage und Ferien'!$A:$D,3,FALSE)),IF(OR(WEEKDAY(L36)=1,WEEKDAY(L36)=7),"",Erfassung!$B$2*SUM(Erfassung!$R2:$R2)/5),"F") -> 6.72 | M37: =IF(ISNA(VLOOKUP(M36,'Feiertage und Ferien'!$A:$D,3,FALSE)),IF(OR(WEEKDAY(M36)=1,WEEKDAY(M36)=7),"",Erfassung!$B$2*SUM(Erfassung!$R2:$R2)/5),"F") -> 6.72 | N37: =IF(ISNA(VLOOKUP(N36,'Feiertage und Ferien'!$A:$D,3,FALSE)),IF(OR(WEEKDAY(N36)=1,WEEKDAY(N36)=7),"",Erfassung!$B$2*SUM(Erfassung!$R2:$R2)/5),"F") ->  | O37: =IF(ISNA(VLOOKUP(O36,'Feiertage und Ferien'!$A:$D,3,FALSE)),IF(OR(WEEKDAY(O36)=1,WEEKDAY(O36)=7),"",Erfassung!$B$2*SUM(Erfassung!$R2:$R2)/5),"F") ->  | P37: =IF(ISNA(VLOOKUP(P36,'Feiertage und Ferien'!$A:$D,3,FALSE)),IF(OR(WEEKDAY(P36)=1,WEEKDAY(P36)=7),"",Erfassung!$B$2*SUM(Erfassung!$R2:$R2)/5),"F") -> 6.72 | Q37: =IF(ISNA(VLOOKUP(Q36,'Feiertage und Ferien'!$A:$D,3,FALSE)),IF(OR(WEEKDAY(Q36)=1,WEEKDAY(Q36)=7),"",Erfassung!$B$2*SUM(Erfassung!$R2:$R2)/5),"F") -> 6.72 | R37: =IF(ISNA(VLOOKUP(R36,'Feiertage und Ferien'!$A:$D,3,FALSE)),IF(OR(WEEKDAY(R36)=1,WEEKDAY(R36)=7),"",Erfassung!$B$2*SUM(Erfassung!$R2:$R2)/5),"F") -> 6.72 | S37: =IF(ISNA(VLOOKUP(S36,'Feiertage und Ferien'!$A:$D,3,FALSE)),IF(OR(WEEKDAY(S36)=1,WEEKDAY(S36)=7),"",Erfassung!$B$2*SUM(Erfassung!$R2:$R2)/5),"F") -> 6.72 | T37: =IF(ISNA(VLOOKUP(T36,'Feiertage und Ferien'!$A:$D,3,FALSE)),IF(OR(WEEKDAY(T36)=1,WEEKDAY(T36)=7),"",Erfassung!$B$2*SUM(Erfassung!$R2:$R2)/5),"F") -> 6.72 | U37: =IF(ISNA(VLOOKUP(U36,'Feiertage und Ferien'!$A:$D,3,FALSE)),IF(OR(WEEKDAY(U36)=1,WEEKDAY(U36)=7),"",Erfassung!$B$2*SUM(Erfassung!$R2:$R2)/5),"F") ->  | V37: =IF(ISNA(VLOOKUP(V36,'Feiertage und Ferien'!$A:$D,3,FALSE)),IF(OR(WEEKDAY(V36)=1,WEEKDAY(V36)=7),"",Erfassung!$B$2*SUM(Erfassung!$R2:$R2)/5),"F") ->  | W37: =IF(ISNA(VLOOKUP(W36,'Feiertage und Ferien'!$A:$D,3,FALSE)),IF(OR(WEEKDAY(W36)=1,WEEKDAY(W36)=7),"",Erfassung!$B$2*SUM(Erfassung!$R2:$R2)/5),"F") -> 6.72 | X37: =IF(ISNA(VLOOKUP(X36,'Feiertage und Ferien'!$A:$D,3,FALSE)),IF(OR(WEEKDAY(X36)=1,WEEKDAY(X36)=7),"",Erfassung!$B$2*SUM(Erfassung!$R2:$R2)/5),"F") -> 6.72 | Y37: =IF(ISNA(VLOOKUP(Y36,'Feiertage und Ferien'!$A:$D,3,FALSE)),IF(OR(WEEKDAY(Y36)=1,WEEKDAY(Y36)=7),"",Erfassung!$B$2*SUM(Erfassung!$R2:$R2)/5),"F") -> 6.72 | Z37: =IF(ISNA(VLOOKUP(Z36,'Feiertage und Ferien'!$A:$D,3,FALSE)),IF(OR(WEEKDAY(Z36)=1,WEEKDAY(Z36)=7),"",Erfassung!$B$2*SUM(Erfassung!$R2:$R2)/5),"F") -> F | AA37: =IF(ISNA(VLOOKUP(AA36,'Feiertage und Ferien'!$A:$D,3,FALSE)),IF(OR(WEEKDAY(AA36)=1,WEEKDAY(AA36)=7),"",Erfassung!$B$2*SUM(Erfassung!$R2:$R2)/5),"F") -> F | AB37: =IF(ISNA(VLOOKUP(AB36,'Feiertage und Ferien'!$A:$D,3,FALSE)),IF(OR(WEEKDAY(AB36)=1,WEEKDAY(AB36)=7),"",Erfassung!$B$2*SUM(Erfassung!$R2:$R2)/5),"F") ->  | AC37: =IF(ISNA(VLOOKUP(AC36,'Feiertage und Ferien'!$A:$D,3,FALSE)),IF(OR(WEEKDAY(AC36)=1,WEEKDAY(AC36)=7),"",Erfassung!$B$2*SUM(Erfassung!$R2:$R2)/5),"F") ->  | AD37: =IF(ISNA(VLOOKUP(AD36,'Feiertage und Ferien'!$A:$D,3,FALSE)),IF(OR(WEEKDAY(AD36)=1,WEEKDAY(AD36)=7),"",Erfassung!$B$2*SUM(Erfassung!$R2:$R2)/5),"F") -> 6.72 | AE37: =IF(ISNA(VLOOKUP(AE36,'Feiertage und Ferien'!$A:$D,3,FALSE)),IF(OR(WEEKDAY(AE36)=1,WEEKDAY(AE36)=7),"",Erfassung!$B$2*SUM(Erfassung!$R2:$R2)/5),"F") -> 6.72 | AF37: =IF(ISNA(VLOOKUP(AF36,'Feiertage und Ferien'!$A:$D,3,FALSE)),IF(OR(WEEKDAY(AF36)=1,WEEKDAY(AF36)=7),"",Erfassung!$B$2*SUM(Erfassung!$R2:$R2)/5),"F") -> 6.72 | AI37: =Erfassung!R2+20% -> 1 | AJ37: Dezember
B38: =IF(B37="F",B37,Arbeitstage!B27) -> 1 | C38: =IF(C37="F",C37,Arbeitstage!C27) -> 1 | D38: =IF(D37="F",D37,Arbeitstage!D27) -> 1 | E38: =IF(E37="F",E37,Arbeitstage!E27) -> 1 | F38: =IF(F37="F",F37,Arbeitstage!F27) -> 1 | G38: =IF(G37="F",G37,Arbeitstage!G27) ->  | H38: =IF(H37="F",H37,Arbeitstage!H27) ->  | I38: =IF(I37="F",I37,Arbeitstage!I27) -> 1 | J38: =IF(J37="F",J37,Arbeitstage!J27) -> 1 | K38: =IF(K37="F",K37,Arbeitstage!K27) -> 1 | L38: =IF(L37="F",L37,Arbeitstage!L27) -> 1 | M38: =IF(M37="F",M37,Arbeitstage!M27) -> 1 | N38: =IF(N37="F",N37,Arbeitstage!N27) ->  | O38: =IF(O37="F",O37,Arbeitstage!O27) ->  | P38: =IF(P37="F",P37,Arbeitstage!P27) -> 1 | Q38: =IF(Q37="F",Q37,Arbeitstage!Q27) -> 1 | R38: =IF(R37="F",R37,Arbeitstage!R27) -> 1 | S38: =IF(S37="F",S37,Arbeitstage!S27) -> 1 | T38: =IF(T37="F",T37,Arbeitstage!T27) -> 1 | U38: =IF(U37="F",U37,Arbeitstage!U27) -> F | V38: =IF(V37="F",V37,Arbeitstage!V27) -> F | W38: =IF(W37="F",W37,Arbeitstage!W27) -> F | X38: =IF(X37="F",X37,Arbeitstage!X27) -> F | Y38: =IF(Y37="F",Y37,Arbeitstage!Y27) -> F | Z38: =IF(Z37="F",Z37,Arbeitstage!Z27) -> F | AA38: =IF(AA37="F",AA37,Arbeitstage!AA27) -> F | AB38: =IF(AB37="F",AB37,Arbeitstage!AB27) -> F | AC38: =IF(AC37="F",AC37,Arbeitstage!AC27) -> F | AD38: =IF(AD37="F",AD37,Arbeitstage!AD27) -> F | AE38: =IF(AE37="F",AE37,Arbeitstage!AE27) -> F | AF38: =IF(AF37="F",AF37,Arbeitstage!AF27) -> F | AG38: =SUM(Erfassung!$D:$D)/12 -> 2.083333333 | AH38: =IF(AG38="","",AG38*Erfassung!B2*SUM(Erfassung!R2:R2)/5) -> 14 | AI38: =SUM(B38:AF38) -> 15 | AJ38: =SUM(B37:AF37) -> 141.12 | AK38: =ROUND(AI38*AI37/5,1)*5 -> 15
A40: Legende: | B40: F | C40: Feiertage (obere Zeile) | I40: Arbeitstage | M40: Wochenende oder Kalenderende
B41: F | C41: Ferien (untere Zeile) | AJ41: Total Schul-Arbeitstage: | AK41: =SUM(AK5,AK8,AK11,AK14,AK17,AK20,AK23,AK26,AK29,AK32,AK35,AK38) -> 191
AJ43: Ferien | AK43: =SUM(AH38,AH35,AH32,AH29,AH26,AH23,AH20,AH17,AH14,AH11,AH8,AH5) -> 168
AJ44: Jahresarbeitszeit: | AK44: =SUM(AJ5,AJ8,AJ11,AJ14,AJ17,AJ20,AJ23,AJ26,AJ29,AJ32,AJ35,AJ38) -> 1693.44

Sheet Arbeitstage (hidden)
A1: Arbeitszeiten
A3: 2025 | B3: 1 | C3: 2 | D3: 3 | E3: 4 | F3: 5 | G3: 6 | H3: 7 | I3: 8 | J3: 9 | K3: 10 | L3: 11 | M3: 12 | N3: 13 | O3: 14 | P3: 15 | Q3: 16 | R3: 17 | S3: 18 | T3: 19 | U3: 20 | V3: 21 | W3: 22 | X3: 23 | Y3: 24 | Z3: 25 | AA3: 26 | AB3: 27 | AC3: 28 | AD3: 29 | AE3: 30 | AF3: 31 | AG3: 1 | AH3: Mt. | AI3: % | AJ3: Arbeitstage
B4: 2025-01-01 | C4: =B4+1 -> 2025-01-02 | D4: =C4+1 -> 2025-01-03 | E4: 2025-01-04 | F4: 2025-01-05 | G4: 2025-01-06 | H4: 2025-01-07 | I4: 2025-01-08 | J4: 2025-01-09 | K4: 2025-01-10 | L4: 2025-01-11 | M4: 2025-01-12 | N4: 2025-01-13 | O4: 2025-01-14 | P4: 2025-01-15 | Q4: 2025-01-16 | R4: 2025-01-17 | S4: 2025-01-18 | T4: 2025-01-19 | U4: 2025-01-20 | V4: 2025-01-21 | W4: 2025-01-22 | X4: 2025-01-23 | Y4: 2025-01-24 | Z4: 2025-01-25 | AA4: 2025-01-26 | AB4: 2025-01-27 | AC4: 2025-01-28 | AD4: 2025-01-29 | AE4: 2025-01-30 | AF4: 2025-01-31
A5: Januar | B5: =IF(SUMPRODUCT(('Feiertage und Ferien'!$H$8:$H$13<=B4)*('Feiertage und Ferien'!$I$8:$I$13>=B4)),"F",IF(OR(WEEKDAY(B4)=1,WEEKDAY(B4)=7),"",1)) -> F | C5: =IF(SUMPRODUCT(('Feiertage und Ferien'!$H$8:$H$13<=C4)*('Feiertage und Ferien'!$I$8:$I$13>=C4)),"F",IF(OR(WEEKDAY(C4)=1,WEEKDAY(C4)=7),"",1)) -> F | D5: =IF(SUMPRODUCT(('Feiertage und Ferien'!$H$8:$H$13<=D4)*('Feiertage und Ferien'!$I$8:$I$13>=D4)),"F",IF(OR(WEEKDAY(D4)=1,WEEKDAY(D4)=7),"",1)) -> F | E5: =IF(SUMPRODUCT(('Feiertage und Ferien'!$H$8:$H$13<=E4)*('Feiertage und Ferien'!$I$8:$I$13>=E4)),"F",IF(OR(WEEKDAY(E4)=1,WEEKDAY(E4)=7),"",1)) -> F | F5: =IF(SUMPRODUCT(('Feiertage und Ferien'!$H$8:$H$13<=F4)*('Feiertage und Ferien'!$I$8:$I$13>=F4)),"F",IF(OR(WEEKDAY(F4)=1,WEEKDAY(F4)=7),"",1)) -> F | G5: =IF(SUMPRODUCT(('Feiertage und Ferien'!$H$8:$H$13<=G4)*('Feiertage und Ferien'!$I$8:$I$13>=G4)),"F",IF(OR(WEEKDAY(G4)=1,WEEKDAY(G4)=7),"",1)) -> 1 | H5: =IF(SUMPRODUCT(('Feiertage und Ferien'!$H$8:$H$13<=H4)*('Feiertage und Ferien'!$I$8:$I$13>=H4)),"F",IF(OR(WEEKDAY(H4)=1,WEEKDAY(H4)=7),"",1)) -> 1 | I5: =IF(SUMPRODUCT(('Feiertage und Ferien'!$H$8:$H$13<=I4)*('Feiertage und Ferien'!$I$8:$I$13>=I4)),"F",IF(OR(WEEKDAY(I4)=1,WEEKDAY(I4)=7),"",1)) -> 1 | J5: =IF(SUMPRODUCT(('Feiertage und Ferien'!$H$8:$H$13<=J4)*('Feiertage und Ferien'!$I$8:$I$13>=J4)),"F",IF(OR(WEEKDAY(J4)=1,WEEKDAY(J4)=7),"",1)) -> 1 | K5: =IF(SUMPRODUCT(('Feiertage und Ferien'!$H$8:$H$13<=K4)*('Feiertage und Ferien'!$I$8:$I$13>=K4)),"F",IF(OR(WEEKDAY(K4)=1,WEEKDAY(K4)=7),"",1)) -> 1 | L5: =IF(SUMPRODUCT(('Feiertage und Ferien'!$H$8:$H$13<=L4)*('Feiertage und Ferien'!$I$8:$I$13>=L4)),"F",IF(OR(WEEKDAY(L4)=1,WEEKDAY(L4)=7),"",1)) ->  | M5: =IF(SUMPRODUCT(('Feiertage und Ferien'!$H$8:$H$13<=M4)*('Feiertage und Ferien'!$I$8:$I$13>=M4)),"F",IF(OR(WEEKDAY(M4)=1,WEEKDAY(M4)=7),"",1)) ->  | N5: =IF(SUMPRODUCT(('Feiertage und Ferien'!$H$8:$H$13<=N4)*('Feiertage und Ferien'!$I$8:$I$13>=N4)),"F",IF(OR(WEEKDAY(N4)=1,WEEKDAY(N4)=7),"",1)) -> 1 | O5: =IF(SUMPRODUCT(('Feiertage und Ferien'!$H$8:$H$13<=O4)*('Feiertage und Ferien'!$I$8:$I$13>=O4)),"F",IF(OR(WEEKDAY(O4)=1,WEEKDAY(O4)=7),"",1)) -> 1 | P5: =IF(SUMPRODUCT(('Feiertage und Ferien'!$H$8:$H$13<=P4)*('Feiertage und Ferien'!$I$8:$I$13>=P4)),"F",IF(OR(WEEKDAY(P4)=1,WEEKDAY(P4)=7),"",1)) -> 1 | Q5: =IF(SUMPRODUCT(('Feiertage und Ferien'!$H$8:$H$13<=Q4)*('Feiertage und Ferien'!$I$8:$I$13>=Q4)),"F",IF(OR(WEEKDAY(Q4)=1,WEEKDAY(Q4)=7),"",1)) -> 1 | R5: =IF(SUMPRODUCT(('Feiertage und Ferien'!$H$8:$H$13<=R4)*('Feiertage und Ferien'!$I$8:$I$13>=R4)),"F",IF(OR(WEEKDAY(R4)=1,WEEKDAY(R4)=7),"",1)) -> 1 | S5: =IF(SUMPRODUCT(('Feiertage und Ferien'!$H$8:$H$13<=S4)*('Feiertage und Ferien'!$I$8:$I$13>=S4)),"F",IF(OR(WEEKDAY(S4)=1,WEEKDAY(S4)=7),"",1)) ->  | T5: =IF(SUMPRODUCT(('Feiertage und Ferien'!$H$8:$H$13<=T4)*('Feiertage und Ferien'!$I$8:$I$13>=T4)),"F",IF(OR(WEEKDAY(T4)=1,WEEKDAY(T4)=7),"",1)) ->  | U5: =IF(SUMPRODUCT(('Feiertage und Ferien'!$H$8:$H$13<=U4)*('Feiertage und Ferien'!$I$8:$I$13>=U4)),"F",IF(OR(WEEKDAY(U4)=1,WEEKDAY(U4)=7),"",1)) -> 1 | V5: =IF(SUMPRODUCT(('Feiertage und Ferien'!$H$8:$H$13<=V4)*('Feiertage und Ferien'!$I$8:$I$13>=V4)),"F",IF(OR(WEEKDAY(V4)=1,WEEKDAY(V4)=7),"",1)) -> 1 | W5: =IF(SUMPRODUCT(('Feiertage und Ferien'!$H$8:$H$13<=W4)*('Feiertage und Ferien'!$I$8:$I$13>=W4)),"F",IF(OR(WEEKDAY(W4)=1,WEEKDAY(W4)=7),"",1)) -> 1 | X5: =IF(SUMPRODUCT(('Feiertage und Ferien'!$H$8:$H$13<=X4)*('Feiertage und Ferien'!$I$8:$I$13>=X4)),"F",IF(OR(WEEKDAY(X4)=1,WEEKDAY(X4)=7),"",1)) -> 1 | Y5: =IF(SUMPRODUCT(('Feiertage und Ferien'!$H$8:$H$13<=Y4)*('Feiertage und Ferien'!$I$8:$I$13>=Y4)),"F",IF(OR(WEEKDAY(Y4)=1,WEEKDAY(Y4)=7),"",1)) -> 1 | Z5: =IF(SUMPRODUCT(('Feiertage und Ferien'!$H$8:$H$13<=Z4)*('Feiertage und Ferien'!$I$8:$I$13>=Z4)),"F",IF(OR(WEEKDAY(Z4)=1,WEEKDAY(Z4)=7),"",1)) -> F | AA5: =IF(SUMPRODUCT(('Feiertage und Ferien'!$H$8:$H$13<=AA4)*('Feiertage und Ferien'!$I$8:$I$13>=AA4)),"F",IF(OR(WEEKDAY(AA4)=1,WEEKDAY(AA4)=7),"",1)) -> F | AB5: =IF(SUMPRODUCT(('Feiertage und Ferien'!$H$8:$H$13<=AB4)*('Feiertage und Ferien'!$I$8:$I$13>=AB4)),"F",IF(OR(WEEKDAY(AB4)=1,WEEKDAY(AB4)=7),"",1)) -> F | AC5: =IF(SUMPRODUCT(('Feiertage und Ferien'!$H$8:$H$13<=AC4)*('Feiertage und Ferien'!$I$8:$I$13>=AC4)),"F",IF(OR(WEEKDAY(AC4)=1,WEEKDAY(AC4)=7),"",1)) -> F | AD5: =IF(SUMPRODUCT(('Feiertage und Ferien'!$H$8:$H$13<=AD4)*('Feiertage und Ferien'!$I$8:$I$13>=AD4)),"F",IF(OR(WEEKDAY(AD4)=1,WEEKDAY(AD4)=7),"",1)) -> F | AE5: =IF(SUMPRODUCT(('Feiertage und Ferien'!$H$8:$H$13<=AE4)*('Feiertage und Ferien'!$I$8:$I$13>=AE4)),"F",IF(OR(WEEKDAY(AE4)=1,WEEKDAY(AE4)=7),"",1)) -> F | AF5: =IF(SUMPRODUCT(('Feiertage und Ferien'!$H$8:$H$13<=AF4)*('Feiertage und Ferien'!$I$8:$I$13>=AF4)),"F",IF(OR(WEEKDAY(AF4)=1,WEEKDAY(AF4)=7),"",1)) -> F | AG5: =COUNT(B5:AF5,"<0.1") -> 15 | AH5: Januar | AI5: =Erfassung!G2+20% -> 1 | AJ5: =ROUND(AG5*AI5/5,1)*5 -> 15
B6: =AF4+1 -> 2025-02-01 | C6: =B6+1 -> 2025-02-02 | D6: 2025-02-03 | E6: 2025-02-04 | F6: 2025-02-05 | G6: 2025-02-06 | H6: 2025-02-07 | I6: 2025-02-08 | J6: 2025-02-09 | K6: 2025-02-10 | L6: 2025-02-11 | M6: 2025-02-12 | N6: 2025-02-13 | O6: 2025-02-14 | P6: 2025-02-15 | Q6: 2025-02-16 | R6: 2025-02-17 | S6: 2025-02-18 | T6: 2025-02-19 | U6: 2025-02-20 | V6: 2025-02-21 | W6: 2025-02-22 | X6: 2025-02-23 | Y6: 2025-02-24 | Z6: 2025-02-25 | AA6: 2025-02-26 | AB6: 2025-02-27 | AC6: 2025-02-28
A7: Februar | B7: =IF(SUMPRODUCT(('Feiertage und Ferien'!$H$8:$H$13<=B6)*('Feiertage und Ferien'!$I$8:$I$13>=B6)),"F",IF(OR(WEEKDAY(B6)=1,WEEKDAY(B6)=7),"",1)) -> F | C7: =IF(SUMPRODUCT(('Feiertage und Ferien'!$H$8:$H$13<=C6)*('Feiertage und Ferien'!$I$8:$I$13>=C6)),"F",IF(OR(WEEKDAY(C6)=1,WEEKDAY(C6)=7),"",1)) -> F | D7: =IF(SUMPRODUCT(('Feiertage und Ferien'!$H$8:$H$13<=D6)*('Feiertage und Ferien'!$I$8:$I$13>=D6)),"F",IF(OR(WEEKDAY(D6)=1,WEEKDAY(D6)=7),"",1)) -> F | E7: =IF(SUMPRODUCT(('Feiertage und Ferien'!$H$8:$H$13<=E6)*('Feiertage und Ferien'!$I$8:$I$13>=E6)),"F",IF(OR(WEEKDAY(E6)=1,WEEKDAY(E6)=7),"",1)) -> F | F7: =IF(SUMPRODUCT(('Feiertage und Ferien'!$H$8:$H$13<=F6)*('Feiertage und Ferien'!$I$8:$I$13>=F6)),"F",IF(OR(WEEKDAY(F6)=1,WEEKDAY(F6)=7),"",1)) -> F | G7: =IF(SUMPRODUCT(('Feiertage und Ferien'!$H$8:$H$13<=G6)*('Feiertage und Ferien'!$I$8:$I$13>=G6)),"F",IF(OR(WEEKDAY(G6)=1,WEEKDAY(G6)=7),"",1)) -> F | H7: =IF(SUMPRODUCT(('Feiertage und Ferien'!$H$8:$H$13<=H6)*('Feiertage und Ferien'!$I$8:$I$13>=H6)),"F",IF(OR(WEEKDAY(H6)=1,WEEKDAY(H6)=7),"",1)) -> F | I7: =IF(SUMPRODUCT(('Feiertage und Ferien'!$H$8:$H$13<=I6)*('Feiertage und Ferien'!$I$8:$I$13>=I6)),"F",IF(OR(WEEKDAY(I6)=1,WEEKDAY(I6)=7),"",1)) -> F | J7: =IF(SUMPRODUCT(('Feiertage und Ferien'!$H$8:$H$13<=J6)*('Feiertage und Ferien'!$I$8:$I$13>=J6)),"F",IF(OR(WEEKDAY(J6)=1,WEEKDAY(J6)=7),"",1)) ->  | K7: =IF(SUMPRODUCT(('Feiertage und Ferien'!$H$8:$H$13<=K6)*('Feiertage und Ferien'!$I$8:$I$13>=K6)),"F",IF(OR(WEEKDAY(K6)=1,WEEKDAY(K6)=7),"",1)) -> 1 | L7: =IF(SUMPRODUCT(('Feiertage und Ferien'!$H$8:$H$13<=L6)*('Feiertage und Ferien'!$I$8:$I$13>=L6)),"F",IF(OR(WEEKDAY(L6)=1,WEEKDAY(L6)=7),"",1)) -> 1 | M7: =IF(SUMPRODUCT(('Feiertage und Ferien'!$H$8:$H$13<=M6)*('Feiertage und Ferien'!$I$8:$I$13>=M6)),"F",IF(OR(WEEKDAY(M6)=1,WEEKDAY(M6)=7),"",1)) -> 1 | N7: =IF(SUMPRODUCT(('Feiertage und Ferien'!$H$8:$H$13<=N6)*('Feiertage und Ferien'!$I$8:$I$13>=N6)),"F",IF(OR(WEEKDAY(N6)=1,WEEKDAY(N6)=7),"",1)) -> 1 | O7: =IF(SUMPRODUCT(('Feiertage und Ferien'!$H$8:$H$13<=O6)*('Feiertage und Ferien'!$I$8:$I$13>=O6)),"F",IF(OR(WEEKDAY(O6)=1,WEEKDAY(O6)=7),"",1)) -> 1 | P7: =IF(SUMPRODUCT(('Feiertage und Ferien'!$H$8:$H$13<=P6)*('Feiertage und Ferien'!$I$8:$I$13>=P6)),"F",IF(OR(WEEKDAY(P6)=1,WEEKDAY(P6)=7),"",1)) ->  | Q7: =IF(SUMPRODUCT(('Feiertage und Ferien'!$H$8:$H$13<=Q6)*('Feiertage und Ferien'!$I$8:$I$13>=Q6)),"F",IF(OR(WEEKDAY(Q6)=1,WEEKDAY(Q6)=7),"",1)) ->  | R7: =IF(SUMPRODUCT(('Feiertage und Ferien'!$H$8:$H$13<=R6)*('Feiertage und Ferien'!$I$8:$I$13>=R6)),"F",IF(OR(WEEKDAY(R6)=1,WEEKDAY(R6)=7),"",1)) -> 1 | S7: =IF(SUMPRODUCT(('Feiertage und Ferien'!$H$8:$H$13<=S6)*('Feiertage und Ferien'!$I$8:$I$13>=S6)),"F",IF(OR(WEEKDAY(S6)=1,WEEKDAY(S6)=7),"",1)) -> 1 | T7: =IF(SUMPRODUCT(('Feiertage und Ferien'!$H$8:$H$13<=T6)*('Feiertage und Ferien'!$I$8:$I$13>=T6)),"F",IF(OR(WEEKDAY(T6)=1,WEEKDAY(T6)=7),"",1)) -> 1 | U7: =IF(SUMPRODUCT(('Feiertage und Ferien'!$H$8:$H$13<=U6)*('Feiertage und Ferien'!$I$8:$I$13>=U6)),"F",IF(OR(WEEKDAY(U6)=1,WEEKDAY(U6)=7),"",1)) -> 1 | V7: =IF(SUMPRODUCT(('Feiertage und Ferien'!$H$8:$H$13<=V6)*('Feiertage und Ferien'!$I$8:$I$13>=V6)),"F",IF(OR(WEEKDAY(V6)=1,WEEKDAY(V6)=7),"",1)) -> 1 | W7: =IF(SUMPRODUCT(('Feiertage und Ferien'!$H$8:$H$13<=W6)*('Feiertage und Ferien'!$I$8:$I$13>=W6)),"F",IF(OR(WEEKDAY(W6)=1,WEEKDAY(W6)=7),"",1)) ->  | X7: =IF(SUMPRODUCT(('Feiertage und Ferien'!$H$8:$H$13<=X6)*('Feiertage und Ferien'!$I$8:$I$13>=X6)),"F",IF(OR(WEEKDAY(X6)=1,WEEKDAY(X6)=7),"",1)) ->  | Y7: =IF(SUMPRODUCT(('Feiertage und Ferien'!$H$8:$H$13<=Y6)*('Feiertage und Ferien'!$I$8:$I$13>=Y6)),"F",IF(OR(WEEKDAY(Y6)=1,WEEKDAY(Y6)=7),"",1)) -> 1 | Z7: =IF(SUMPRODUCT(('Feiertage und Ferien'!$H$8:$H$13<=Z6)*('Feiertage und Ferien'!$I$8:$I$13>=Z6)),"F",IF(OR(WEEKDAY(Z6)=1,WEEKDAY(Z6)=7),"",1)) -> 1 | AA7: =IF(SUMPRODUCT(('Feiertage und Ferien'!$H$8:$H$13<=AA6)*('Feiertage und Ferien'!$I$8:$I$13>=AA6)),"F",IF(OR(WEEKDAY(AA6)=1,WEEKDAY(AA6)=7),"",1)) -> 1 | AB7: =IF(SUMPRODUCT(('Feiertage und Ferien'!$H$8:$H$13<=AB6)*('Feiertage und Ferien'!$I$8:$I$13>=AB6)),"F",IF(OR(WEEKDAY(AB6)=1,WEEKDAY(AB6)=7),"",1)) -> 1 | AC7: =IF(SUMPRODUCT(('Feiertage und Ferien'!$H$8:$H$13<=AC6)*('Feiertage und Ferien'!$I$8:$I$13>=AC6)),"F",IF(OR(WEEKDAY(AC6)=1,WEEKDAY(AC6)=7),"",1)) -> 1 | AD7: =IF(SUMPRODUCT(('Feiertage und Ferien'!$H$8:$H$13<=AD6)*('Feiertage und Ferien'!$I$8:$I$13>=AD6)),"F",IF(OR(WEEKDAY(AD6)=1,WEEKDAY(AD6)=7),"",1)) ->  | AE7: =IF(SUMPRODUCT(('Feiertage und Ferien'!$H$8:$H$13<=AE6)*('Feiertage und Ferien'!$I$8:$I$13>=AE6)),"F",IF(OR(WEEKDAY(AE6)=1,WEEKDAY(AE6)=7),"",1)) ->  | AF7: =IF(SUMPRODUCT(('Feiertage und Ferien'!$H$8:$H$13<=AF6)*('Feiertage und Ferien'!$I$8:$I$13>=AF6)),"F",IF(OR(WEEKDAY(AF6)=1,WEEKDAY(AF6)=7),"",1)) ->  | AG7: =COUNT(B7:AF7,"<0.1") -> 15 | AH7: Februar | AI7: =Erfassung!H2+20% -> 1 | AJ7: =ROUND(AG7*AI7/5,1)*5 -> 15
B8: =AC6+1 -> 2025-03-01 | C8: =B8+1 -> 2025-03-02 | D8: 2025-03-03 | E8: 2025-03-04 | F8: 2025-03-05 | G8: 2025-03-06 | H8: 2025-03-07 | I8: 2025-03-08 | J8: 2025-03-09 | K8: 2025-03-10 | L8: 2025-03-11 | M8: 2025-03-12 | N8: 2025-03-13 | O8: 2025-03-14 | P8: 2025-03-15 | Q8: 2025-03-16 | R8: 2025-03-17 | S8: 2025-03-18 | T8: 2025-03-19 | U8: 2025-03-20 | V8: 2025-03-21 | W8: 2025-03-22 | X8: 2025-03-23 | Y8: 2025-03-24 | Z8: 2025-03-25 | AA8: 2025-03-26 | AB8: 2025-03-27 | AC8: 2025-03-28 | AD8: 2025-03-29 | AE8: =AD8+1 -> 2025-03-30 | AF8: =AE8+1 -> 2025-03-31
A9: März | B9: =IF(SUMPRODUCT(('Feiertage und Ferien'!$H$8:$H$13<=B8)*('Feiertage und Ferien'!$I$8:$I$13>=B8)),"F",IF(OR(WEEKDAY(B8)=1,WEEKDAY(B8)=7),"",1)) ->  | C9: =IF(SUMPRODUCT(('Feiertage und Ferien'!$H$8:$H$13<=C8)*('Feiertage und Ferien'!$I$8:$I$13>=C8)),"F",IF(OR(WEEKDAY(C8)=1,WEEKDAY(C8)=7),"",1)) ->  | D9: =IF(SUMPRODUCT(('Feiertage und Ferien'!$H$8:$H$13<=D8)*('Feiertage und Ferien'!$I$8:$I$13>=D8)),"F",IF(OR(WEEKDAY(D8)=1,WEEKDAY(D8)=7),"",1)) -> 1 | E9: =IF(SUMPRODUCT(('Feiertage und Ferien'!$H$8:$H$13<=E8)*('Feiertage und Ferien'!$I$8:$I$13>=E8)),"F",IF(OR(WEEKDAY(E8)=1,WEEKDAY(E8)=7),"",1)) -> 1 | F9: =IF(SUMPRODUCT(('Feiertage und Ferien'!$H$8:$H$13<=F8)*('Feiertage und Ferien'!$I$8:$I$13>=F8)),"F",IF(OR(WEEKDAY(F8)=1,WEEKDAY(F8)=7),"",1)) -> 1 | G9: =IF(SUMPRODUCT(('Feiertage und Ferien'!$H$8:$H$13<=G8)*('Feiertage und Ferien'!$I$8:$I$13>=G8)),"F",IF(OR(WEEKDAY(G8)=1,WEEKDAY(G8)=7),"",1)) -> 1 | H9: =IF(SUMPRODUCT(('Feiertage und Ferien'!$H$8:$H$13<=H8)*('Feiertage und Ferien'!$I$8:$I$13>=H8)),"F",IF(OR(WEEKDAY(H8)=1,WEEKDAY(H8)=7),"",1)) -> 1 | I9: =IF(SUMPRODUCT(('Feiertage und Ferien'!$H$8:$H$13<=I8)*('Feiertage und Ferien'!$I$8:$I$13>=I8)),"F",IF(OR(WEEKDAY(I8)=1,WEEKDAY(I8)=7),"",1)) ->  | J9: =IF(SUMPRODUCT(('Feiertage und Ferien'!$H$8:$H$13<=J8)*('Feiertage und Ferien'!$I$8:$I$13>=J8)),"F",IF(OR(WEEKDAY(J8)=1,WEEKDAY(J8)=7),"",1)) ->  | K9: =IF(SUMPRODUCT(('Feiertage und Ferien'!$H$8:$H$13<=K8)*('Feiertage und Ferien'!$I$8:$I$13>=K8)),"F",IF(OR(WEEKDAY(K8)=1,WEEKDAY(K8)=7),"",1)) -> 1 | L9: =IF(SUMPRODUCT(('Feiertage und Ferien'!$H$8:$H$13<=L8)*('Feiertage und Ferien'!$I$8:$I$13>=L8)),"F",IF(OR(WEEKDAY(L8)=1,WEEKDAY(L8)=7),"",1)) -> 1 | M9: =IF(SUMPRODUCT(('Feiertage und Ferien'!$H$8:$H$13<=M8)*('Feiertage und Ferien'!$I$8:$I$13>=M8)),"F",IF(OR(WEEKDAY(M8)=1,WEEKDAY(M8)=7),"",1)) -> 1 | N9: =IF(SUMPRODUCT(('Feiertage und Ferien'!$H$8:$H$13<=N8)*('Feiertage und Ferien'!$I$8:$I$13>=N8)),"F",IF(OR(WEEKDAY(N8)=1,WEEKDAY(N8)=7),"",1)) -> 1 | O9: =IF(SUMPRODUCT(('Feiertage und Ferien'!$H$8:$H$13<=O8)*('Feiertage und Ferien'!$I$8:$I$13>=O8)),"F",IF(OR(WEEKDAY(O8)=1,WEEKDAY(O8)=7),"",1)) -> 1 | P9: =IF(SUMPRODUCT(('Feiertage und Ferien'!$H$8:$H$13<=P8)*('Feiertage und Ferien'!$I$8:$I$13>=P8)),"F",IF(OR(WEEKDAY(P8)=1,WEEKDAY(P8)=7),"",1)) ->  | Q9: =IF(SUMPRODUCT(('Feiertage und Ferien'!$H$8:$H$13<=Q8)*('Feiertage und Ferien'!$I$8:$I$13>=Q8)),"F",IF(OR(WEEKDAY(Q8)=1,WEEKDAY(Q8)=7),"",1)) ->  | R9: =IF(SUMPRODUCT(('Feiertage und Ferien'!$H$8:$H$13<=R8)*('Feiertage und Ferien'!$I$8:$I$13>=R8)),"F",IF(OR(WEEKDAY(R8)=1,WEEKDAY(R8)=7),"",1)) -> 1 | S9: =IF(SUMPRODUCT(('Feiertage und Ferien'!$H$8:$H$13<=S8)*('Feiertage und Ferien'!$I$8:$I$13>=S8)),"F",IF(OR(WEEKDAY(S8)=1,WEEKDAY(S8)=7),"",1)) -> 1 | T9: =IF(SUMPRODUCT(('Feiertage und Ferien'!$H$8:$H$13<=T8)*('Feiertage und Ferien'!$I$8:$I$13>=T8)),"F",IF(OR(WEEKDAY(T8)=1,WEEKDAY(T8)=7),"",1)) -> 1 | U9: =IF(SUMPRODUCT(('Feiertage und Ferien'!$H$8:$H$13<=U8)*('Feiertage und Ferien'!$I$8:$I$13>=U8)),"F",IF(OR(WEEKDAY(U8)=1,WEEKDAY(U8)=7),"",1)) -> 1 | V9: =IF(SUMPRODUCT(('Feiertage und Ferien'!$H$8:$H$13<=V8)*('Feiertage und Ferien'!$I$8:$I$13>=V8)),"F",IF(OR(WEEKDAY(V8)=1,WEEKDAY(V8)=7),"",1)) -> 1 | W9: =IF(SUMPRODUCT(('Feiertage und Ferien'!$H$8:$H$13<=W8)*('Feiertage und Ferien'!$I$8:$I$13>=W8)),"F",IF(OR(WEEKDAY(W8)=1,WEEKDAY(W8)=7),"",1)) ->  | X9: =IF(SUMPRODUCT(('Feiertage und Ferien'!$H$8:$H$13<=X8)*('Feiertage und Ferien'!$I$8:$I$13>=X8)),"F",IF(OR(WEEKDAY(X8)=1,WEEKDAY(X8)=7),"",1)) ->  | Y9: =IF(SUMPRODUCT(('Feiertage und Ferien'!$H$8:$H$13<=Y8)*('Feiertage und Ferien'!$I$8:$I$13>=Y8)),"F",IF(OR(WEEKDAY(Y8)=1,WEEKDAY(Y8)=7),"",1)) -> 1 | Z9: =IF(SUMPRODUCT(('Feiertage und Ferien'!$H$8:$H$13<=Z8)*('Feiertage und Ferien'!$I$8:$I$13>=Z8)),"F",IF(OR(WEEKDAY(Z8)=1,WEEKDAY(Z8)=7),"",1)) -> 1 | AA9: =IF(SUMPRODUCT(('Feiertage und Ferien'!$H$8:$H$13<=AA8)*('Feiertage und Ferien'!$I$8:$I$13>=AA8)),"F",IF(OR(WEEKDAY(AA8)=1,WEEKDAY(AA8)=7),"",1)) -> 1 | AB9: =IF(SUMPRODUCT(('Feiertage und Ferien'!$H$8:$H$13<=AB8)*('Feiertage und Ferien'!$I$8:$I$13>=AB8)),"F",IF(OR(WEEKDAY(AB8)=1,WEEKDAY(AB8)=7),"",1)) -> 1 | AC9: =IF(SUMPRODUCT(('Feiertage und Ferien'!$H$8:$H$13<=AC8)*('Feiertage und Ferien'!$I$8:$I$13>=AC8)),"F",IF(OR(WEEKDAY(AC8)=1,WEEKDAY(AC8)=7),"",1)) -> 1 | AD9: =IF(SUMPRODUCT(('Feiertage und Ferien'!$H$8:$H$13<=AD8)*('Feiertage und Ferien'!$I$8:$I$13>=AD8)),"F",IF(OR(WEEKDAY(AD8)=1,WEEKDAY(AD8)=7),"",1)) ->  | AE9: =IF(SUMPRODUCT(('Feiertage und Ferien'!$H$8:$H$13<=AE8)*('Feiertage und Ferien'!$I$8:$I$13>=AE8)),"F",IF(OR(WEEKDAY(AE8)=1,WEEKDAY(AE8)=7),"",1)) ->  | AF9: =IF(SUMPRODUCT(('Feiertage und Ferien'!$H$8:$H$13<=AF8)*('Feiertage und Ferien'!$I$8:$I$13>=AF8)),"F",IF(OR(WEEKDAY(AF8)=1,WEEKDAY(AF8)=7),"",1)) -> 1 | AG9: =COUNT(B9:AF9,"<0.1") -> 21 | AH9: März | AI9: =Erfassung!I2+20% -> 1 | AJ9: =ROUND(AG9*AI9/5,1)*5 -> 21
B10: =AF8+1 -> 2025-04-01 | C10: =B10+1 -> 2025-04-02 | D10: 2025-04-03 | E10: 2025-04-04 | F10: 2025-04-05 | G10: 2025-04-06 | H10: 2025-04-07 | I10: 2025-04-08 | J10: 2025-04-09 | K10: 2025-04-10 | L10: 2025-04-11 | M10: 2025-04-12 | N10: 2025-04-13 | O10: 2025-04-14 | P10: 2025-04-15 | Q10: 2025-04-16 | R10: 2025-04-17 | S10: 2025-04-18 | T10: 2025-04-19 | U10: 2025-04-20 | V10: 2025-04-21 | W10: 2025-04-22 | X10: 2025-04-23 | Y10: 2025-04-24 | Z10: 2025-04-25 | AA10: 2025-04-26 | AB10: 2025-04-27 | AC10: 2025-04-28 | AD10: 2025-04-29 | AE10: 2025-04-30
A11: April | B11: =IF(SUMPRODUCT(('Feiertage und Ferien'!$H$8:$H$13<=B10)*('Feiertage und Ferien'!$I$8:$I$13>=B10)),"F",IF(OR(WEEKDAY(B10)=1,WEEKDAY(B10)=7),"",1)) -> 1 | C11: =IF(SUMPRODUCT(('Feiertage und Ferien'!$H$8:$H$13<=C10)*('Feiertage und Ferien'!$I$8:$I$13>=C10)),"F",IF(OR(WEEKDAY(C10)=1,WEEKDAY(C10)=7),"",1)) -> 1 | D11: =IF(SUMPRODUCT(('Feiertage und Ferien'!$H$8:$H$13<=D10)*('Feiertage und Ferien'!$I$8:$I$13>=D10)),"F",IF(OR(WEEKDAY(D10)=1,WEEKDAY(D10)=7),"",1)) -> 1 | E11: =IF(SUMPRODUCT(('Feiertage und Ferien'!$H$8:$H$13<=E10)*('Feiertage und Ferien'!$I$8:$I$13>=E10)),"F",IF(OR(WEEKDAY(E10)=1,WEEKDAY(E10)=7),"",1)) -> 1 | F11: =IF(SUMPRODUCT(('Feiertage und Ferien'!$H$8:$H$13<=F10)*('Feiertage und Ferien'!$I$8:$I$13>=F10)),"F",IF(OR(WEEKDAY(F10)=1,WEEKDAY(F10)=7),"",1)) ->  | G11: =IF(SUMPRODUCT(('Feiertage und Ferien'!$H$8:$H$13<=G10)*('Feiertage und Ferien'!$I$8:$I$13>=G10)),"F",IF(OR(WEEKDAY(G10)=1,WEEKDAY(G10)=7),"",1)) ->  | H11: =IF(SUMPRODUCT(('Feiertage und Ferien'!$H$8:$H$13<=H10)*('Feiertage und Ferien'!$I$8:$I$13>=H10)),"F",IF(OR(WEEKDAY(H10)=1,WEEKDAY(H10)=7),"",1)) -> 1 | I11: =IF(SUMPRODUCT(('Feiertage und Ferien'!$H$8:$H$13<=I10)*('Feiertage und Ferien'!$I$8:$I$13>=I10)),"F",IF(OR(WEEKDAY(I10)=1,WEEKDAY(I10)=7),"",1)) -> 1 | J11: =IF(SUMPRODUCT(('Feiertage und Ferien'!$H$8:$H$13<=J10)*('Feiertage und Ferien'!$I$8:$I$13>=J10)),"F",IF(OR(WEEKDAY(J10)=1,WEEKDAY(J10)=7),"",1)) -> 1 | K11: =IF(SUMPRODUCT(('Feiertage und Ferien'!$H$8:$H$13<=K10)*('Feiertage und Ferien'!$I$8:$I$13>=K10)),"F",IF(OR(WEEKDAY(K10)=1,WEEKDAY(K10)=7),"",1)) -> 1 | L11: =IF(SUMPRODUCT(('Feiertage und Ferien'!$H$8:$H$13<=L10)*('Feiertage und Ferien'!$I$8:$I$13>=L10)),"F",IF(OR(WEEKDAY(L10)=1,WEEKDAY(L10)=7),"",1)) -> 1 | M11: =IF(SUMPRODUCT(('Feiertage und Ferien'!$H$8:$H$13<=M10)*('Feiertage und Ferien'!$I$8:$I$13>=M10)),"F",IF(OR(WEEKDAY(M10)=1,WEEKDAY(M10)=7),"",1)) ->  | N11: =IF(SUMPRODUCT(('Feiertage und Ferien'!$H$8:$H$13<=N10)*('Feiertage und Ferien'!$I$8:$I$13>=N10)),"F",IF(OR(WEEKDAY(N10)=1,WEEKDAY(N10)=7),"",1)) ->  | O11: =IF(SUMPRODUCT(('Feiertage und Ferien'!$H$8:$H$13<=O10)*('Feiertage und Ferien'!$I$8:$I$13>=O10)),"F",IF(OR(WEEKDAY(O10)=1,WEEKDAY(O10)=7),"",1)) -> 1 | P11: =IF(SUMPRODUCT(('Feiertage und Ferien'!$H$8:$H$13<=P10)*('Feiertage und Ferien'!$I$8:$I$13>=P10)),"F",IF(OR(WEEKDAY(P10)=1,WEEKDAY(P10)=7),"",1)) -> 1 | Q11: =IF(SUMPRODUCT(('Feiertage und Ferien'!$H$8:$H$13<=Q10)*('Feiertage und Ferien'!$I$8:$I$13>=Q10)),"F",IF(OR(WEEKDAY(Q10)=1,WEEKDAY(Q10)=7),"",1)) -> 1 | R11: =IF(SUMPRODUCT(('Feiertage und Ferien'!$H$8:$H$13<=R10)*('Feiertage und Ferien'!$I$8:$I$13>=R10)),"F",IF(OR(WEEKDAY(R10)=1,WEEKDAY(R10)=7),"",1)) -> 1 | S11: =IF(SUMPRODUCT(('Feiertage und Ferien'!$H$8:$H$13<=S10)*('Feiertage und Ferien'!$I$8:$I$13>=S10)),"F",IF(OR(WEEKDAY(S10)=1,WEEKDAY(S10)=7),"",1)) -> 1 | T11: =IF(SUMPRODUCT(('Feiertage und Ferien'!$H$8:$H$13<=T10)*('Feiertage und Ferien'!$I$8:$I$13>=T10)),"F",IF(OR(WEEKDAY(T10)=1,WEEKDAY(T10)=7),"",1)) ->  | U11: =IF(SUMPRODUCT(('Feiertage und Ferien'!$H$8:$H$13<=U10)*('Feiertage und Ferien'!$I$8:$I$13>=U10)),"F",IF(OR(WEEKDAY(U10)=1,WEEKDAY(U10)=7),"",1)) ->  | V11: =IF(SUMPRODUCT(('Feiertage und Ferien'!$H$8:$H$13<=V10)*('Feiertage und Ferien'!$I$8:$I$13>=V10)),"F",IF(OR(WEEKDAY(V10)=1,WEEKDAY(V10)=7),"",1)) -> 1 | W11: =IF(SUMPRODUCT(('Feiertage und Ferien'!$H$8:$H$13<=W10)*('Feiertage und Ferien'!$I$8:$I$13>=W10)),"F",IF(OR(WEEKDAY(W10)=1,WEEKDAY(W10)=7),"",1)) -> 1 | X11: =IF(SUMPRODUCT(('Feiertage und Ferien'!$H$8:$H$13<=X10)*('Feiertage und Ferien'!$I$8:$I$13>=X10)),"F",IF(OR(WEEKDAY(X10)=1,WEEKDAY(X10)=7),"",1)) -> 1 | Y11: =IF(SUMPRODUCT(('Feiertage und Ferien'!$H$8:$H$13<=Y10)*('Feiertage und Ferien'!$I$8:$I$13>=Y10)),"F",IF(OR(WEEKDAY(Y10)=1,WEEKDAY(Y10)=7),"",1)) -> 1 | Z11: =IF(SUMPRODUCT(('Feiertage und Ferien'!$H$8:$H$13<=Z10)*('Feiertage und Ferien'!$I$8:$I$13>=Z10)),"F",IF(OR(WEEKDAY(Z10)=1,WEEKDAY(Z10)=7),"",1)) -> 1 | AA11: =IF(SUMPRODUCT(('Feiertage und Ferien'!$H$8:$H$13<=AA10)*('Feiertage und Ferien'!$I$8:$I$13>=AA10)),"F",IF(OR(WEEKDAY(AA10)=1,WEEKDAY(AA10)=7),"",1)) ->  | AB11: =IF(SUMPRODUCT(('Feiertage und Ferien'!$H$8:$H$13<=AB10)*('Feiertage und Ferien'!$I$8:$I$13>=AB10)),"F",IF(OR(WEEKDAY(AB10)=1,WEEKDAY(AB10)=7),"",1)) ->  | AC11: =IF(SUMPRODUCT(('Feiertage und Ferien'!$H$8:$H$13<=AC10)*('Feiertage und Ferien'!$I$8:$I$13>=AC10)),"F",IF(OR(WEEKDAY(AC10)=1,WEEKDAY(AC10)=7),"",1)) -> 1 | AD11: =IF(SUMPRODUCT(('Feiertage und Ferien'!$H$8:$H$13<=AD10)*('Feiertage und Ferien'!$I$8:$I$13>=AD10)),"F",IF(OR(WEEKDAY(AD10)=1,WEEKDAY(AD10)=7),"",1)) -> 1 | AE11: =IF(SUMPRODUCT(('Feiertage und Ferien'!$H$8:$H$13<=AE10)*('Feiertage und Ferien'!$I$8:$I$13>=AE10)),"F",IF(OR(WEEKDAY(AE10)=1,WEEKDAY(AE10)=7),"",1)) -> 1 | AF11: =IF(SUMPRODUCT(('Feiertage und Ferien'!$H$8:$H$13<=AF10)*('Feiertage und Ferien'!$I$8:$I$13>=AF10)),"F",IF(OR(WEEKDAY(AF10)=1,WEEKDAY(AF10)=7),"",1)) ->  | AG11: =COUNT(B11:AF11,"<0.1") -> 22 | AH11: April | AI11: =Erfassung!J2+20% -> 1 | AJ11: =ROUND(AG11*AI11/5,1)*5 -> 22
B12: =AE10+1 -> 2025-05-01 | C12: =B12+1 -> 2025-05-02 | D12: 2025-05-03 | E12: 2025-05-04 | F12: 2025-05-05 | G12: 2025-05-06 | H12: 2025-05-07 | I12: 2025-05-08 | J12: 2025-05-09 | K12: 2025-05-10 | L12: 2025-05-11 | M12: 2025-05-12 | N12: 2025-05-13 | O12: 2025-05-14 | P12: 2025-05-15 | Q12: 2025-05-16 | R12: 2025-05-17 | S12: 2025-05-18 | T12: 2025-05-19 | U12: 2025-05-20 | V12: 2025-05-21 | W12: 2025-05-22 | X12: 2025-05-23 | Y12: 2025-05-24 | Z12: 2025-05-25 | AA12: 2025-05-26 | AB12: 2025-05-27 | AC12: 2025-05-28 | AD12: 2025-05-29 | AE12: 2025-05-30 | AF12: 2025-05-31
A13: Mai | B13: =IF(SUMPRODUCT(('Feiertage und Ferien'!$H$8:$H$13<=B12)*('Feiertage und Ferien'!$I$8:$I$13>=B12)),"F",IF(OR(WEEKDAY(B12)=1,WEEKDAY(B12)=7),"",1)) -> 1 | C13: =IF(SUMPRODUCT(('Feiertage und Ferien'!$H$8:$H$13<=C12)*('Feiertage und Ferien'!$I$8:$I$13>=C12)),"F",IF(OR(WEEKDAY(C12)=1,WEEKDAY(C12)=7),"",1)) -> 1 | D13: =IF(SUMPRODUCT(('Feiertage und Ferien'!$H$8:$H$13<=D12)*('Feiertage und Ferien'!$I$8:$I$13>=D12)),"F",IF(OR(WEEKDAY(D12)=1,WEEKDAY(D12)=7),"",1)) -> F | E13: =IF(SUMPRODUCT(('Feiertage und Ferien'!$H$8:$H$13<=E12)*('Feiertage und Ferien'!$I$8:$I$13>=E12)),"F",IF(OR(WEEKDAY(E12)=1,WEEKDAY(E12)=7),"",1)) -> F | F13: =IF(SUMPRODUCT(('Feiertage und Ferien'!$H$8:$H$13<=F12)*('Feiertage und Ferien'!$I$8:$I$13>=F12)),"F",IF(OR(WEEKDAY(F12)=1,WEEKDAY(F12)=7),"",1)) -> F | G13: =IF(SUMPRODUCT(('Feiertage und Ferien'!$H$8:$H$13<=G12)*('Feiertage und Ferien'!$I$8:$I$13>=G12)),"F",IF(OR(WEEKDAY(G12)=1,WEEKDAY(G12)=7),"",1)) -> F | H13: =IF(SUMPRODUCT(('Feiertage und Ferien'!$H$8:$H$13<=H12)*('Feiertage und Ferien'!$I$8:$I$13>=H12)),"F",IF(OR(WEEKDAY(H12)=1,WEEKDAY(H12)=7),"",1)) -> F | I13: =IF(SUMPRODUCT(('Feiertage und Ferien'!$H$8:$H$13<=I12)*('Feiertage und Ferien'!$I$8:$I$13>=I12)),"F",IF(OR(WEEKDAY(I12)=1,WEEKDAY(I12)=7),"",1)) -> F | J13: =IF(SUMPRODUCT(('Feiertage und Ferien'!$H$8:$H$13<=J12)*('Feiertage und Ferien'!$I$8:$I$13>=J12)),"F",IF(OR(WEEKDAY(J12)=1,WEEKDAY(J12)=7),"",1)) -> F | K13: =IF(SUMPRODUCT(('Feiertage und Ferien'!$H$8:$H$13<=K12)*('Feiertage und Ferien'!$I$8:$I$13>=K12)),"F",IF(OR(WEEKDAY(K12)=1,WEEKDAY(K12)=7),"",1)) -> F | L13: =IF(SUMPRODUCT(('Feiertage und Ferien'!$H$8:$H$13<=L12)*('Feiertage und Ferien'!$I$8:$I$13>=L12)),"F",IF(OR(WEEKDAY(L12)=1,WEEKDAY(L12)=7),"",1)) -> F | M13: =IF(SUMPRODUCT(('Feiertage und Ferien'!$H$8:$H$13<=M12)*('Feiertage und Ferien'!$I$8:$I$13>=M12)),"F",IF(OR(WEEKDAY(M12)=1,WEEKDAY(M12)=7),"",1)) -> F | N13: =IF(SUMPRODUCT(('Feiertage und Ferien'!$H$8:$H$13<=N12)*('Feiertage und Ferien'!$I$8:$I$13>=N12)),"F",IF(OR(WEEKDAY(N12)=1,WEEKDAY(N12)=7),"",1)) -> F | O13: =IF(SUMPRODUCT(('Feiertage und Ferien'!$H$8:$H$13<=O12)*('Feiertage und Ferien'!$I$8:$I$13>=O12)),"F",IF(OR(WEEKDAY(O12)=1,WEEKDAY(O12)=7),"",1)) -> F | P13: =IF(SUMPRODUCT(('Feiertage und Ferien'!$H$8:$H$13<=P12)*('Feiertage und Ferien'!$I$8:$I$13>=P12)),"F",IF(OR(WEEKDAY(P12)=1,WEEKDAY(P12)=7),"",1)) -> F | Q13: =IF(SUMPRODUCT(('Feiertage und Ferien'!$H$8:$H$13<=Q12)*('Feiertage und Ferien'!$I$8:$I$13>=Q12)),"F",IF(OR(WEEKDAY(Q12)=1,WEEKDAY(Q12)=7),"",1)) -> F | R13: =IF(SUMPRODUCT(('Feiertage und Ferien'!$H$8:$H$13<=R12)*('Feiertage und Ferien'!$I$8:$I$13>=R12)),"F",IF(OR(WEEKDAY(R12)=1,WEEKDAY(R12)=7),"",1)) -> F | S13: =IF(SUMPRODUCT(('Feiertage und Ferien'!$H$8:$H$13<=S12)*('Feiertage und Ferien'!$I$8:$I$13>=S12)),"F",IF(OR(WEEKDAY(S12)=1,WEEKDAY(S12)=7),"",1)) ->  | T13: =IF(SUMPRODUCT(('Feiertage und Ferien'!$H$8:$H$13<=T12)*('Feiertage und Ferien'!$I$8:$I$13>=T12)),"F",IF(OR(WEEKDAY(T12)=1,WEEKDAY(T12)=7),"",1)) -> 1 | U13: =IF(SUMPRODUCT(('Feiertage und Ferien'!$H$8:$H$13<=U12)*('Feiertage und Ferien'!$I$8:$I$13>=U12)),"F",IF(OR(WEEKDAY(U12)=1,WEEKDAY(U12)=7),"",1)) -> 1 | V13: =IF(SUMPRODUCT(('Feiertage und Ferien'!$H$8:$H$13<=V12)*('Feiertage und Ferien'!$I$8:$I$13>=V12)),"F",IF(OR(WEEKDAY(V12)=1,WEEKDAY(V12)=7),"",1)) -> 1 | W13: =IF(SUMPRODUCT(('Feiertage und Ferien'!$H$8:$H$13<=W12)*('Feiertage und Ferien'!$I$8:$I$13>=W12)),"F",IF(OR(WEEKDAY(W12)=1,WEEKDAY(W12)=7),"",1)) -> 1 | X13: =IF(SUMPRODUCT(('Feiertage und Ferien'!$H$8:$H$13<=X12)*('Feiertage und Ferien'!$I$8:$I$13>=X12)),"F",IF(OR(WEEKDAY(X12)=1,WEEKDAY(X12)=7),"",1)) -> 1 | Y13: =IF(SUMPRODUCT(('Feiertage und Ferien'!$H$8:$H$13<=Y12)*('Feiertage und Ferien'!$I$8:$I$13>=Y12)),"F",IF(OR(WEEKDAY(Y12)=1,WEEKDAY(Y12)=7),"",1)) ->  | Z13: =IF(SUMPRODUCT(('Feiertage und Ferien'!$H$8:$H$13<=Z12)*('Feiertage und Ferien'!$I$8:$I$13>=Z12)),"F",IF(OR(WEEKDAY(Z12)=1,WEEKDAY(Z12)=7),"",1)) ->  | AA13: =IF(SUMPRODUCT(('Feiertage und Ferien'!$H$8:$H$13<=AA12)*('Feiertage und Ferien'!$I$8:$I$13>=AA12)),"F",IF(OR(WEEKDAY(AA12)=1,WEEKDAY(AA12)=7),"",1)) -> 1 | AB13: =IF(SUMPRODUCT(('Feiertage und Ferien'!$H$8:$H$13<=AB12)*('Feiertage und Ferien'!$I$8:$I$13>=AB12)),"F",IF(OR(WEEKDAY(AB12)=1,WEEKDAY(AB12)=7),"",1)) -> 1 | AC13: =IF(SUMPRODUCT(('Feiertage und Ferien'!$H$8:$H$13<=AC12)*('Feiertage und Ferien'!$I$8:$I$13>=AC12)),"F",IF(OR(WEEKDAY(AC12)=1,WEEKDAY(AC12)=7),"",1)) -> 1 | AD13: =IF(SUMPRODUCT(('Feiertage und Ferien'!$H$8:$H$13<=AD12)*('Feiertage und Ferien'!$I$8:$I$13>=AD12)),"F",IF(OR(WEEKDAY(AD12)=1,WEEKDAY(AD12)=7),"",1)) -> 1 | AE13: =IF(SUMPRODUCT(('Feiertage und Ferien'!$H$8:$H$13<=AE12)*('Feiertage und Ferien'!$I$8:$I$13>=AE12)),"F",IF(OR(WEEKDAY(AE12)=1,WEEKDAY(AE12)=7),"",1)) -> 1 | AF13: =IF(SUMPRODUCT(('Feiertage und Ferien'!$H$8:$H$13<=AF12)*('Feiertage und Ferien'!$I$8:$I$13>=AF12)),"F",IF(OR(WEEKDAY(AF12)=1,WEEKDAY(AF12)=7),"",1)) ->  | AG13: =COUNT(B13:AF13,"<0.1") -> 12 | AH13: Mai | AI13: =Erfassung!K2+20% -> 1 | AJ13: =ROUND(AG13*AI13/5,1)*5 -> 12
B14: =AF12+1 -> 2025-06-01 | C14: =B14+1 -> 2025-06-02 | D14: 2025-06-03 | E14: 2025-06-04 | F14: 2025-06-05 | G14: 2025-06-06 | H14: 2025-06-07 | I14: 2025-06-08 | J14: 2025-06-09 | K14: 2025-06-10 | L14: 2025-06-11 | M14: 2025-06-12 | N14: 2025-06-13 | O14: 2025-06-14 | P14: 2025-06-15 | Q14: 2025-06-16 | R14: 2025-06-17 | S14: 2025-06-18 | T14: 2025-06-19 | U14: 2025-06-20 | V14: 2025-06-21 | W14: 2025-06-22 | X14: 2025-06-23 | Y14: 2025-06-24 | Z14: 2025-06-25 | AA14: 2025-06-26 | AB14: 2025-06-27 | AC14: 2025-06-28 | AD14: 2025-06-29 | AE14: 2025-06-30
A15: Juni | B15: =IF(SUMPRODUCT(('Feiertage und Ferien'!$H$8:$H$13<=B14)*('Feiertage und Ferien'!$I$8:$I$13>=B14)),"F",IF(OR(WEEKDAY(B14)=1,WEEKDAY(B14)=7),"",1)) ->  | C15: =IF(SUMPRODUCT(('Feiertage und Ferien'!$H$8:$H$13<=C14)*('Feiertage und Ferien'!$I$8:$I$13>=C14)),"F",IF(OR(WEEKDAY(C14)=1,WEEKDAY(C14)=7),"",1)) -> 1 | D15: =IF(SUMPRODUCT(('Feiertage und Ferien'!$H$8:$H$13<=D14)*('Feiertage und Ferien'!$I$8:$I$13>=D14)),"F",IF(OR(WEEKDAY(D14)=1,WEEKDAY(D14)=7),"",1)) -> 1 | E15: =IF(SUMPRODUCT(('Feiertage und Ferien'!$H$8:$H$13<=E14)*('Feiertage und Ferien'!$I$8:$I$13>=E14)),"F",IF(OR(WEEKDAY(E14)=1,WEEKDAY(E14)=7),"",1)) -> 1 | F15: =IF(SUMPRODUCT(('Feiertage und Ferien'!$H$8:$H$13<=F14)*('Feiertage und Ferien'!$I$8:$I$13>=F14)),"F",IF(OR(WEEKDAY(F14)=1,WEEKDAY(F14)=7),"",1)) -> 1 | G15: =IF(SUMPRODUCT(('Feiertage und Ferien'!$H$8:$H$13<=G14)*('Feiertage und Ferien'!$I$8:$I$13>=G14)),"F",IF(OR(WEEKDAY(G14)=1,WEEKDAY(G14)=7),"",1)) -> 1 | H15: =IF(SUMPRODUCT(('Feiertage und Ferien'!$H$8:$H$13<=H14)*('Feiertage und Ferien'!$I$8:$I$13>=H14)),"F",IF(OR(WEEKDAY(H14)=1,WEEKDAY(H14)=7),"",1)) ->  | I15: =IF(SUMPRODUCT(('Feiertage und Ferien'!$H$8:$H$13<=I14)*('Feiertage und Ferien'!$I$8:$I$13>=I14)),"F",IF(OR(WEEKDAY(I14)=1,WEEKDAY(I14)=7),"",1)) ->  | J15: =IF(SUMPRODUCT(('Feiertage und Ferien'!$H$8:$H$13<=J14)*('Feiertage und Ferien'!$I$8:$I$13>=J14)),"F",IF(OR(WEEKDAY(J14)=1,WEEKDAY(J14)=7),"",1)) -> 1 | K15: =IF(SUMPRODUCT(('Feiertage und Ferien'!$H$8:$H$13<=K14)*('Feiertage und Ferien'!$I$8:$I$13>=K14)),"F",IF(OR(WEEKDAY(K14)=1,WEEKDAY(K14)=7),"",1)) -> 1 | L15: =IF(SUMPRODUCT(('Feiertage und Ferien'!$H$8:$H$13<=L14)*('Feiertage und Ferien'!$I$8:$I$13>=L14)),"F",IF(OR(WEEKDAY(L14)=1,WEEKDAY(L14)=7),"",1)) -> 1 | M15: =IF(SUMPRODUCT(('Feiertage und Ferien'!$H$8:$H$13<=M14)*('Feiertage und Ferien'!$I$8:$I$13>=M14)),"F",IF(OR(WEEKDAY(M14)=1,WEEKDAY(M14)=7),"",1)) -> 1 | N15: =IF(SUMPRODUCT(('Feiertage und Ferien'!$H$8:$H$13<=N14)*('Feiertage und Ferien'!$I$8:$I$13>=N14)),"F",IF(OR(WEEKDAY(N14)=1,WEEKDAY(N14)=7),"",1)) -> 1 | O15: =IF(SUMPRODUCT(('Feiertage und Ferien'!$H$8:$H$13<=O14)*('Feiertage und Ferien'!$I$8:$I$13>=O14)),"F",IF(OR(WEEKDAY(O14)=1,WEEKDAY(O14)=7),"",1)) ->  | P15: =IF(SUMPRODUCT(('Feiertage und Ferien'!$H$8:$H$13<=P14)*('Feiertage und Ferien'!$I$8:$I$13>=P14)),"F",IF(OR(WEEKDAY(P14)=1,WEEKDAY(P14)=7),"",1)) ->  | Q15: =IF(SUMPRODUCT(('Feiertage und Ferien'!$H$8:$H$13<=Q14)*('Feiertage und Ferien'!$I$8:$I$13>=Q14)),"F",IF(OR(WEEKDAY(Q14)=1,WEEKDAY(Q14)=7),"",1)) -> 1 | R15: =IF(SUMPRODUCT(('Feiertage und Ferien'!$H$8:$H$13<=R14)*('Feiertage und Ferien'!$I$8:$I$13>=R14)),"F",IF(OR(WEEKDAY(R14)=1,WEEKDAY(R14)=7),"",1)) -> 1 | S15: =IF(SUMPRODUCT(('Feiertage und Ferien'!$H$8:$H$13<=S14)*('Feiertage und Ferien'!$I$8:$I$13>=S14)),"F",IF(OR(WEEKDAY(S14)=1,WEEKDAY(S14)=7),"",1)) -> 1 | T15: =IF(SUMPRODUCT(('Feiertage und Ferien'!$H$8:$H$13<=T14)*('Feiertage und Ferien'!$I$8:$I$13>=T14)),"F",IF(OR(WEEKDAY(T14)=1,WEEKDAY(T14)=7),"",1)) -> 1 | U15: =IF(SUMPRODUCT(('Feiertage und Ferien'!$H$8:$H$13<=U14)*('Feiertage und Ferien'!$I$8:$I$13>=U14)),"F",IF(OR(WEEKDAY(U14)=1,WEEKDAY(U14)=7),"",1)) -> 1 | V15: =IF(SUMPRODUCT(('Feiertage und Ferien'!$H$8:$H$13<=V14)*('Feiertage und Ferien'!$I$8:$I$13>=V14)),"F",IF(OR(WEEKDAY(V14)=1,WEEKDAY(V14)=7),"",1)) ->  | W15: =IF(SUMPRODUCT(('Feiertage und Ferien'!$H$8:$H$13<=W14)*('Feiertage und Ferien'!$I$8:$I$13>=W14)),"F",IF(OR(WEEKDAY(W14)=1,WEEKDAY(W14)=7),"",1)) ->  | X15: =IF(SUMPRODUCT(('Feiertage und Ferien'!$H$8:$H$13<=X14)*('Feiertage und Ferien'!$I$8:$I$13>=X14)),"F",IF(OR(WEEKDAY(X14)=1,WEEKDAY(X14)=7),"",1)) -> 1 | Y15: =IF(SUMPRODUCT(('Feiertage und Ferien'!$H$8:$H$13<=Y14)*('Feiertage und Ferien'!$I$8:$I$13>=Y14)),"F",IF(OR(WEEKDAY(Y14)=1,WEEKDAY(Y14)=7),"",1)) -> 1 | Z15: =IF(SUMPRODUCT(('Feiertage und Ferien'!$H$8:$H$13<=Z14)*('Feiertage und Ferien'!$I$8:$I$13>=Z14)),"F",IF(OR(WEEKDAY(Z14)=1,WEEKDAY(Z14)=7),"",1)) -> 1 | AA15: =IF(SUMPRODUCT(('Feiertage und Ferien'!$H$8:$H$13<=AA14)*('Feiertage und Ferien'!$I$8:$I$13>=AA14)),"F",IF(OR(WEEKDAY(AA14)=1,WEEKDAY(AA14)=7),"",1)) -> 1 | AB15: =IF(SUMPRODUCT(('Feiertage und Ferien'!$H$8:$H$13<=AB14)*('Feiertage und Ferien'!$I$8:$I$13>=AB14)),"F",IF(OR(WEEKDAY(AB14)=1,WEEKDAY(AB14)=7),"",1)) -> 1 | AC15: =IF(SUMPRODUCT(('Feiertage und Ferien'!$H$8:$H$13<=AC14)*('Feiertage und Ferien'!$I$8:$I$13>=AC14)),"F",IF(OR(WEEKDAY(AC14)=1,WEEKDAY(AC14)=7),"",1)) ->  | AD15: =IF(SUMPRODUCT(('Feiertage und Ferien'!$H$8:$H$13<=AD14)*('Feiertage und Ferien'!$I$8:$I$13>=AD14)),"F",IF(OR(WEEKDAY(AD14)=1,WEEKDAY(AD14)=7),"",1)) ->  | AE15: =IF(SUMPRODUCT(('Feiertage und Ferien'!$H$8:$H$13<=AE14)*('Feiertage und Ferien'!$I$8:$I$13>=AE14)),"F",IF(OR(WEEKDAY(AE14)=1,WEEKDAY(AE14)=7),"",1)) -> 1 | AF15: =IF(SUMPRODUCT(('Feiertage und Ferien'!$H$8:$H$13<=AF14)*('Feiertage und Ferien'!$I$8:$I$13>=AF14)),"F",IF(OR(WEEKDAY(AF14)=1,WEEKDAY(AF14)=7),"",1)) ->  | AG15: =COUNT(B15:AF15,"<0.1") -> 21 | AH15: Juni | AI15: =Erfassung!L2+20% -> 1 | AJ15: =ROUND(AG15*AI15/5,1)*5 -> 21
B16: =AE14+1 -> 2025-07-01 | C16: =B16+1 -> 2025-07-02 | D16: 2025-07-03 | E16: 2025-07-04 | F16: 2025-07-05 | G16: 2025-07-06 | H16: 2025-07-07 | I16: 2025-07-08 | J16: 2025-07-09 | K16: 2025-07-10 | L16: 2025-07-11 | M16: 2025-07-12 | N16: 2025-07-13 | O16: 2025-07-14 | P16: 2025-07-15 | Q16: 2025-07-16 | R16: 2025-07-17 | S16: 2025-07-18 | T16: 2025-07-19 | U16: 2025-07-20 | V16: 2025-07-21 | W16: 2025-07-22 | X16: 2025-07-23 | Y16: 2025-07-24 | Z16: 2025-07-25 | AA16: 2025-07-26 | AB16: 2025-07-27 | AC16: 2025-07-28 | AD16: 2025-07-29 | AE16: 2025-07-30 | AF16: 2025-07-31
A17: Juli | B17: =IF(SUMPRODUCT(('Feiertage und Ferien'!$H$8:$H$13<=B16)*('Feiertage und Ferien'!$I$8:$I$13>=B16)),"F",IF(OR(WEEKDAY(B16)=1,WEEKDAY(B16)=7),"",1)) -> 1 | C17: =IF(SUMPRODUCT(('Feiertage und Ferien'!$H$8:$H$13<=C16)*('Feiertage und Ferien'!$I$8:$I$13>=C16)),"F",IF(OR(WEEKDAY(C16)=1,WEEKDAY(C16)=7),"",1)) -> 1 | D17: =IF(SUMPRODUCT(('Feiertage und Ferien'!$H$8:$H$13<=D16)*('Feiertage und Ferien'!$I$8:$I$13>=D16)),"F",IF(OR(WEEKDAY(D16)=1,WEEKDAY(D16)=7),"",1)) -> 1 | E17: =IF(SUMPRODUCT(('Feiertage und Ferien'!$H$8:$H$13<=E16)*('Feiertage und Ferien'!$I$8:$I$13>=E16)),"F",IF(OR(WEEKDAY(E16)=1,WEEKDAY(E16)=7),"",1)) -> 1 | F17: =IF(SUMPRODUCT(('Feiertage und Ferien'!$H$8:$H$13<=F16)*('Feiertage und Ferien'!$I$8:$I$13>=F16)),"F",IF(OR(WEEKDAY(F16)=1,WEEKDAY(F16)=7),"",1)) -> F | G17: =IF(SUMPRODUCT(('Feiertage und Ferien'!$H$8:$H$13<=G16)*('Feiertage und Ferien'!$I$8:$I$13>=G16)),"F",IF(OR(WEEKDAY(G16)=1,WEEKDAY(G16)=7),"",1)) -> F | H17: =IF(SUMPRODUCT(('Feiertage und Ferien'!$H$8:$H$13<=H16)*('Feiertage und Ferien'!$I$8:$I$13>=H16)),"F",IF(OR(WEEKDAY(H16)=1,WEEKDAY(H16)=7),"",1)) -> F | I17: =IF(SUMPRODUCT(('Feiertage und Ferien'!$H$8:$H$13<=I16)*('Feiertage und Ferien'!$I$8:$I$13>=I16)),"F",IF(OR(WEEKDAY(I16)=1,WEEKDAY(I16)=7),"",1)) -> F | J17: =IF(SUMPRODUCT(('Feiertage und Ferien'!$H$8:$H$13<=J16)*('Feiertage und Ferien'!$I$8:$I$13>=J16)),"F",IF(OR(WEEKDAY(J16)=1,WEEKDAY(J16)=7),"",1)) -> F | K17: =IF(SUMPRODUCT(('Feiertage und Ferien'!$H$8:$H$13<=K16)*('Feiertage und Ferien'!$I$8:$I$13>=K16)),"F",IF(OR(WEEKDAY(K16)=1,WEEKDAY(K16)=7),"",1)) -> F | L17: =IF(SUMPRODUCT(('Feiertage und Ferien'!$H$8:$H$13<=L16)*('Feiertage und Ferien'!$I$8:$I$13>=L16)),"F",IF(OR(WEEKDAY(L16)=1,WEEKDAY(L16)=7),"",1)) -> F | M17: =IF(SUMPRODUCT(('Feiertage und Ferien'!$H$8:$H$13<=M16)*('Feiertage und Ferien'!$I$8:$I$13>=M16)),"F",IF(OR(WEEKDAY(M16)=1,WEEKDAY(M16)=7),"",1)) -> F | N17: =IF(SUMPRODUCT(('Feiertage und Ferien'!$H$8:$H$13<=N16)*('Feiertage und Ferien'!$I$8:$I$13>=N16)),"F",IF(OR(WEEKDAY(N16)=1,WEEKDAY(N16)=7),"",1)) -> F | O17: =IF(SUMPRODUCT(('Feiertage und Ferien'!$H$8:$H$13<=O16)*('Feiertage und Ferien'!$I$8:$I$13>=O16)),"F",IF(OR(WEEKDAY(O16)=1,WEEKDAY(O16)=7),"",1)) -> F | P17: =IF(SUMPRODUCT(('Feiertage und Ferien'!$H$8:$H$13<=P16)*('Feiertage und Ferien'!$I$8:$I$13>=P16)),"F",IF(OR(WEEKDAY(P16)=1,WEEKDAY(P16)=7),"",1)) -> F | Q17: =IF(SUMPRODUCT(('Feiertage und Ferien'!$H$8:$H$13<=Q16)*('Feiertage und Ferien'!$I$8:$I$13>=Q16)),"F",IF(OR(WEEKDAY(Q16)=1,WEEKDAY(Q16)=7),"",1)) -> F | R17: =IF(SUMPRODUCT(('Feiertage und Ferien'!$H$8:$H$13<=R16)*('Feiertage und Ferien'!$I$8:$I$13>=R16)),"F",IF(OR(WEEKDAY(R16)=1,WEEKDAY(R16)=7),"",1)) -> F | S17: =IF(SUMPRODUCT(('Feiertage und Ferien'!$H$8:$H$13<=S16)*('Feiertage und Ferien'!$I$8:$I$13>=S16)),"F",IF(OR(WEEKDAY(S16)=1,WEEKDAY(S16)=7),"",1)) -> F | T17: =IF(SUMPRODUCT(('Feiertage und Ferien'!$H$8:$H$13<=T16)*('Feiertage und Ferien'!$I$8:$I$13>=T16)),"F",IF(OR(WEEKDAY(T16)=1,WEEKDAY(T16)=7),"",1)) -> F | U17: =IF(SUMPRODUCT(('Feiertage und Ferien'!$H$8:$H$13<=U16)*('Feiertage und Ferien'!$I$8:$I$13>=U16)),"F",IF(OR(WEEKDAY(U16)=1,WEEKDAY(U16)=7),"",1)) -> F | V17: =IF(SUMPRODUCT(('Feiertage und Ferien'!$H$8:$H$13<=V16)*('Feiertage und Ferien'!$I$8:$I$13>=V16)),"F",IF(OR(WEEKDAY(V16)=1,WEEKDAY(V16)=7),"",1)) -> F | W17: =IF(SUMPRODUCT(('Feiertage und Ferien'!$H$8:$H$13<=W16)*('Feiertage und Ferien'!$I$8:$I$13>=W16)),"F",IF(OR(WEEKDAY(W16)=1,WEEKDAY(W16)=7),"",1)) -> F | X17: =IF(SUMPRODUCT(('Feiertage und Ferien'!$H$8:$H$13<=X16)*('Feiertage und Ferien'!$I$8:$I$13>=X16)),"F",IF(OR(WEEKDAY(X16)=1,WEEKDAY(X16)=7),"",1)) -> F | Y17: =IF(SUMPRODUCT(('Feiertage und Ferien'!$H$8:$H$13<=Y16)*('Feiertage und Ferien'!$I$8:$I$13>=Y16)),"F",IF(OR(WEEKDAY(Y16)=1,WEEKDAY(Y16)=7),"",1)) -> F | Z17: =IF(SUMPRODUCT(('Feiertage und Ferien'!$H$8:$H$13<=Z16)*('Feiertage und Ferien'!$I$8:$I$13>=Z16)),"F",IF(OR(WEEKDAY(Z16)=1,WEEKDAY(Z16)=7),"",1)) -> F | AA17: =IF(SUMPRODUCT(('Feiertage und Ferien'!$H$8:$H$13<=AA16)*('Feiertage und Ferien'!$I$8:$I$13>=AA16)),"F",IF(OR(WEEKDAY(AA16)=1,WEEKDAY(AA16)=7),"",1)) -> F | AB17: =IF(SUMPRODUCT(('Feiertage und Ferien'!$H$8:$H$13<=AB16)*('Feiertage und Ferien'!$I$8:$I$13>=AB16)),"F",IF(OR(WEEKDAY(AB16)=1,WEEKDAY(AB16)=7),"",1)) -> F | AC17: =IF(SUMPRODUCT(('Feiertage und Ferien'!$H$8:$H$13<=AC16)*('Feiertage und Ferien'!$I$8:$I$13>=AC16)),"F",IF(OR(WEEKDAY(AC16)=1,WEEKDAY(AC16)=7),"",1)) -> F | AD17: =IF(SUMPRODUCT(('Feiertage und Ferien'!$H$8:$H$13<=AD16)*('Feiertage und Ferien'!$I$8:$I$13>=AD16)),"F",IF(OR(WEEKDAY(AD16)=1,WEEKDAY(AD16)=7),"",1)) -> F | AE17: =IF(SUMPRODUCT(('Feiertage und Ferien'!$H$8:$H$13<=AE16)*('Feiertage und Ferien'!$I$8:$I$13>=AE16)),"F",IF(OR(WEEKDAY(AE16)=1,WEEKDAY(AE16)=7),"",1)) -> F | AF17: =IF(SUMPRODUCT(('Feiertage und Ferien'!$H$8:$H$13<=AF16)*('Feiertage und Ferien'!$I$8:$I$13>=AF16)),"F",IF(OR(WEEKDAY(AF16)=1,WEEKDAY(AF16)=7),"",1)) -> F | AG17: =COUNT(B17:AF17,"<0.1") -> 4 | AH17: Juli | AI17: =Erfassung!M2+20% -> 1 | AJ17: =ROUND(AG17*AI17/5,1)*5 -> 4
B18: =AF16+1 -> 2025-08-01 | C18: =B18+1 -> 2025-08-02 | D18: 2025-08-03 | E18: 2025-08-04 | F18: 2025-08-05 | G18: 2025-08-06 | H18: 2025-08-07 | I18: 2025-08-08 | J18: 2025-08-09 | K18: 2025-08-10 | L18: 2025-08-11 | M18: 2025-08-12 | N18: 2025-08-13 | O18: 2025-08-14 | P18: 2025-08-15 | Q18: 2025-08-16 | R18: 2025-08-17 | S18: 2025-08-18 | T18: 2025-08-19 | U18: 2025-08-20 | V18: 2025-08-21 | W18: 2025-08-22 | X18: 2025-08-23 | Y18: 2025-08-24 | Z18: 2025-08-25 | AA18: 2025-08-26 | AB18: 2025-08-27 | AC18: 2025-08-28 | AD18: 2025-08-29 | AE18: 2025-08-30 | AF18: 2025-08-31
A19: August | B19: =IF(SUMPRODUCT(('Feiertage und Ferien'!$H$8:$H$13<=B18)*('Feiertage und Ferien'!$I$8:$I$13>=B18)),"F",IF(OR(WEEKDAY(B18)=1,WEEKDAY(B18)=7),"",1)) -> F | C19: =IF(SUMPRODUCT(('Feiertage und Ferien'!$H$8:$H$13<=C18)*('Feiertage und Ferien'!$I$8:$I$13>=C18)),"F",IF(OR(WEEKDAY(C18)=1,WEEKDAY(C18)=7),"",1)) -> F | D19: =IF(SUMPRODUCT(('Feiertage und Ferien'!$H$8:$H$13<=D18)*('Feiertage und Ferien'!$I$8:$I$13>=D18)),"F",IF(OR(WEEKDAY(D18)=1,WEEKDAY(D18)=7),"",1)) -> F | E19: =IF(SUMPRODUCT(('Feiertage und Ferien'!$H$8:$H$13<=E18)*('Feiertage und Ferien'!$I$8:$I$13>=E18)),"F",IF(OR(WEEKDAY(E18)=1,WEEKDAY(E18)=7),"",1)) -> F | F19: =IF(SUMPRODUCT(('Feiertage und Ferien'!$H$8:$H$13<=F18)*('Feiertage und Ferien'!$I$8:$I$13>=F18)),"F",IF(OR(WEEKDAY(F18)=1,WEEKDAY(F18)=7),"",1)) -> F | G19: =IF(SUMPRODUCT(('Feiertage und Ferien'!$H$8:$H$13<=G18)*('Feiertage und Ferien'!$I$8:$I$13>=G18)),"F",IF(OR(WEEKDAY(G18)=1,WEEKDAY(G18)=7),"",1)) -> F | H19: =IF(SUMPRODUCT(('Feiertage und Ferien'!$H$8:$H$13<=H18)*('Feiertage und Ferien'!$I$8:$I$13>=H18)),"F",IF(OR(WEEKDAY(H18)=1,WEEKDAY(H18)=7),"",1)) -> F | I19: =IF(SUMPRODUCT(('Feiertage und Ferien'!$H$8:$H$13<=I18)*('Feiertage und Ferien'!$I$8:$I$13>=I18)),"F",IF(OR(WEEKDAY(I18)=1,WEEKDAY(I18)=7),"",1)) -> F | J19: =IF(SUMPRODUCT(('Feiertage und Ferien'!$H$8:$H$13<=J18)*('Feiertage und Ferien'!$I$8:$I$13>=J18)),"F",IF(OR(WEEKDAY(J18)=1,WEEKDAY(J18)=7),"",1)) -> F | K19: =IF(SUMPRODUCT(('Feiertage und Ferien'!$H$8:$H$13<=K18)*('Feiertage und Ferien'!$I$8:$I$13>=K18)),"F",IF(OR(WEEKDAY(K18)=1,WEEKDAY(K18)=7),"",1)) ->  | L19: =IF(SUMPRODUCT(('Feiertage und Ferien'!$H$8:$H$13<=L18)*('Feiertage und Ferien'!$I$8:$I$13>=L18)),"F",IF(OR(WEEKDAY(L18)=1,WEEKDAY(L18)=7),"",1)) -> 1 | M19: =IF(SUMPRODUCT(('Feiertage und Ferien'!$H$8:$H$13<=M18)*('Feiertage und Ferien'!$I$8:$I$13>=M18)),"F",IF(OR(WEEKDAY(M18)=1,WEEKDAY(M18)=7),"",1)) -> 1 | N19: =IF(SUMPRODUCT(('Feiertage und Ferien'!$H$8:$H$13<=N18)*('Feiertage und Ferien'!$I$8:$I$13>=N18)),"F",IF(OR(WEEKDAY(N18)=1,WEEKDAY(N18)=7),"",1)) -> 1 | O19: =IF(SUMPRODUCT(('Feiertage und Ferien'!$H$8:$H$13<=O18)*('Feiertage und Ferien'!$I$8:$I$13>=O18)),"F",IF(OR(WEEKDAY(O18)=1,WEEKDAY(O18)=7),"",1)) -> 1 | P19: =IF(SUMPRODUCT(('Feiertage und Ferien'!$H$8:$H$13<=P18)*('Feiertage und Ferien'!$I$8:$I$13>=P18)),"F",IF(OR(WEEKDAY(P18)=1,WEEKDAY(P18)=7),"",1)) -> 1 | Q19: =IF(SUMPRODUCT(('Feiertage und Ferien'!$H$8:$H$13<=Q18)*('Feiertage und Ferien'!$I$8:$I$13>=Q18)),"F",IF(OR(WEEKDAY(Q18)=1,WEEKDAY(Q18)=7),"",1)) ->  | R19: =IF(SUMPRODUCT(('Feiertage und Ferien'!$H$8:$H$13<=R18)*('Feiertage und Ferien'!$I$8:$I$13>=R18)),"F",IF(OR(WEEKDAY(R18)=1,WEEKDAY(R18)=7),"",1)) ->  | S19: =IF(SUMPRODUCT(('Feiertage und Ferien'!$H$8:$H$13<=S18)*('Feiertage und Ferien'!$I$8:$I$13>=S18)),"F",IF(OR(WEEKDAY(S18)=1,WEEKDAY(S18)=7),"",1)) -> 1 | T19: =IF(SUMPRODUCT(('Feiertage und Ferien'!$H$8:$H$13<=T18)*('Feiertage und Ferien'!$I$8:$I$13>=T18)),"F",IF(OR(WEEKDAY(T18)=1,WEEKDAY(T18)=7),"",1)) -> 1 | U19: =IF(SUMPRODUCT(('Feiertage und Ferien'!$H$8:$H$13<=U18)*('Feiertage und Ferien'!$I$8:$I$13>=U18)),"F",IF(OR(WEEKDAY(U18)=1,WEEKDAY(U18)=7),"",1)) -> 1 | V19: =IF(SUMPRODUCT(('Feiertage und Ferien'!$H$8:$H$13<=V18)*('Feiertage und Ferien'!$I$8:$I$13>=V18)),"F",IF(OR(WEEKDAY(V18)=1,WEEKDAY(V18)=7),"",1)) -> 1 | W19: =IF(SUMPRODUCT(('Feiertage und Ferien'!$H$8:$H$13<=W18)*('Feiertage und Ferien'!$I$8:$I$13>=W18)),"F",IF(OR(WEEKDAY(W18)=1,WEEKDAY(W18)=7),"",1)) -> 1 | X19: =IF(SUMPRODUCT(('Feiertage und Ferien'!$H$8:$H$13<=X18)*('Feiertage und Ferien'!$I$8:$I$13>=X18)),"F",IF(OR(WEEKDAY(X18)=1,WEEKDAY(X18)=7),"",1)) ->  | Y19: =IF(SUMPRODUCT(('Feiertage und Ferien'!$H$8:$H$13<=Y18)*('Feiertage und Ferien'!$I$8:$I$13>=Y18)),"F",IF(OR(WEEKDAY(Y18)=1,WEEKDAY(Y18)=7),"",1)) ->  | Z19: =IF(SUMPRODUCT(('Feiertage und Ferien'!$H$8:$H$13<=Z18)*('Feiertage und Ferien'!$I$8:$I$13>=Z18)),"F",IF(OR(WEEKDAY(Z18)=1,WEEKDAY(Z18)=7),"",1)) -> 1 | AA19: =IF(SUMPRODUCT(('Feiertage und Ferien'!$H$8:$H$13<=AA18)*('Feiertage und Ferien'!$I$8:$I$13>=AA18)),"F",IF(OR(WEEKDAY(AA18)=1,WEEKDAY(AA18)=7),"",1)) -> 1 | AB19: =IF(SUMPRODUCT(('Feiertage und Ferien'!$H$8:$H$13<=AB18)*('Feiertage und Ferien'!$I$8:$I$13>=AB18)),"F",IF(OR(WEEKDAY(AB18)=1,WEEKDAY(AB18)=7),"",1)) -> 1 | AC19: =IF(SUMPRODUCT(('Feiertage und Ferien'!$H$8:$H$13<=AC18)*('Feiertage und Ferien'!$I$8:$I$13>=AC18)),"F",IF(OR(WEEKDAY(AC18)=1,WEEKDAY(AC18)=7),"",1)) -> 1 | AD19: =IF(SUMPRODUCT(('Feiertage und Ferien'!$H$8:$H$13<=AD18)*('Feiertage und Ferien'!$I$8:$I$13>=AD18)),"F",IF(OR(WEEKDAY(AD18)=1,WEEKDAY(AD18)=7),"",1)) -> 1 | AE19: =IF(SUMPRODUCT(('Feiertage und Ferien'!$H$8:$H$13<=AE18)*('Feiertage und Ferien'!$I$8:$I$13>=AE18)),"F",IF(OR(WEEKDAY(AE18)=1,WEEKDAY(AE18)=7),"",1)) ->  | AF19: =IF(SUMPRODUCT(('Feiertage und Ferien'!$H$8:$H$13<=AF18)*('Feiertage und Ferien'!$I$8:$I$13>=AF18)),"F",IF(OR(WEEKDAY(AF18)=1,WEEKDAY(AF18)=7),"",1)) ->  | AG19: =COUNT(B19:AF19,"<0.1") -> 15 | AH19: August | AI19: =Erfassung!N2+20% -> 1 | AJ19: =ROUND(AG19*AI19/5,1)*5 -> 15
B20: =AF18+1 -> 2025-09-01 | C20: =B20+1 -> 2025-09-02 | D20: 2025-09-03 | E20: 2025-09-04 | F20: 2025-09-05 | G20: 2025-09-06 | H20: 2025-09-07 | I20: 2025-09-08 | J20: 2025-09-09 | K20: 2025-09-10 | L20: 2025-09-11 | M20: 2025-09-12 | N20: 2025-09-13 | O20: 2025-09-14 | P20: 2025-09-15 | Q20: 2025-09-16 | R20: 2025-09-17 | S20: 2025-09-18 | T20: 2025-09-19 | U20: 2025-09-20 | V20: 2025-09-21 | W20: 2025-09-22 | X20: 2025-09-23 | Y20: 2025-09-24 | Z20: 2025-09-25 | AA20: 2025-09-26 | AB20: 2025-09-27 | AC20: 2025-09-28 | AD20: 2025-09-29 | AE20: 2025-09-30
A21: September | B21: =IF(SUMPRODUCT(('Feiertage und Ferien'!$H$8:$H$13<=B20)*('Feiertage und Ferien'!$I$8:$I$13>=B20)),"F",IF(OR(WEEKDAY(B20)=1,WEEKDAY(B20)=7),"",1)) -> 1 | C21: =IF(SUMPRODUCT(('Feiertage und Ferien'!$H$8:$H$13<=C20)*('Feiertage und Ferien'!$I$8:$I$13>=C20)),"F",IF(OR(WEEKDAY(C20)=1,WEEKDAY(C20)=7),"",1)) -> 1 | D21: =IF(SUMPRODUCT(('Feiertage und Ferien'!$H$8:$H$13<=D20)*('Feiertage und Ferien'!$I$8:$I$13>=D20)),"F",IF(OR(WEEKDAY(D20)=1,WEEKDAY(D20)=7),"",1)) -> 1 | E21: =IF(SUMPRODUCT(('Feiertage und Ferien'!$H$8:$H$13<=E20)*('Feiertage und Ferien'!$I$8:$I$13>=E20)),"F",IF(OR(WEEKDAY(E20)=1,WEEKDAY(E20)=7),"",1)) -> 1 | F21: =IF(SUMPRODUCT(('Feiertage und Ferien'!$H$8:$H$13<=F20)*('Feiertage und Ferien'!$I$8:$I$13>=F20)),"F",IF(OR(WEEKDAY(F20)=1,WEEKDAY(F20)=7),"",1)) -> 1 | G21: =IF(SUMPRODUCT(('Feiertage und Ferien'!$H$8:$H$13<=G20)*('Feiertage und Ferien'!$I$8:$I$13>=G20)),"F",IF(OR(WEEKDAY(G20)=1,WEEKDAY(G20)=7),"",1)) ->  | H21: =IF(SUMPRODUCT(('Feiertage und Ferien'!$H$8:$H$13<=H20)*('Feiertage und Ferien'!$I$8:$I$13>=H20)),"F",IF(OR(WEEKDAY(H20)=1,WEEKDAY(H20)=7),"",1)) ->  | I21: =IF(SUMPRODUCT(('Feiertage und Ferien'!$H$8:$H$13<=I20)*('Feiertage und Ferien'!$I$8:$I$13>=I20)),"F",IF(OR(WEEKDAY(I20)=1,WEEKDAY(I20)=7),"",1)) -> 1 | J21: =IF(SUMPRODUCT(('Feiertage und Ferien'!$H$8:$H$13<=J20)*('Feiertage und Ferien'!$I$8:$I$13>=J20)),"F",IF(OR(WEEKDAY(J20)=1,WEEKDAY(J20)=7),"",1)) -> 1 | K21: =IF(SUMPRODUCT(('Feiertage und Ferien'!$H$8:$H$13<=K20)*('Feiertage und Ferien'!$I$8:$I$13>=K20)),"F",IF(OR(WEEKDAY(K20)=1,WEEKDAY(K20)=7),"",1)) -> 1 | L21: =IF(SUMPRODUCT(('Feiertage und Ferien'!$H$8:$H$13<=L20)*('Feiertage und Ferien'!$I$8:$I$13>=L20)),"F",IF(OR(WEEKDAY(L20)=1,WEEKDAY(L20)=7),"",1)) -> 1 | M21: =IF(SUMPRODUCT(('Feiertage und Ferien'!$H$8:$H$13<=M20)*('Feiertage und Ferien'!$I$8:$I$13>=M20)),"F",IF(OR(WEEKDAY(M20)=1,WEEKDAY(M20)=7),"",1)) -> 1 | N21: =IF(SUMPRODUCT(('Feiertage und Ferien'!$H$8:$H$13<=N20)*('Feiertage und Ferien'!$I$8:$I$13>=N20)),"F",IF(OR(WEEKDAY(N20)=1,WEEKDAY(N20)=7),"",1)) ->  | O21: =IF(SUMPRODUCT(('Feiertage und Ferien'!$H$8:$H$13<=O20)*('Feiertage und Ferien'!$I$8:$I$13>=O20)),"F",IF(OR(WEEKDAY(O20)=1,WEEKDAY(O20)=7),"",1)) ->  | P21: =IF(SUMPRODUCT(('Feiertage und Ferien'!$H$8:$H$13<=P20)*('Feiertage und Ferien'!$I$8:$I$13>=P20)),"F",IF(OR(WEEKDAY(P20)=1,WEEKDAY(P20)=7),"",1)) -> 1 | Q21: =IF(SUMPRODUCT(('Feiertage und Ferien'!$H$8:$H$13<=Q20)*('Feiertage und Ferien'!$I$8:$I$13>=Q20)),"F",IF(OR(WEEKDAY(Q20)=1,WEEKDAY(Q20)=7),"",1)) -> 1 | R21: =IF(SUMPRODUCT(('Feiertage und Ferien'!$H$8:$H$13<=R20)*('Feiertage und Ferien'!$I$8:$I$13>=R20)),"F",IF(OR(WEEKDAY(R20)=1,WEEKDAY(R20)=7),"",1)) -> 1 | S21: =IF(SUMPRODUCT(('Feiertage und Ferien'!$H$8:$H$13<=S20)*('Feiertage und Ferien'!$I$8:$I$13>=S20)),"F",IF(OR(WEEKDAY(S20)=1,WEEKDAY(S20)=7),"",1)) -> 1 | T21: =IF(SUMPRODUCT(('Feiertage und Ferien'!$H$8:$H$13<=T20)*('Feiertage und Ferien'!$I$8:$I$13>=T20)),"F",IF(OR(WEEKDAY(T20)=1,WEEKDAY(T20)=7),"",1)) -> 1 | U21: =IF(SUMPRODUCT(('Feiertage und Ferien'!$H$8:$H$13<=U20)*('Feiertage und Ferien'!$I$8:$I$13>=U20)),"F",IF(OR(WEEKDAY(U20)=1,WEEKDAY(U20)=7),"",1)) ->  | V21: =IF(SUMPRODUCT(('Feiertage und Ferien'!$H$8:$H$13<=V20)*('Feiertage und Ferien'!$I$8:$I$13>=V20)),"F",IF(OR(WEEKDAY(V20)=1,WEEKDAY(V20)=7),"",1)) ->  | W21: =IF(SUMPRODUCT(('Feiertage und Ferien'!$H$8:$H$13<=W20)*('Feiertage und Ferien'!$I$8:$I$13>=W20)),"F",IF(OR(WEEKDAY(W20)=1,WEEKDAY(W20)=7),"",1)) -> 1 | X21: =IF(SUMPRODUCT(('Feiertage und Ferien'!$H$8:$H$13<=X20)*('Feiertage und Ferien'!$I$8:$I$13>=X20)),"F",IF(OR(WEEKDAY(X20)=1,WEEKDAY(X20)=7),"",1)) -> 1 | Y21: =IF(SUMPRODUCT(('Feiertage und Ferien'!$H$8:$H$13<=Y20)*('Feiertage und Ferien'!$I$8:$I$13>=Y20)),"F",IF(OR(WEEKDAY(Y20)=1,WEEKDAY(Y20)=7),"",1)) -> 1 | Z21: =IF(SUMPRODUCT(('Feiertage und Ferien'!$H$8:$H$13<=Z20)*('Feiertage und Ferien'!$I$8:$I$13>=Z20)),"F",IF(OR(WEEKDAY(Z20)=1,WEEKDAY(Z20)=7),"",1)) -> 1 | AA21: =IF(SUMPRODUCT(('Feiertage und Ferien'!$H$8:$H$13<=AA20)*('Feiertage und Ferien'!$I$8:$I$13>=AA20)),"F",IF(OR(WEEKDAY(AA20)=1,WEEKDAY(AA20)=7),"",1)) -> 1 | AB21: =IF(SUMPRODUCT(('Feiertage und Ferien'!$H$8:$H$13<=AB20)*('Feiertage und Ferien'!$I$8:$I$13>=AB20)),"F",IF(OR(WEEKDAY(AB20)=1,WEEKDAY(AB20)=7),"",1)) -> F | AC21: =IF(SUMPRODUCT(('Feiertage und Ferien'!$H$8:$H$13<=AC20)*('Feiertage und Ferien'!$I$8:$I$13>=AC20)),"F",IF(OR(WEEKDAY(AC20)=1,WEEKDAY(AC20)=7),"",1)) -> F | AD21: =IF(SUMPRODUCT(('Feiertage und Ferien'!$H$8:$H$13<=AD20)*('Feiertage und Ferien'!$I$8:$I$13>=AD20)),"F",IF(OR(WEEKDAY(AD20)=1,WEEKDAY(AD20)=7),"",1)) -> F | AE21: =IF(SUMPRODUCT(('Feiertage und Ferien'!$H$8:$H$13<=AE20)*('Feiertage und Ferien'!$I$8:$I$13>=AE20)),"F",IF(OR(WEEKDAY(AE20)=1,WEEKDAY(AE20)=7),"",1)) -> F | AF21: =IF(SUMPRODUCT(('Feiertage und Ferien'!$H$8:$H$13<=AF20)*('Feiertage und Ferien'!$I$8:$I$13>=AF20)),"F",IF(OR(WEEKDAY(AF20)=1,WEEKDAY(AF20)=7),"",1)) ->  | AG21: =COUNT(B21:AF21,"<0.1") -> 20 | AH21: September | AI21: =Erfassung!O2+20% -> 1 | AJ21: =ROUND(AG21*AI21/5,1)*5 -> 20
B22: =AE20+1 -> 2025-10-01 | C22: =B22+1 -> 2025-10-02 | D22: 2025-10-03 | E22: 2025-10-04 | F22: 2025-10-05 | G22: 2025-10-06 | H22: 2025-10-07 | I22: 2025-10-08 | J22: 2025-10-09 | K22: 2025-10-10 | L22: 2025-10-11 | M22: 2025-10-12 | N22: 2025-10-13 | O22: 2025-10-14 | P22: 2025-10-15 | Q22: 2025-10-16 | R22: 2025-10-17 | S22: 2025-10-18 | T22: 2025-10-19 | U22: 2025-10-20 | V22: 2025-10-21 | W22: 2025-10-22 | X22: 2025-10-23 | Y22: 2025-10-24 | Z22: 2025-10-25 | AA22: 2025-10-26 | AB22: 2025-10-27 | AC22: 2025-10-28 | AD22: 2025-10-29 | AE22: 2025-10-30 | AF22: 2025-10-31
A23: Oktober | B23: =IF(SUMPRODUCT(('Feiertage und Ferien'!$H$8:$H$13<=B22)*('Feiertage und Ferien'!$I$8:$I$13>=B22)),"F",IF(OR(WEEKDAY(B22)=1,WEEKDAY(B22)=7),"",1)) -> F | C23: =IF(SUMPRODUCT(('Feiertage und Ferien'!$H$8:$H$13<=C22)*('Feiertage und Ferien'!$I$8:$I$13>=C22)),"F",IF(OR(WEEKDAY(C22)=1,WEEKDAY(C22)=7),"",1)) -> F | D23: =IF(SUMPRODUCT(('Feiertage und Ferien'!$H$8:$H$13<=D22)*('Feiertage und Ferien'!$I$8:$I$13>=D22)),"F",IF(OR(WEEKDAY(D22)=1,WEEKDAY(D22)=7),"",1)) -> F | E23: =IF(SUMPRODUCT(('Feiertage und Ferien'!$H$8:$H$13<=E22)*('Feiertage und Ferien'!$I$8:$I$13>=E22)),"F",IF(OR(WEEKDAY(E22)=1,WEEKDAY(E22)=7),"",1)) -> F | F23: =IF(SUMPRODUCT(('Feiertage und Ferien'!$H$8:$H$13<=F22)*('Feiertage und Ferien'!$I$8:$I$13>=F22)),"F",IF(OR(WEEKDAY(F22)=1,WEEKDAY(F22)=7),"",1)) -> F | G23: =IF(SUMPRODUCT(('Feiertage und Ferien'!$H$8:$H$13<=G22)*('Feiertage und Ferien'!$I$8:$I$13>=G22)),"F",IF(OR(WEEKDAY(G22)=1,WEEKDAY(G22)=7),"",1)) -> F | H23: =IF(SUMPRODUCT(('Feiertage und Ferien'!$H$8:$H$13<=H22)*('Feiertage und Ferien'!$I$8:$I$13>=H22)),"F",IF(OR(WEEKDAY(H22)=1,WEEKDAY(H22)=7),"",1)) -> F | I23: =IF(SUMPRODUCT(('Feiertage und Ferien'!$H$8:$H$13<=I22)*('Feiertage und Ferien'!$I$8:$I$13>=I22)),"F",IF(OR(WEEKDAY(I22)=1,WEEKDAY(I22)=7),"",1)) -> F | J23: =IF(SUMPRODUCT(('Feiertage und Ferien'!$H$8:$H$13<=J22)*('Feiertage und Ferien'!$I$8:$I$13>=J22)),"F",IF(OR(WEEKDAY(J22)=1,WEEKDAY(J22)=7),"",1)) -> F | K23: =IF(SUMPRODUCT(('Feiertage und Ferien'!$H$8:$H$13<=K22)*('Feiertage und Ferien'!$I$8:$I$13>=K22)),"F",IF(OR(WEEKDAY(K22)=1,WEEKDAY(K22)=7),"",1)) -> F | L23: =IF(SUMPRODUCT(('Feiertage und Ferien'!$H$8:$H$13<=L22)*('Feiertage und Ferien'!$I$8:$I$13>=L22)),"F",IF(OR(WEEKDAY(L22)=1,WEEKDAY(L22)=7),"",1)) -> F | M23: =IF(SUMPRODUCT(('Feiertage und Ferien'!$H$8:$H$13<=M22)*('Feiertage und Ferien'!$I$8:$I$13>=M22)),"F",IF(OR(WEEKDAY(M22)=1,WEEKDAY(M22)=7),"",1)) ->  | N23: =IF(SUMPRODUCT(('Feiertage und Ferien'!$H$8:$H$13<=N22)*('Feiertage und Ferien'!$I$8:$I$13>=N22)),"F",IF(OR(WEEKDAY(N22)=1,WEEKDAY(N22)=7),"",1)) -> 1 | O23: =IF(SUMPRODUCT(('Feiertage und Ferien'!$H$8:$H$13<=O22)*('Feiertage und Ferien'!$I$8:$I$13>=O22)),"F",IF(OR(WEEKDAY(O22)=1,WEEKDAY(O22)=7),"",1)) -> 1 | P23: =IF(SUMPRODUCT(('Feiertage und Ferien'!$H$8:$H$13<=P22)*('Feiertage und Ferien'!$I$8:$I$13>=P22)),"F",IF(OR(WEEKDAY(P22)=1,WEEKDAY(P22)=7),"",1)) -> 1 | Q23: =IF(SUMPRODUCT(('Feiertage und Ferien'!$H$8:$H$13<=Q22)*('Feiertage und Ferien'!$I$8:$I$13>=Q22)),"F",IF(OR(WEEKDAY(Q22)=1,WEEKDAY(Q22)=7),"",1)) -> 1 | R23: =IF(SUMPRODUCT(('Feiertage und Ferien'!$H$8:$H$13<=R22)*('Feiertage und Ferien'!$I$8:$I$13>=R22)),"F",IF(OR(WEEKDAY(R22)=1,WEEKDAY(R22)=7),"",1)) -> 1 | S23: =IF(SUMPRODUCT(('Feiertage und Ferien'!$H$8:$H$13<=S22)*('Feiertage und Ferien'!$I$8:$I$13>=S22)),"F",IF(OR(WEEKDAY(S22)=1,WEEKDAY(S22)=7),"",1)) ->  | T23: =IF(SUMPRODUCT(('Feiertage und Ferien'!$H$8:$H$13<=T22)*('Feiertage und Ferien'!$I$8:$I$13>=T22)),"F",IF(OR(WEEKDAY(T22)=1,WEEKDAY(T22)=7),"",1)) ->  | U23: =IF(SUMPRODUCT(('Feiertage und Ferien'!$H$8:$H$13<=U22)*('Feiertage und Ferien'!$I$8:$I$13>=U22)),"F",IF(OR(WEEKDAY(U22)=1,WEEKDAY(U22)=7),"",1)) -> 1 | V23: =IF(SUMPRODUCT(('Feiertage und Ferien'!$H$8:$H$13<=V22)*('Feiertage und Ferien'!$I$8:$I$13>=V22)),"F",IF(OR(WEEKDAY(V22)=1,WEEKDAY(V22)=7),"",1)) -> 1 | W23: =IF(SUMPRODUCT(('Feiertage und Ferien'!$H$8:$H$13<=W22)*('Feiertage und Ferien'!$I$8:$I$13>=W22)),"F",IF(OR(WEEKDAY(W22)=1,WEEKDAY(W22)=7),"",1)) -> 1 | X23: =IF(SUMPRODUCT(('Feiertage und Ferien'!$H$8:$H$13<=X22)*('Feiertage und Ferien'!$I$8:$I$13>=X22)),"F",IF(OR(WEEKDAY(X22)=1,WEEKDAY(X22)=7),"",1)) -> 1 | Y23: =IF(SUMPRODUCT(('Feiertage und Ferien'!$H$8:$H$13<=Y22)*('Feiertage und Ferien'!$I$8:$I$13>=Y22)),"F",IF(OR(WEEKDAY(Y22)=1,WEEKDAY(Y22)=7),"",1)) -> 1 | Z23: =IF(SUMPRODUCT(('Feiertage und Ferien'!$H$8:$H$13<=Z22)*('Feiertage und Ferien'!$I$8:$I$13>=Z22)),"F",IF(OR(WEEKDAY(Z22)=1,WEEKDAY(Z22)=7),"",1)) ->  | AA23: =IF(SUMPRODUCT(('Feiertage und Ferien'!$H$8:$H$13<=AA22)*('Feiertage und Ferien'!$I$8:$I$13>=AA22)),"F",IF(OR(WEEKDAY(AA22)=1,WEEKDAY(AA22)=7),"",1)) ->  | AB23: =IF(SUMPRODUCT(('Feiertage und Ferien'!$H$8:$H$13<=AB22)*('Feiertage und Ferien'!$I$8:$I$13>=AB22)),"F",IF(OR(WEEKDAY(AB22)=1,WEEKDAY(AB22)=7),"",1)) -> 1 | AC23: =IF(SUMPRODUCT(('Feiertage und Ferien'!$H$8:$H$13<=AC22)*('Feiertage und Ferien'!$I$8:$I$13>=AC22)),"F",IF(OR(WEEKDAY(AC22)=1,WEEKDAY(AC22)=7),"",1)) -> 1 | AD23: =IF(SUMPRODUCT(('Feiertage und Ferien'!$H$8:$H$13<=AD22)*('Feiertage und Ferien'!$I$8:$I$13>=AD22)),"F",IF(OR(WEEKDAY(AD22)=1,WEEKDAY(AD22)=7),"",1)) -> 1 | AE23: =IF(SUMPRODUCT(('Feiertage und Ferien'!$H$8:$H$13<=AE22)*('Feiertage und Ferien'!$I$8:$I$13>=AE22)),"F",IF(OR(WEEKDAY(AE22)=1,WEEKDAY(AE22)=7),"",1)) -> 1 | AF23: =IF(SUMPRODUCT(('Feiertage und Ferien'!$H$8:$H$13<=AF22)*('Feiertage und Ferien'!$I$8:$I$13>=AF22)),"F",IF(OR(WEEKDAY(AF22)=1,WEEKDAY(AF22)=7),"",1)) -> 1 | AG23: =COUNT(B23:AF23,"<0.1") -> 15 | AH23: Oktober | AI23: =Erfassung!P2+20% -> 1 | AJ23: =ROUND(AG23*AI23/5,1)*5 -> 15
B24: =AF22+1 -> 2025-11-01 | C24: =B24+1 -> 2025-11-02 | D24: 2025-11-03 | E24: 2025-11-04 | F24: 2025-11-05 | G24: 2025-11-06 | H24: 2025-11-07 | I24: 2025-11-08 | J24: 2025-11-09 | K24: 2025-11-10 | L24: 2025-11-11 | M24: 2025-11-12 | N24: 2025-11-13 | O24: 2025-11-14 | P24: 2025-11-15 | Q24: 2025-11-16 | R24: 2025-11-17 | S24: 2025-11-18 | T24: 2025-11-19 | U24: 2025-11-20 | V24: 2025-11-21 | W24: 2025-11-22 | X24: 2025-11-23 | Y24: 2025-11-24 | Z24: 2025-11-25 | AA24: 2025-11-26 | AB24: 2025-11-27 | AC24: 2025-11-28 | AD24: 2025-11-29 | AE24: 2025-11-30
A25: November | B25: =IF(SUMPRODUCT(('Feiertage und Ferien'!$H$8:$H$13<=B24)*('Feiertage und Ferien'!$I$8:$I$13>=B24)),"F",IF(OR(WEEKDAY(B24)=1,WEEKDAY(B24)=7),"",1)) ->  | C25: =IF(SUMPRODUCT(('Feiertage und Ferien'!$H$8:$H$13<=C24)*('Feiertage und Ferien'!$I$8:$I$13>=C24)),"F",IF(OR(WEEKDAY(C24)=1,WEEKDAY(C24)=7),"",1)) ->  | D25: =IF(SUMPRODUCT(('Feiertage und Ferien'!$H$8:$H$13<=D24)*('Feiertage und Ferien'!$I$8:$I$13>=D24)),"F",IF(OR(WEEKDAY(D24)=1,WEEKDAY(D24)=7),"",1)) -> 1 | E25: =IF(SUMPRODUCT(('Feiertage und Ferien'!$H$8:$H$13<=E24)*('Feiertage und Ferien'!$I$8:$I$13>=E24)),"F",IF(OR(WEEKDAY(E24)=1,WEEKDAY(E24)=7),"",1)) -> 1 | F25: =IF(SUMPRODUCT(('Feiertage und Ferien'!$H$8:$H$13<=F24)*('Feiertage und Ferien'!$I$8:$I$13>=F24)),"F",IF(OR(WEEKDAY(F24)=1,WEEKDAY(F24)=7),"",1)) -> 1 | G25: =IF(SUMPRODUCT(('Feiertage und Ferien'!$H$8:$H$13<=G24)*('Feiertage und Ferien'!$I$8:$I$13>=G24)),"F",IF(OR(WEEKDAY(G24)=1,WEEKDAY(G24)=7),"",1)) -> 1 | H25: =IF(SUMPRODUCT(('Feiertage und Ferien'!$H$8:$H$13<=H24)*('Feiertage und Ferien'!$I$8:$I$13>=H24)),"F",IF(OR(WEEKDAY(H24)=1,WEEKDAY(H24)=7),"",1)) -> 1 | I25: =IF(SUMPRODUCT(('Feiertage und Ferien'!$H$8:$H$13<=I24)*('Feiertage und Ferien'!$I$8:$I$13>=I24)),"F",IF(OR(WEEKDAY(I24)=1,WEEKDAY(I24)=7),"",1)) ->  | J25: =IF(SUMPRODUCT(('Feiertage und Ferien'!$H$8:$H$13<=J24)*('Feiertage und Ferien'!$I$8:$I$13>=J24)),"F",IF(OR(WEEKDAY(J24)=1,WEEKDAY(J24)=7),"",1)) ->  | K25: =IF(SUMPRODUCT(('Feiertage und Ferien'!$H$8:$H$13<=K24)*('Feiertage und Ferien'!$I$8:$I$13>=K24)),"F",IF(OR(WEEKDAY(K24)=1,WEEKDAY(K24)=7),"",1)) -> 1 | L25: =IF(SUMPRODUCT(('Feiertage und Ferien'!$H$8:$H$13<=L24)*('Feiertage und Ferien'!$I$8:$I$13>=L24)),"F",IF(OR(WEEKDAY(L24)=1,WEEKDAY(L24)=7),"",1)) -> 1 | M25: =IF(SUMPRODUCT(('Feiertage und Ferien'!$H$8:$H$13<=M24)*('Feiertage und Ferien'!$I$8:$I$13>=M24)),"F",IF(OR(WEEKDAY(M24)=1,WEEKDAY(M24)=7),"",1)) -> 1 | N25: =IF(SUMPRODUCT(('Feiertage und Ferien'!$H$8:$H$13<=N24)*('Feiertage und Ferien'!$I$8:$I$13>=N24)),"F",IF(OR(WEEKDAY(N24)=1,WEEKDAY(N24)=7),"",1)) -> 1 | O25: =IF(SUMPRODUCT(('Feiertage und Ferien'!$H$8:$H$13<=O24)*('Feiertage und Ferien'!$I$8:$I$13>=O24)),"F",IF(OR(WEEKDAY(O24)=1,WEEKDAY(O24)=7),"",1)) -> 1 | P25: =IF(SUMPRODUCT(('Feiertage und Ferien'!$H$8:$H$13<=P24)*('Feiertage und Ferien'!$I$8:$I$13>=P24)),"F",IF(OR(WEEKDAY(P24)=1,WEEKDAY(P24)=7),"",1)) ->  | Q25: =IF(SUMPRODUCT(('Feiertage und Ferien'!$H$8:$H$13<=Q24)*('Feiertage und Ferien'!$I$8:$I$13>=Q24)),"F",IF(OR(WEEKDAY(Q24)=1,WEEKDAY(Q24)=7),"",1)) ->  | R25: =IF(SUMPRODUCT(('Feiertage und Ferien'!$H$8:$H$13<=R24)*('Feiertage und Ferien'!$I$8:$I$13>=R24)),"F",IF(OR(WEEKDAY(R24)=1,WEEKDAY(R24)=7),"",1)) -> 1 | S25: =IF(SUMPRODUCT(('Feiertage und Ferien'!$H$8:$H$13<=S24)*('Feiertage und Ferien'!$I$8:$I$13>=S24)),"F",IF(OR(WEEKDAY(S24)=1,WEEKDAY(S24)=7),"",1)) -> 1 | T25: =IF(SUMPRODUCT(('Feiertage und Ferien'!$H$8:$H$13<=T24)*('Feiertage und Ferien'!$I$8:$I$13>=T24)),"F",IF(OR(WEEKDAY(T24)=1,WEEKDAY(T24)=7),"",1)) -> 1 | U25: =IF(SUMPRODUCT(('Feiertage und Ferien'!$H$8:$H$13<=U24)*('Feiertage und Ferien'!$I$8:$I$13>=U24)),"F",IF(OR(WEEKDAY(U24)=1,WEEKDAY(U24)=7),"",1)) -> 1 | V25: =IF(SUMPRODUCT(('Feiertage und Ferien'!$H$8:$H$13<=V24)*('Feiertage und Ferien'!$I$8:$I$13>=V24)),"F",IF(OR(WEEKDAY(V24)=1,WEEKDAY(V24)=7),"",1)) -> 1 | W25: =IF(SUMPRODUCT(('Feiertage und Ferien'!$H$8:$H$13<=W24)*('Feiertage und Ferien'!$I$8:$I$13>=W24)),"F",IF(OR(WEEKDAY(W24)=1,WEEKDAY(W24)=7),"",1)) ->  | X25: =IF(SUMPRODUCT(('Feiertage und Ferien'!$H$8:$H$13<=X24)*('Feiertage und Ferien'!$I$8:$I$13>=X24)),"F",IF(OR(WEEKDAY(X24)=1,WEEKDAY(X24)=7),"",1)) ->  | Y25: =IF(SUMPRODUCT(('Feiertage und Ferien'!$H$8:$H$13<=Y24)*('Feiertage und Ferien'!$I$8:$I$13>=Y24)),"F",IF(OR(WEEKDAY(Y24)=1,WEEKDAY(Y24)=7),"",1)) -> 1 | Z25: =IF(SUMPRODUCT(('Feiertage und Ferien'!$H$8:$H$13<=Z24)*('Feiertage und Ferien'!$I$8:$I$13>=Z24)),"F",IF(OR(WEEKDAY(Z24)=1,WEEKDAY(Z24)=7),"",1)) -> 1 | AA25: =IF(SUMPRODUCT(('Feiertage und Ferien'!$H$8:$H$13<=AA24)*('Feiertage und Ferien'!$I$8:$I$13>=AA24)),"F",IF(OR(WEEKDAY(AA24)=1,WEEKDAY(AA24)=7),"",1)) -> 1 | AB25: =IF(SUMPRODUCT(('Feiertage und Ferien'!$H$8:$H$13<=AB24)*('Feiertage und Ferien'!$I$8:$I$13>=AB24)),"F",IF(OR(WEEKDAY(AB24)=1,WEEKDAY(AB24)=7),"",1)) -> 1 | AC25: =IF(SUMPRODUCT(('Feiertage und Ferien'!$H$8:$H$13<=AC24)*('Feiertage und Ferien'!$I$8:$I$13>=AC24)),"F",IF(OR(WEEKDAY(AC24)=1,WEEKDAY(AC24)=7),"",1)) -> 1 | AD25: =IF(SUMPRODUCT(('Feiertage und Ferien'!$H$8:$H$13<=AD24)*('Feiertage und Ferien'!$I$8:$I$13>=AD24)),"F",IF(OR(WEEKDAY(AD24)=1,WEEKDAY(AD24)=7),"",1)) ->  | AE25: =IF(SUMPRODUCT(('Feiertage und Ferien'!$H$8:$H$13<=AE24)*('Feiertage und Ferien'!$I$8:$I$13>=AE24)),"F",IF(OR(WEEKDAY(AE24)=1,WEEKDAY(AE24)=7),"",1)) ->  | AF25: =IF(SUMPRODUCT(('Feiertage und Ferien'!$H$8:$H$13<=AF24)*('Feiertage und Ferien'!$I$8:$I$13>=AF24)),"F",IF(OR(WEEKDAY(AF24)=1,WEEKDAY(AF24)=7),"",1)) ->  | AG25: =COUNT(B25:AF25,"<0.1") -> 20 | AH25: November | AI25: =Erfassung!Q2+20% -> 1 | AJ25: =ROUND(AG25*AI25/5,1)*5 -> 20
B26: =AE24+1 -> 2025-12-01 | C26: =B26+1 -> 2025-12-02 | D26: 2025-12-03 | E26: 2025-12-04 | F26: 2025-12-05 | G26: 2025-12-06 | H26: 2025-12-07 | I26: 2025-12-08 | J26: 2025-12-09 | K26: 2025-12-10 | L26: 2025-12-11 | M26: 2025-12-12 | N26: 2025-12-13 | O26: 2025-12-14 | P26: 2025-12-15 | Q26: 2025-12-16 | R26: 2025-12-17 | S26: 2025-12-18 | T26: 2025-12-19 | U26: 2025-12-20 | V26: 2025-12-21 | W26: 2025-12-22 | X26: 2025-12-23 | Y26: 2025-12-24 | Z26: 2025-12-25 | AA26: 2025-12-26 | AB26: 2025-12-27 | AC26: 2025-12-28 | AD26: 2025-12-29 | AE26: 2025-12-30 | AF26: 2025-12-31
A27: Dezember | B27: =IF(SUMPRODUCT(('Feiertage und Ferien'!$H$8:$H$13<=B26)*('Feiertage und Ferien'!$I$8:$I$13>=B26)),"F",IF(OR(WEEKDAY(B26)=1,WEEKDAY(B26)=7),"",1)) -> 1 | C27: =IF(SUMPRODUCT(('Feiertage und Ferien'!$H$8:$H$13<=C26)*('Feiertage und Ferien'!$I$8:$I$13>=C26)),"F",IF(OR(WEEKDAY(C26)=1,WEEKDAY(C26)=7),"",1)) -> 1 | D27: =IF(SUMPRODUCT(('Feiertage und Ferien'!$H$8:$H$13<=D26)*('Feiertage und Ferien'!$I$8:$I$13>=D26)),"F",IF(OR(WEEKDAY(D26)=1,WEEKDAY(D26)=7),"",1)) -> 1 | E27: =IF(SUMPRODUCT(('Feiertage und Ferien'!$H$8:$H$13<=E26)*('Feiertage und Ferien'!$I$8:$I$13>=E26)),"F",IF(OR(WEEKDAY(E26)=1,WEEKDAY(E26)=7),"",1)) -> 1 | F27: =IF(SUMPRODUCT(('Feiertage und Ferien'!$H$8:$H$13<=F26)*('Feiertage und Ferien'!$I$8:$I$13>=F26)),"F",IF(OR(WEEKDAY(F26)=1,WEEKDAY(F26)=7),"",1)) -> 1 | G27: =IF(SUMPRODUCT(('Feiertage und Ferien'!$H$8:$H$13<=G26)*('Feiertage und Ferien'!$I$8:$I$13>=G26)),"F",IF(OR(WEEKDAY(G26)=1,WEEKDAY(G26)=7),"",1)) ->  | H27: =IF(SUMPRODUCT(('Feiertage und Ferien'!$H$8:$H$13<=H26)*('Feiertage und Ferien'!$I$8:$I$13>=H26)),"F",IF(OR(WEEKDAY(H26)=1,WEEKDAY(H26)=7),"",1)) ->  | I27: =IF(SUMPRODUCT(('Feiertage und Ferien'!$H$8:$H$13<=I26)*('Feiertage und Ferien'!$I$8:$I$13>=I26)),"F",IF(OR(WEEKDAY(I26)=1,WEEKDAY(I26)=7),"",1)) -> 1 | J27: =IF(SUMPRODUCT(('Feiertage und Ferien'!$H$8:$H$13<=J26)*('Feiertage und Ferien'!$I$8:$I$13>=J26)),"F",IF(OR(WEEKDAY(J26)=1,WEEKDAY(J26)=7),"",1)) -> 1 | K27: =IF(SUMPRODUCT(('Feiertage und Ferien'!$H$8:$H$13<=K26)*('Feiertage und Ferien'!$I$8:$I$13>=K26)),"F",IF(OR(WEEKDAY(K26)=1,WEEKDAY(K26)=7),"",1)) -> 1 | L27: =IF(SUMPRODUCT(('Feiertage und Ferien'!$H$8:$H$13<=L26)*('Feiertage und Ferien'!$I$8:$I$13>=L26)),"F",IF(OR(WEEKDAY(L26)=1,WEEKDAY(L26)=7),"",1)) -> 1 | M27: =IF(SUMPRODUCT(('Feiertage und Ferien'!$H$8:$H$13<=M26)*('Feiertage und Ferien'!$I$8:$I$13>=M26)),"F",IF(OR(WEEKDAY(M26)=1,WEEKDAY(M26)=7),"",1)) -> 1 | N27: =IF(SUMPRODUCT(('Feiertage und Ferien'!$H$8:$H$13<=N26)*('Feiertage und Ferien'!$I$8:$I$13>=N26)),"F",IF(OR(WEEKDAY(N26)=1,WEEKDAY(N26)=7),"",1)) ->  | O27: =IF(SUMPRODUCT(('Feiertage und Ferien'!$H$8:$H$13<=O26)*('Feiertage und Ferien'!$I$8:$I$13>=O26)),"F",IF(OR(WEEKDAY(O26)=1,WEEKDAY(O26)=7),"",1)) ->  | P27: =IF(SUMPRODUCT(('Feiertage und Ferien'!$H$8:$H$13<=P26)*('Feiertage und Ferien'!$I$8:$I$13>=P26)),"F",IF(OR(WEEKDAY(P26)=1,WEEKDAY(P26)=7),"",1)) -> 1 | Q27: =IF(SUMPRODUCT(('Feiertage und Ferien'!$H$8:$H$13<=Q26)*('Feiertage und Ferien'!$I$8:$I$13>=Q26)),"F",IF(OR(WEEKDAY(Q26)=1,WEEKDAY(Q26)=7),"",1)) -> 1 | R27: =IF(SUMPRODUCT(('Feiertage und Ferien'!$H$8:$H$13<=R26)*('Feiertage und Ferien'!$I$8:$I$13>=R26)),"F",IF(OR(WEEKDAY(R26)=1,WEEKDAY(R26)=7),"",1)) -> 1 | S27: =IF(SUMPRODUCT(('Feiertage und Ferien'!$H$8:$H$13<=S26)*('Feiertage und Ferien'!$I$8:$I$13>=S26)),"F",IF(OR(WEEKDAY(S26)=1,WEEKDAY(S26)=7),"",1)) -> 1 | T27: =IF(SUMPRODUCT(('Feiertage und Ferien'!$H$8:$H$13<=T26)*('Feiertage und Ferien'!$I$8:$I$13>=T26)),"F",IF(OR(WEEKDAY(T26)=1,WEEKDAY(T26)=7),"",1)) -> 1 | U27: =IF(SUMPRODUCT(('Feiertage und Ferien'!$H$8:$H$13<=U26)*('Feiertage und Ferien'!$I$8:$I$13>=U26)),"F",IF(OR(WEEKDAY(U26)=1,WEEKDAY(U26)=7),"",1)) -> F | V27: =IF(SUMPRODUCT(('Feiertage und Ferien'!$H$8:$H$13<=V26)*('Feiertage und Ferien'!$I$8:$I$13>=V26)),"F",IF(OR(WEEKDAY(V26)=1,WEEKDAY(V26)=7),"",1)) -> F | W27: =IF(SUMPRODUCT(('Feiertage und Ferien'!$H$8:$H$13<=W26)*('Feiertage und Ferien'!$I$8:$I$13>=W26)),"F",IF(OR(WEEKDAY(W26)=1,WEEKDAY(W26)=7),"",1)) -> F | X27: =IF(SUMPRODUCT(('Feiertage und Ferien'!$H$8:$H$13<=X26)*('Feiertage und Ferien'!$I$8:$I$13>=X26)),"F",IF(OR(WEEKDAY(X26)=1,WEEKDAY(X26)=7),"",1)) -> F | Y27: =IF(SUMPRODUCT(('Feiertage und Ferien'!$H$8:$H$13<=Y26)*('Feiertage und Ferien'!$I$8:$I$13>=Y26)),"F",IF(OR(WEEKDAY(Y26)=1,WEEKDAY(Y26)=7),"",1)) -> F | Z27: =IF(SUMPRODUCT(('Feiertage und Ferien'!$H$8:$H$13<=Z26)*('Feiertage und Ferien'!$I$8:$I$13>=Z26)),"F",IF(OR(WEEKDAY(Z26)=1,WEEKDAY(Z26)=7),"",1)) -> F | AA27: =IF(SUMPRODUCT(('Feiertage und Ferien'!$H$8:$H$13<=AA26)*('Feiertage und Ferien'!$I$8:$I$13>=AA26)),"F",IF(OR(WEEKDAY(AA26)=1,WEEKDAY(AA26)=7),"",1)) -> F | AB27: =IF(SUMPRODUCT(('Feiertage und Ferien'!$H$8:$H$13<=AB26)*('Feiertage und Ferien'!$I$8:$I$13>=AB26)),"F",IF(OR(WEEKDAY(AB26)=1,WEEKDAY(AB26)=7),"",1)) -> F | AC27: =IF(SUMPRODUCT(('Feiertage und Ferien'!$H$8:$H$13<=AC26)*('Feiertage und Ferien'!$I$8:$I$13>=AC26)),"F",IF(OR(WEEKDAY(AC26)=1,WEEKDAY(AC26)=7),"",1)) -> F | AD27: =IF(SUMPRODUCT(('Feiertage und Ferien'!$H$8:$H$13<=AD26)*('Feiertage und Ferien'!$I$8:$I$13>=AD26)),"F",IF(OR(WEEKDAY(AD26)=1,WEEKDAY(AD26)=7),"",1)) -> F | AE27: =IF(SUMPRODUCT(('Feiertage und Ferien'!$H$8:$H$13<=AE26)*('Feiertage und Ferien'!$I$8:$I$13>=AE26)),"F",IF(OR(WEEKDAY(AE26)=1,WEEKDAY(AE26)=7),"",1)) -> F | AF27: =IF(SUMPRODUCT(('Feiertage und Ferien'!$H$8:$H$13<=AF26)*('Feiertage und Ferien'!$I$8:$I$13>=AF26)),"F",IF(OR(WEEKDAY(AF26)=1,WEEKDAY(AF26)=7),"",1)) -> F | AG27: =COUNT(B27:AF27,"<0.1") -> 15 | AH27: Dezember | AI27: =Erfassung!R2+20% -> 1 | AJ27: =ROUND(AG27*AI27/5,1)*5 -> 15
A29: Legende: | C29: Ferien | G29: Arbeitstage | K29: Wochenende | N29: F | O29: Feiertage
H33: Die roten Resultate unter | P33: https://ssa-app.ch/SchoolHours | AB33: im ssa-app/DossierManager erfassen.
